Inv Transaction,Supplier Name,Headserv Name,Stratdir Name,Account Desription,Redact Name,Paid Date, Sum of Inv Amount ,Proclass,Merchant cat
5380386,0161 Project,Individual Schools Budget,Children's Services,Professional Child Services,,21/04/2020, 780.00 ,171011,Education
5380385,0161 Project,Individual Schools Budget,Children's Services,Professional Child Services,,21/04/2020," 1,105.00 ",171011,Education
5381335,10Architect Healthcare Ltd,Place,Growth,Fees,,04/05/2020," 2,960.00 ",151515,Healthcare
5375009,11KBW LIMITED,GMPF (FX),GMPF (FX),Professional Services,,01/04/2020," 12,550.00 ",280000,Legal Services
5376921,11KBW LIMITED,Place,Growth,Legal Fees,,03/04/2020," 7,250.00 ",280000,Legal Services
5380878,11KBW LIMITED,Hosted Services,Hosted Services,Development Monies,,27/04/2020," 2,190.00 ",280000,Legal Services
5380881,11KBW LIMITED,Hosted Services,Hosted Services,Development Monies,,27/04/2020," 2,655.00 ",280000,Legal Services
5382460,11KBW LIMITED,Tameside Investment Partnership,Director of Place,External  Consultants,,12/05/2020," 2,715.00 ",280000,Legal Services
5386178,11KBW LIMITED,Childrens Services,Children's Services,Legal Fees,,22/06/2020," 2,200.00 ",280000,Legal Services
5386304,11KBW LIMITED,Childrens Services,Children's Services,Legal Fees,,23/06/2020," 1,905.00 ",280000,Legal Services
5375691,18 St John Street Chambers,Childrens Services,Children's Services,Legal Fees,,01/04/2020, 550.00 ,280000,Legal Services
5375893,18 St John Street Chambers,Childrens Services,Children's Services,Legal Fees,,01/04/2020, 550.00 ,280000,Legal Services
5375898,18 St John Street Chambers,Childrens Services,Children's Services,Legal Fees,,01/04/2020, 550.00 ,280000,Legal Services
5375693,18 St John Street Chambers,Childrens Services,Children's Services,Legal Fees,,01/04/2020, 550.00 ,280000,Legal Services
5375734,18 St John Street Chambers,Childrens Services,Children's Services,Legal Fees,,01/04/2020, 550.00 ,280000,Legal Services
5375863,18 St John Street Chambers,Childrens Services,Children's Services,Legal Fees,,01/04/2020, 950.00 ,280000,Legal Services
5375690,18 St John Street Chambers,Childrens Services,Children's Services,Legal Fees,,01/04/2020, 540.00 ,280000,Legal Services
5375692,18 St John Street Chambers,Childrens Services,Children's Services,Legal Fees,,01/04/2020, 550.00 ,280000,Legal Services
5377822,18 St John Street Chambers,Childrens Services,Children's Services,Legal Fees,,03/04/2020, 650.00 ,280000,Legal Services
5377821,18 St John Street Chambers,Childrens Services,Children's Services,Legal Fees,,03/04/2020, 650.00 ,280000,Legal Services
5377782,18 St John Street Chambers,Childrens Services,Children's Services,Legal Fees,,03/04/2020, 550.00 ,280000,Legal Services
5378865,18 St John Street Chambers,Childrens Services,Children's Services,Legal Fees,,03/04/2020, 550.00 ,280000,Legal Services
5378867,18 St John Street Chambers,Childrens Services,Children's Services,Legal Fees,,03/04/2020, 550.00 ,280000,Legal Services
5376579,18 St John Street Chambers,Childrens Services,Children's Services,Legal Fees,,03/04/2020, 770.00 ,280000,Legal Services
5378868,18 St John Street Chambers,Childrens Services,Children's Services,Legal Fees,,03/04/2020, 550.00 ,280000,Legal Services
5369917,18 St John Street Chambers,Childrens Services,Children's Services,Legal Fees,,22/04/2020, 950.00 ,280000,Legal Services
5382268,18 St John Street Chambers,Governance,Governance,Legal Fees,,11/05/2020, 950.00 ,280000,Legal Services
5382269,18 St John Street Chambers,Childrens Services,Children's Services,Legal Fees,,11/05/2020, 950.00 ,280000,Legal Services
5382272,18 St John Street Chambers,Childrens Services,Children's Services,Legal Fees,,11/05/2020, 950.00 ,280000,Legal Services
5382599,18 St John Street Chambers,Childrens Services,Children's Services,Legal Fees,,13/05/2020, 650.00 ,280000,Legal Services
5382577,18 St John Street Chambers,Childrens Services,Children's Services,Legal Fees,,13/05/2020, 950.00 ,280000,Legal Services
5382594,18 St John Street Chambers,Childrens Services,Children's Services,Legal Fees,,13/05/2020, 650.00 ,280000,Legal Services
5382596,18 St John Street Chambers,Childrens Services,Children's Services,Legal Fees,,13/05/2020, 650.00 ,280000,Legal Services
5382580,18 St John Street Chambers,Childrens Services,Children's Services,Legal Fees,,13/05/2020, 950.00 ,280000,Legal Services
5382598,18 St John Street Chambers,Childrens Services,Children's Services,Legal Fees,,13/05/2020," 1,100.00 ",280000,Legal Services
5382600,18 St John Street Chambers,Childrens Services,Children's Services,Legal Fees,,13/05/2020," 3,490.00 ",280000,Legal Services
5382593,18 St John Street Chambers,Childrens Services,Children's Services,Legal Fees,,13/05/2020, 610.00 ,280000,Legal Services
5385952,18 St John Street Chambers,Childrens Services,Children's Services,Legal Fees,,18/06/2020, 910.00 ,280000,Legal Services
5385959,18 St John Street Chambers,Childrens Services,Children's Services,Legal Fees,,18/06/2020, 550.00 ,280000,Legal Services
5385962,18 St John Street Chambers,Childrens Services,Children's Services,Legal Fees,,18/06/2020, 550.00 ,280000,Legal Services
5385950,18 St John Street Chambers,Childrens Services,Children's Services,Legal Fees,,18/06/2020, 550.00 ,280000,Legal Services
5385967,18 St John Street Chambers,Childrens Services,Children's Services,Legal Fees,,18/06/2020, 950.00 ,280000,Legal Services
5386111,18 St John Street Chambers,Childrens Services,Children's Services,Legal Fees,,19/06/2020," 1,900.00 ",280000,Legal Services
5386219,18 St John Street Chambers,Childrens Services,Children's Services,Legal Fees,,22/06/2020," 1,070.00 ",280000,Legal Services
5386216,18 St John Street Chambers,Childrens Services,Children's Services,Legal Fees,,22/06/2020," 2,410.00 ",280000,Legal Services
5386220,18 St John Street Chambers,Childrens Services,Children's Services,Legal Fees,,22/06/2020, 610.00 ,280000,Legal Services
5386218,18 St John Street Chambers,Childrens Services,Children's Services,Legal Fees,,22/06/2020," 1,025.00 ",280000,Legal Services
5386217,18 St John Street Chambers,Childrens Services,Children's Services,Legal Fees,,23/06/2020, 550.00 ,280000,Legal Services
470852,1st Choice Grab Hire LTD,Operations and Neighbourhoods,Operations and Neighbourhoods,Sub-contractor Services,,06/04/2020, 600.00 ,230000,Highway Equipment & Materials
470853,1st Choice Grab Hire LTD,Operations and Neighbourhoods,Operations and Neighbourhoods,Sub-contractor Services,,15/04/2020, 750.00 ,230000,Highway Equipment & Materials
470858,1st Choice Grab Hire LTD,Operations and Neighbourhoods,Operations and Neighbourhoods,General Materials,,20/05/2020, 500.00 ,230000,Highway Equipment & Materials
470860,1st Choice Grab Hire LTD,Operations and Neighbourhoods,Operations and Neighbourhoods,Sub-contractor Services,,01/06/2020," 1,350.00 ",230000,Highway Equipment & Materials
470861,1st Choice Grab Hire LTD,Operations and Neighbourhoods,Operations and Neighbourhoods,Sub-contractor Services,,08/06/2020, 600.00 ,230000,Highway Equipment & Materials
470862,1st Choice Grab Hire LTD,Operations and Neighbourhoods,Operations and Neighbourhoods,Sub-contractor Services,,15/06/2020, 750.00 ,230000,Highway Equipment & Materials
470863,1st Choice Grab Hire LTD,Operations and Neighbourhoods,Operations and Neighbourhoods,Sub-contractor Services,,22/06/2020, 750.00 ,230000,Highway Equipment & Materials
5378614,1ST STOP GLASS LTD,Contingency,Contingency,COVID-19 Small Business 10k,,02/04/2020," 10,000.00 ",400000,Non 3rd Party spend  
5386089,2 BOARDS AND A PASSION LTD,Operations and Neighbourhoods,Operations and Neighbourhoods,Professional Services,,22/06/2020," 1,000.00 ",170000,Education
5379187,24/7 UPTIME LTD,Contingency,Contingency,COVID-19 Small Business 10k,,07/04/2020," 10,000.00 ",201700,Financial Services
470857,4WAY CONSULTING LTD,Operations and Neighbourhoods,Operations and Neighbourhoods,Street Lighting,,11/05/2020," 2,685.49 ",180000,Environmental Services
470859,4WAY CONSULTING LTD,(blank),(blank),Street Lighting Works,,26/05/2020," 1,831.39 ",180000,Environmental Services
5381491,75 SERVICE LTD,Operations and Neighbourhoods,Operations and Neighbourhoods,Professional Services,,06/05/2020," 3,500.00 ",310000,Healthcare
5378523,A & E FURNITURE LTD T.A THE PAVILION,Adult Social Care,Adults,"Fixtures, Fittings & Furniture Purchase",,03/04/2020, 699.00 ,210000,Furniture & Soft Furnishings
5384117,A & E FURNITURE LTD T.A THE PAVILION,Adult Social Care,Adults,"Fixtures, Fittings & Furniture Purchase",,02/06/2020," 1,098.00 ",210000,Furniture & Soft Furnishings
3250757,A & J MOTORSPARES,Operations and Neighbourhoods,Operations and Neighbourhoods,General Materials,,16/04/2020, 579.98 ,380000,Vehicle Management
3250761,A & J MOTORSPARES,Operations and Neighbourhoods,Operations and Neighbourhoods,General Materials,,15/05/2020, 677.29 ,380000,Vehicle Management
3250766,A & J MOTORSPARES,Operations and Neighbourhoods,Operations and Neighbourhoods,General Materials,,18/06/2020, 850.59 ,380000,Vehicle Management
5379316,A K SIMPSON CAR SALES,Contingency,Contingency,COVID-19 Small Business 10k,,08/04/2020," 10,000.00 ",201700,Financial Services
5380468,A Quiet Place Ltd,Individual Schools Budget,Children's Services,Professional Services,,23/04/2020," 16,000.00 ",210000,Furniture & Soft Furnishings
5374738,A1 Foster Care,Childrens Services,Children's Services,Foster Carer Agency Fees,,01/04/2020," 6,877.14 ",321100,Social Community Care Supplies & Services - Children
5379873,A1 Foster Care,Childrens Services,Children's Services,Foster Carer Agency Fees,,15/04/2020," 3,720.00 ",321100,Social Community Care Supplies & Services - Children
5379870,A1 Foster Care,Childrens Services,Children's Services,Foster Carer Agency Fees,,15/04/2020," 3,631.43 ",321100,Social Community Care Supplies & Services - Children
5382213,A1 Foster Care,Childrens Services,Children's Services,Foster Carer Agency Fees,,12/05/2020," 7,114.29 ",321100,Social Community Care Supplies & Services - Children
5382566,A1 Foster Care,Childrens Services,Children's Services,Foster Carer Agency Fees,,13/05/2020," 7,351.43 ",321100,Social Community Care Supplies & Services - Children
5384468,A1 Foster Care,Childrens Services,Children's Services,Foster Carer Agency Fees,,03/06/2020," 7,351.43 ",321100,Social Community Care Supplies & Services - Children
470862,ABACUS LIGHTING LTD,Operations and Neighbourhoods,Operations and Neighbourhoods,General Materials,,15/06/2020," 1,892.55 ",230000,Highway Equipment & Materials
470853,ABBEY INDUSTRIAL SOLUTIONS LTD,Operations and Neighbourhoods,Operations and Neighbourhoods,General Materials,,15/04/2020, 624.15 ,390000,"Works - Construction, Repair & Maintenance"
470855,ABBEY INDUSTRIAL SOLUTIONS LTD,Operations and Neighbourhoods,Operations and Neighbourhoods,General Materials,,27/04/2020," 1,149.65 ",390000,"Works - Construction, Repair & Maintenance"
5378290,ABLE CARE AND SUPPORT SERVICES LTD,Adult Social Care,Adults,Homecare Fees,,01/04/2020," 2,886.93 ",321000,Social Community Care Supplies & Services - Adult
5377563,ABLE CARE AND SUPPORT SERVICES LTD,Adult Social Care,Adults,Homecare Fees,,01/04/2020," 3,199.33 ",321000,Social Community Care Supplies & Services - Adult
5379250,ABLE CARE AND SUPPORT SERVICES LTD,Adult Social Care,Adults,Homecare Fees,,08/04/2020," 39,856.73 ",321000,Social Community Care Supplies & Services - Adult
5379249,ABLE CARE AND SUPPORT SERVICES LTD,Adult Social Care,Adults,Homecare Fees,,08/04/2020," 21,190.00 ",321000,Social Community Care Supplies & Services - Adult
5379974,ABLE CARE AND SUPPORT SERVICES LTD,Adult Social Care,Adults,Homecare Fees,,16/04/2020," 4,181.28 ",321000,Social Community Care Supplies & Services - Adult
5379976,ABLE CARE AND SUPPORT SERVICES LTD,Adult Social Care,Adults,Homecare Fees,,16/04/2020, 776.62 ,321000,Social Community Care Supplies & Services - Adult
5380056,ABLE CARE AND SUPPORT SERVICES LTD,Adult Social Care,Adults,Homecare Fees,,17/04/2020," 4,554.03 ",321000,Social Community Care Supplies & Services - Adult
5380055,ABLE CARE AND SUPPORT SERVICES LTD,Adult Social Care,Adults,Homecare Fees,,17/04/2020, 669.50 ,321000,Social Community Care Supplies & Services - Adult
5381337,ABLE CARE AND SUPPORT SERVICES LTD,Adult Social Care,Adults,Homecare Fees,,01/05/2020, 622.70 ,321000,Social Community Care Supplies & Services - Adult
5381336,ABLE CARE AND SUPPORT SERVICES LTD,Adult Social Care,Adults,Homecare Fees,,01/05/2020," 7,241.57 ",321000,Social Community Care Supplies & Services - Adult
5381509,ABLE CARE AND SUPPORT SERVICES LTD,Adult Social Care,Adults,Homecare Fees,,06/05/2020, 607.10 ,321000,Social Community Care Supplies & Services - Adult
5381510,ABLE CARE AND SUPPORT SERVICES LTD,Adult Social Care,Adults,Homecare Fees,,06/05/2020," 4,927.29 ",321000,Social Community Care Supplies & Services - Adult
5381968,ABLE CARE AND SUPPORT SERVICES LTD,Adult Social Care,Adults,Homecare Fees,,07/05/2020," 21,190.00 ",321000,Social Community Care Supplies & Services - Adult
5381967,ABLE CARE AND SUPPORT SERVICES LTD,Adult Social Care,Adults,Homecare Fees,,07/05/2020," 39,856.73 ",321000,Social Community Care Supplies & Services - Adult
5382274,ABLE CARE AND SUPPORT SERVICES LTD,Adult Social Care,Adults,Homecare Fees,,11/05/2020," 5,247.68 ",321000,Social Community Care Supplies & Services - Adult
5382277,ABLE CARE AND SUPPORT SERVICES LTD,Adult Social Care,Adults,Homecare Fees,,11/05/2020, 622.70 ,321000,Social Community Care Supplies & Services - Adult
5382730,ABLE CARE AND SUPPORT SERVICES LTD,Adult Social Care,Adults,Homecare Fees,,15/05/2020," 5,924.55 ",321000,Social Community Care Supplies & Services - Adult
5382731,ABLE CARE AND SUPPORT SERVICES LTD,Adult Social Care,Adults,Homecare Fees,,15/05/2020, 622.70 ,321000,Social Community Care Supplies & Services - Adult
5383639,ABLE CARE AND SUPPORT SERVICES LTD,Adult Social Care,Adults,Homecare Fees,,27/05/2020," 5,297.59 ",321000,Social Community Care Supplies & Services - Adult
5383642,ABLE CARE AND SUPPORT SERVICES LTD,Adult Social Care,Adults,Homecare Fees,,27/05/2020, 607.10 ,321000,Social Community Care Supplies & Services - Adult
5383904,ABLE CARE AND SUPPORT SERVICES LTD,Adult Social Care,Adults,Homecare Fees,,29/05/2020," 5,620.77 ",321000,Social Community Care Supplies & Services - Adult
5383905,ABLE CARE AND SUPPORT SERVICES LTD,Adult Social Care,Adults,Homecare Fees,,29/05/2020, 622.70 ,321000,Social Community Care Supplies & Services - Adult
5384136,ABLE CARE AND SUPPORT SERVICES LTD,Adult Social Care,Adults,Homecare Fees,,02/06/2020," 39,856.73 ",321000,Social Community Care Supplies & Services - Adult
5384353,ABLE CARE AND SUPPORT SERVICES LTD,Adult Social Care,Adults,Homecare Fees,,03/06/2020," 21,190.00 ",321000,Social Community Care Supplies & Services - Adult
5386566,ABLE CARE AND SUPPORT SERVICES LTD,Adult Social Care,Adults,Homecare Fees,,25/06/2020," 4,091.03 ",321000,Social Community Care Supplies & Services - Adult
5381502,ABOUT TAMESIDE,Policy and Communications,Governance,"Marketing, Publicity and Recruitment",,05/05/2020, 550.00 ,908001,Public Bodies
5382338,ACCCOUNTING OFFICER HOME OFFICE,Hosted Services,Hosted Services,Professional Services,,12/05/2020," 4,519.61 ",200000,Financial Services
5380174,Access Independent,Adult Social Care,Adults,Training Course Costs,,24/04/2020," 1,300.00 ",261500,Human Resources
5376080,ACORN CARE & EDUCATION LTD (SALES),Education,Children's Services,Independent School Fees,,01/04/2020," 5,966.78 ",321100,Social Community Care Supplies & Services - Children
5376078,ACORN CARE & EDUCATION LTD (SALES),Education,Children's Services,Independent School Fees,,01/04/2020," 15,027.33 ",321100,Social Community Care Supplies & Services - Children
5376079,ACORN CARE & EDUCATION LTD (SALES),Education,Children's Services,Independent School Fees,,01/04/2020," 10,660.09 ",321100,Social Community Care Supplies & Services - Children
5376081,ACORN CARE & EDUCATION LTD (SALES),Education,Children's Services,Independent School Fees,,01/04/2020," 12,771.00 ",321100,Social Community Care Supplies & Services - Children
5384535,ACORN CARE & EDUCATION LTD (SALES),Education,Children's Services,Independent School Fees,,08/06/2020," 11,863.19 ",321100,Social Community Care Supplies & Services - Children
5386398,ACORN CARE & EDUCATION LTD (SALES),Education,Children's Services,Independent School Fees,,24/06/2020," 11,880.00 ",321100,Social Community Care Supplies & Services - Children
5386397,ACORN CARE & EDUCATION LTD (SALES),Education,Children's Services,Independent School Fees,,24/06/2020," 11,880.00 ",321100,Social Community Care Supplies & Services - Children
5386410,ACORN CARE & EDUCATION LTD (SALES),Education,Children's Services,Independent School Fees,,26/06/2020, 785.00 ,321100,Social Community Care Supplies & Services - Children
5386422,ACORN CARE & EDUCATION LTD (SALES),Education,Children's Services,Independent School Fees,,26/06/2020," 15,027.33 ",321100,Social Community Care Supplies & Services - Children
5386423,ACORN CARE & EDUCATION LTD (SALES),Education,Children's Services,Independent School Fees,,26/06/2020," 15,027.33 ",321100,Social Community Care Supplies & Services - Children
5386399,ACORN CARE & EDUCATION LTD (SALES),Education,Children's Services,Independent School Fees,,26/06/2020," 11,880.00 ",321100,Social Community Care Supplies & Services - Children
5386456,ACORN CARE & EDUCATION LTD (SALES),Education,Children's Services,Independent School Fees,,26/06/2020," 12,771.00 ",321100,Social Community Care Supplies & Services - Children
5386458,ACORN CARE & EDUCATION LTD (SALES),Education,Children's Services,Independent School Fees,,26/06/2020," 12,771.00 ",321100,Social Community Care Supplies & Services - Children
470858,ACORN LIGHTING SERVICES LTD,Operations and Neighbourhoods,Operations and Neighbourhoods,Sub-contractor Services,,20/05/2020," 11,860.00 ",230000,Highway Equipment & Materials
5383451,Action First Recruitment LTD,Adult Social Care,Adults,Professional Services,,30/06/2020," 1,100.00 ",-999999,Unclassifiable
5383453,Action First Recruitment LTD,Adult Social Care,Adults,Professional Services,,30/06/2020, 900.00 ,-999999,Unclassifiable
5379161,ACTION TOGETHER CIO,Adult Social Care,Adults,Voluntary Organisations Fees,,07/04/2020," 38,570.00 ",200000,Financial Services
5379572,ACTION TOGETHER CIO,Operations and Neighbourhoods,Operations and Neighbourhoods,General Materials,,09/04/2020," 34,000.00 ",200000,Financial Services
5379573,ACTION TOGETHER CIO,Childrens Services,Children's Services,Professional Child Services,,09/04/2020," 32,500.00 ",200000,Financial Services
5384878,ACTION TOGETHER CIO,Corporate Costs,Corporate Costs,Event Related Activity,,05/06/2020," 1,000.00 ",200000,Financial Services
5386048,ACTION TOGETHER CIO,Operations and Neighbourhoods,Operations and Neighbourhoods,General Materials,,22/06/2020," 34,000.00 ",200000,Financial Services
5378571,Active Letting,Operations and Neighbourhoods,Operations and Neighbourhoods,Contribution,,03/04/2020, 800.00 ,202000,Financial Services
5379740,AD HOC CHAPS PAYMENT,(blank),(blank),Contribution,,14/04/2020," 1,870,000.00 ",400002,Chaps Payments
5379742,AD HOC CHAPS PAYMENT,Multiple Heads of Service,Multiple Strategic Directorates,Debits Superann Teachers,,14/04/2020," 1,192,325.21 ",400002,Chaps Payments
5379744,AD HOC CHAPS PAYMENT,Exchequer,Governance,Other Government Grant,,14/04/2020, 501.75 ,400002,Chaps Payments
5379744,AD HOC CHAPS PAYMENT,Adult Social Care,Adults,Homecare Fees,,14/04/2020," 2,400.00 ",400002,Chaps Payments
5379733,AD HOC CHAPS PAYMENT,Corporate Costs,Corporate Costs,Contributions,,14/04/2020," 11,786.69 ",400002,Chaps Payments
5379729,AD HOC CHAPS PAYMENT,Population Health,Population Health,Leisure Services Contract Payment,,14/04/2020," 1,077,000.00 ",400002,Chaps Payments
5380746,AD HOC CHAPS PAYMENT,Multiple Heads of Service,Multiple Strategic Directorates,Salaries & Wages Advances(Hold),,24/04/2020," 1,400.00 ",400002,Chaps Payments
5380748,AD HOC CHAPS PAYMENT,Multiple Heads of Service,Multiple Strategic Directorates,Salaries & Wages Advances(Hold),,24/04/2020, 730.00 ,400002,Chaps Payments
5380751,AD HOC CHAPS PAYMENT,Multiple Heads of Service,Multiple Strategic Directorates,Tax Paid Sub Contractors,,24/04/2020," 1,281.92 ",400002,Chaps Payments
5380796,AD HOC CHAPS PAYMENT,Multiple Heads of Service,Multiple Strategic Directorates,Salaries & Wages Advances(Hold),,24/04/2020, 997.58 ,400002,Chaps Payments
5380805,AD HOC CHAPS PAYMENT,Multiple Heads of Service,Multiple Strategic Directorates,Salaries & Wages Advances(Hold),,24/04/2020, 920.00 ,400002,Chaps Payments
5380797,AD HOC CHAPS PAYMENT,Multiple Heads of Service,Multiple Strategic Directorates,Salaries & Wages Advances(Hold),,24/04/2020, 894.00 ,400002,Chaps Payments
5380798,AD HOC CHAPS PAYMENT,Multiple Heads of Service,Multiple Strategic Directorates,Salaries & Wages Advances(Hold),,24/04/2020, 894.00 ,400002,Chaps Payments
5380799,AD HOC CHAPS PAYMENT,Multiple Heads of Service,Multiple Strategic Directorates,Salaries & Wages Advances(Hold),,24/04/2020," 1,450.50 ",400002,Chaps Payments
5380803,AD HOC CHAPS PAYMENT,Multiple Heads of Service,Multiple Strategic Directorates,Salaries & Wages Advances(Hold),,24/04/2020, 958.12 ,400002,Chaps Payments
5381791,AD HOC CHAPS PAYMENT,Multiple Heads of Service,Multiple Strategic Directorates,Debits Superann Local Govt,,07/05/2020," 498,232.64 ",400002,Chaps Payments
5381791,AD HOC CHAPS PAYMENT,(blank),(blank),Debits Superann Local Govt,,07/05/2020," 1,099.97 ",400002,Chaps Payments
5381790,AD HOC CHAPS PAYMENT,(blank),(blank),Contribution,,07/05/2020," 1,870,000.00 ",400002,Chaps Payments
5382535,AD HOC CHAPS PAYMENT,Multiple Heads of Service,Multiple Strategic Directorates,Debits Superann Teachers,,27/05/2020," 1,160,381.75 ",400002,Chaps Payments
5383480,AD HOC CHAPS PAYMENT,Multiple Heads of Service,Multiple Strategic Directorates,Salaries & Wages Advances(Hold),,27/05/2020," 1,727.40 ",400002,Chaps Payments
5383682,AD HOC CHAPS PAYMENT,Multiple Heads of Service,Multiple Strategic Directorates,Salaries & Wages Advances(Hold),,27/05/2020, 534.03 ,400002,Chaps Payments
5383679,AD HOC CHAPS PAYMENT,Contingency,Contingency,Computer Software,,27/05/2020, 784.00 ,400002,Chaps Payments
5382538,AD HOC CHAPS PAYMENT,Multiple Heads of Service,Multiple Strategic Directorates,Salaries & Wages Advances(Hold),,27/05/2020," 1,250.00 ",400002,Chaps Payments
5384854,AD HOC CHAPS PAYMENT,Multiple Heads of Service,Multiple Strategic Directorates,Debits Superann Teachers,,05/06/2020," 1,153,916.42 ",400002,Chaps Payments
5384185,AD HOC CHAPS PAYMENT,Multiple Heads of Service,Multiple Strategic Directorates,Debits Superann Local Govt,,05/06/2020," 501,042.02 ",400002,Chaps Payments
5384185,AD HOC CHAPS PAYMENT,(blank),(blank),Debits Superann Local Govt,,05/06/2020," 1,185.81 ",400002,Chaps Payments
5376368,ADCS LTD,Childrens Services,Children's Services,Contributions,,03/04/2020," 2,633.00 ",200000,Financial Services
5378997,Adlard Transport LTD,Education,Children's Services,Transport Of Pupils,,06/04/2020," 2,200.00 ",360000,Public Transport
5378998,Adlard Transport LTD,Education,Children's Services,Transport Of Pupils,,06/04/2020," 2,200.00 ",360000,Public Transport
5381909,Adlard Transport LTD,Education,Children's Services,Transport Of Pupils,,06/05/2020," 1,200.00 ",360000,Public Transport
5383206,Adlard Transport LTD,Education,Children's Services,Transport Of Pupils,,21/05/2020," 1,200.00 ",360000,Public Transport
5384893,Adlard Transport LTD,Education,Children's Services,Transport Of Pupils,,08/06/2020," 1,500.00 ",360000,Public Transport
5384886,Adlard Transport LTD,Education,Children's Services,Transport Of Pupils,,08/06/2020," 1,500.00 ",360000,Public Transport
5379554,ADOPTION FOCUS,Childrens Services,Children's Services,Adoption Agency Fees,,09/04/2020," 69,360.00 ",322000,Social Community Care Supplies & Services - Children
5376011,ADOPTION MATTERS NORTHWEST,Childrens Services,Children's Services,Foster Carer Agency Fees,,01/04/2020," 19,734.00 ",321100,Social Community Care Supplies & Services - Children
5378243,ADOPTION MATTERS NORTHWEST,Childrens Services,Children's Services,Adoption Agency Fees,,03/04/2020," 54,900.00 ",321100,Social Community Care Supplies & Services - Children
5378800,ADOPTION MATTERS NORTHWEST,Childrens Services,Children's Services,Foster Carer Agency Fees,,03/04/2020," 9,866.00 ",321100,Social Community Care Supplies & Services - Children
5377704,ADOPTION MATTERS NORTHWEST,Childrens Services,Children's Services,Adoption Agency Fees,,03/04/2020," 1,754.00 ",321100,Social Community Care Supplies & Services - Children
5380961,ADOPTION MATTERS NORTHWEST,Childrens Services,Children's Services,Adoption Agency Fees,,29/04/2020," 1,754.00 ",321100,Social Community Care Supplies & Services - Children
5381731,ADOPTION MATTERS NORTHWEST,Childrens Services,Children's Services,Foster Carer Agency Fees,,06/05/2020," 10,003.00 ",321100,Social Community Care Supplies & Services - Children
5383249,ADOPTION MATTERS NORTHWEST,Childrens Services,Children's Services,Adoption Agency Fees,,22/05/2020," 1,778.00 ",321100,Social Community Care Supplies & Services - Children
5383851,ADOPTION MATTERS NORTHWEST,Childrens Services,Children's Services,Foster Carer Agency Fees,,01/06/2020," 10,003.00 ",321100,Social Community Care Supplies & Services - Children
5385314,ADOPTION MATTERS NORTHWEST,Childrens Services,Children's Services,Adoption Agency Fees,,12/06/2020," 20,144.00 ",321100,Social Community Care Supplies & Services - Children
5385719,ADOPTION MATTERS NORTHWEST,Childrens Services,Children's Services,Adoption Agency Fees,,17/06/2020," 1,778.00 ",321100,Social Community Care Supplies & Services - Children
5380905,ADULLAM HOMES HOUSING ASSOC LTD,Operations and Neighbourhoods,Operations and Neighbourhoods,Supporting People Gross Contract,,28/04/2020," 8,000.00 ",321000,Social Community Care Supplies & Services - Adult
5380907,ADULLAM HOMES HOUSING ASSOC LTD,Operations and Neighbourhoods,Operations and Neighbourhoods,Supporting People Gross Contract,,28/04/2020," 63,250.00 ",321000,Social Community Care Supplies & Services - Adult
5385033,ADULLAM HOMES HOUSING ASSOC LTD,Operations and Neighbourhoods,Operations and Neighbourhoods,Supporting People Gross Contract,,09/06/2020," 8,000.00 ",321000,Social Community Care Supplies & Services - Adult
5385034,ADULLAM HOMES HOUSING ASSOC LTD,Operations and Neighbourhoods,Operations and Neighbourhoods,Supporting People Gross Contract,,09/06/2020," 63,250.00 ",321000,Social Community Care Supplies & Services - Adult
460396,Advinia Care Homes Ltd t/a Mill View Care Home,Adult Social Care,Adults,Nursing Home Long Stay Fees,,28/04/2020," 1,595.69 ",-999999,Unclassifiable
3250756,AEBI SCHMIDT UK LTD,Transport,Director of Place,Debits Goods Received,,09/04/2020, 515.57 ,380000,Vehicle Management
3250757,AEBI SCHMIDT UK LTD,Operations and Neighbourhoods,Operations and Neighbourhoods,General Materials,,16/04/2020, 678.37 ,380000,Vehicle Management
3250758,AEBI SCHMIDT UK LTD,Operations and Neighbourhoods,Operations and Neighbourhoods,General Materials,,23/04/2020," 1,469.27 ",380000,Vehicle Management
3250760,AEBI SCHMIDT UK LTD,Operations and Neighbourhoods,Operations and Neighbourhoods,General Materials,,11/05/2020, 855.95 ,380000,Vehicle Management
3250764,AEBI SCHMIDT UK LTD,Operations and Neighbourhoods,Operations and Neighbourhoods,General Materials,,04/06/2020," 1,357.72 ",380000,Vehicle Management
5378565,AFFINITY TRUST,Adult Social Care,Adults,Homecare Fees,,03/04/2020," 2,100.00 ",321000,Social Community Care Supplies & Services - Adult
5378680,AFFINITY TRUST,Adult Social Care,Adults,Homecare Fees,,03/04/2020," 141,032.17 ",321000,Social Community Care Supplies & Services - Adult
5378566,AFFINITY TRUST,Adult Social Care,Adults,Day Centre Fees,,03/04/2020," 1,573.25 ",321000,Social Community Care Supplies & Services - Adult
5378690,AFFINITY TRUST,Adult Social Care,Adults,Homecare Fees,,03/04/2020," 2,271.86 ",321000,Social Community Care Supplies & Services - Adult
5378564,AFFINITY TRUST,Adult Social Care,Adults,Day Centre Fees,,03/04/2020," 4,495.00 ",321000,Social Community Care Supplies & Services - Adult
5378689,AFFINITY TRUST,Adult Social Care,Adults,Homecare Fees,,03/04/2020," 2,125.29 ",321000,Social Community Care Supplies & Services - Adult
5378567,AFFINITY TRUST,Adult Social Care,Adults,Homecare Fees,,06/04/2020, 675.00 ,321000,Social Community Care Supplies & Services - Adult
5378679,AFFINITY TRUST,Adult Social Care,Adults,Homecare Fees,,06/04/2020, 737.76 ,321000,Social Community Care Supplies & Services - Adult
5378691,AFFINITY TRUST,Adult Social Care,Adults,Homecare Fees,,06/04/2020, 737.76 ,321000,Social Community Care Supplies & Services - Adult
5379688,AFFINITY TRUST,Adult Social Care,Adults,Homecare Fees,,14/04/2020," 6,006.86 ",321000,Social Community Care Supplies & Services - Adult
5379689,AFFINITY TRUST,Adult Social Care,Adults,Day Care Fees,,20/04/2020," 8,331.09 ",321000,Social Community Care Supplies & Services - Adult
5374742,AFFINITY WORKFORCE SOLUTIONS LIMITED T/A Monarch Education,Education,Children's Services,Independent School Fees,,01/04/2020, 500.00 ,170000,Education
5375735,AFFINITY WORKFORCE SOLUTIONS LIMITED T/A Monarch Education,Education,Children's Services,Independent School Fees,,01/04/2020, 500.00 ,170000,Education
5375856,AGE UK TAMESIDE,Adult Social Care,Adults,Professional Services,,01/04/2020," 100,565.00 ",180000,Environmental Services
5376097,AGGREGATE INDUSTRIES UK LIMITED,(blank),(blank),Highway Construction,,01/04/2020," 50,317.34 ",230000,Highway Equipment & Materials
470852,AGGREGATE INDUSTRIES UK LIMITED,Operations and Neighbourhoods,Operations and Neighbourhoods,General Materials,,06/04/2020," 6,026.25 ",230000,Highway Equipment & Materials
470853,AGGREGATE INDUSTRIES UK LIMITED,Operations and Neighbourhoods,Operations and Neighbourhoods,General Materials,,15/04/2020," 14,949.95 ",230000,Highway Equipment & Materials
470854,AGGREGATE INDUSTRIES UK LIMITED,Operations and Neighbourhoods,Operations and Neighbourhoods,General Materials,,20/04/2020," 7,164.21 ",230000,Highway Equipment & Materials
5380250,AGGREGATE INDUSTRIES UK LIMITED,(blank),(blank),Highway Construction,,20/04/2020," 2,394.85 ",230000,Highway Equipment & Materials
470855,AGGREGATE INDUSTRIES UK LIMITED,Operations and Neighbourhoods,Operations and Neighbourhoods,General Materials,,27/04/2020," 15,634.23 ",230000,Highway Equipment & Materials
470856,AGGREGATE INDUSTRIES UK LIMITED,Operations and Neighbourhoods,Operations and Neighbourhoods,General Materials,,04/05/2020," 12,887.95 ",230000,Highway Equipment & Materials
470857,AGGREGATE INDUSTRIES UK LIMITED,Operations and Neighbourhoods,Operations and Neighbourhoods,General Materials,,11/05/2020," 9,554.46 ",230000,Highway Equipment & Materials
470858,AGGREGATE INDUSTRIES UK LIMITED,Operations and Neighbourhoods,Operations and Neighbourhoods,General Materials,,20/05/2020," 10,089.19 ",230000,Highway Equipment & Materials
470859,AGGREGATE INDUSTRIES UK LIMITED,Operations and Neighbourhoods,Operations and Neighbourhoods,General Materials,,26/05/2020," 4,129.32 ",230000,Highway Equipment & Materials
470860,AGGREGATE INDUSTRIES UK LIMITED,Operations and Neighbourhoods,Operations and Neighbourhoods,General Materials,,01/06/2020," 9,713.87 ",230000,Highway Equipment & Materials
470861,AGGREGATE INDUSTRIES UK LIMITED,Operations and Neighbourhoods,Operations and Neighbourhoods,General Materials,,08/06/2020," 9,760.53 ",230000,Highway Equipment & Materials
470862,AGGREGATE INDUSTRIES UK LIMITED,Operations and Neighbourhoods,Operations and Neighbourhoods,General Materials,,15/06/2020," 11,125.45 ",230000,Highway Equipment & Materials
470863,AGGREGATE INDUSTRIES UK LIMITED,Operations and Neighbourhoods,Operations and Neighbourhoods,General Materials,,22/06/2020," 7,201.91 ",230000,Highway Equipment & Materials
470864,AGGREGATE INDUSTRIES UK LIMITED,Operations and Neighbourhoods,Operations and Neighbourhoods,General Materials,,30/06/2020," 5,695.97 ",230000,Highway Equipment & Materials
5383929,Agilyx UK LTD,People and Workforce Development,Governance,Professional Consultancy Services,,02/06/2020," 2,375.00 ",150000,Consultancy
5384470,Agilyx UK LTD,People and Workforce Development,Governance,Professional Consultancy Services,,03/06/2020," 1,425.00 ",150000,Consultancy
5385862,Agilyx UK LTD,People and Workforce Development,Governance,Professional Consultancy Services,,19/06/2020, 950.00 ,150000,Consultancy
5380969,AGRICULTURAL AND RURAL CENTRE CIC,Education,Children's Services,Independent School Fees,,29/04/2020," 2,640.00 ",170000,Education
5380951,AGRICULTURAL AND RURAL CENTRE CIC,Education,Children's Services,Independent School Fees,,29/04/2020, 960.00 ,170000,Education
5380968,AGRICULTURAL AND RURAL CENTRE CIC,Education,Children's Services,Independent School Fees,,29/04/2020," 1,440.00 ",170000,Education
5380952,AGRICULTURAL AND RURAL CENTRE CIC,Education,Children's Services,Independent School Fees,,29/04/2020, 960.00 ,170000,Education
5380950,AGRICULTURAL AND RURAL CENTRE CIC,Education,Children's Services,Independent School Fees,,29/04/2020, 960.00 ,170000,Education
5380971,AGRICULTURAL AND RURAL CENTRE CIC,Education,Children's Services,Independent School Fees,,29/04/2020," 3,600.00 ",170000,Education
5380949,AGRICULTURAL AND RURAL CENTRE CIC,Education,Children's Services,Independent School Fees,,29/04/2020," 3,360.00 ",170000,Education
5385733,AGRICULTURAL AND RURAL CENTRE CIC,Education,Children's Services,Independent School Fees,,17/06/2020, 960.00 ,170000,Education
5378247,AIDAN GAUNT FUNERAL DIRECTORS,Operations and Neighbourhoods,Operations and Neighbourhoods,Professional Services,,06/04/2020," 1,340.00 ",-999999,Unclassifiable
5378250,AIDAN GAUNT FUNERAL DIRECTORS,Operations and Neighbourhoods,Operations and Neighbourhoods,Professional Services,,06/04/2020," 1,340.00 ",-999999,Unclassifiable
5378249,AIDAN GAUNT FUNERAL DIRECTORS,Operations and Neighbourhoods,Operations and Neighbourhoods,Professional Services,,06/04/2020," 1,340.00 ",-999999,Unclassifiable
5378248,AIDAN GAUNT FUNERAL DIRECTORS,Operations and Neighbourhoods,Operations and Neighbourhoods,Professional Services,,06/04/2020," 1,340.00 ",-999999,Unclassifiable
5378251,AIDAN GAUNT FUNERAL DIRECTORS,Operations and Neighbourhoods,Operations and Neighbourhoods,Professional Services,,06/04/2020," 1,340.00 ",-999999,Unclassifiable
5380650,AIDAN GAUNT FUNERAL DIRECTORS,Operations and Neighbourhoods,Operations and Neighbourhoods,Professional Services,,30/04/2020," 1,452.00 ",-999999,Unclassifiable
5385848,Aitkens Sportsturf Ltd,Operations and Neighbourhoods,Operations and Neighbourhoods,General Materials,,23/06/2020," 7,675.00 ",240000,Horticultural
5376085,Albert Hall Nottingham Limited,Hosted Services,Hosted Services,Conference/Seminar Expenses,,01/04/2020," 2,115.00 ",-999999,Unclassifiable
5374801,ALPHA PLUS FOSTERING LIMITED,Childrens Services,Children's Services,Foster Carer Agency Fees,,01/04/2020, 900.00 ,321000,Social Community Care Supplies & Services - Adult
5379833,ALPHA PLUS FOSTERING LIMITED,Childrens Services,Children's Services,Foster Carer Agency Fees,,15/04/2020," 3,100.00 ",321000,Social Community Care Supplies & Services - Adult
5381423,ALPHA PLUS FOSTERING LIMITED,Childrens Services,Children's Services,Foster Carer Agency Fees,,04/05/2020," 3,492.90 ",321000,Social Community Care Supplies & Services - Adult
5383211,ALPHA PLUS FOSTERING LIMITED,Childrens Services,Children's Services,Foster Carer Agency Fees,,21/05/2020," 3,143.61 ",321000,Social Community Care Supplies & Services - Adult
5384385,ALPHA PLUS FOSTERING LIMITED,Childrens Services,Children's Services,Foster Carer Agency Fees,,03/06/2020," 3,609.33 ",321000,Social Community Care Supplies & Services - Adult
5378216,ALTERNATIVE FUTURES GROUP,Adult Social Care,Adults,Homecare Fees,,03/04/2020, 558.10 ,321000,Social Community Care Supplies & Services - Adult
5378214,ALTERNATIVE FUTURES GROUP,Adult Social Care,Adults,Homecare Fees,,03/04/2020, 930.16 ,321000,Social Community Care Supplies & Services - Adult
470858,ALTITUDE SERVICES,Operations and Neighbourhoods,Operations and Neighbourhoods,General Materials,,20/05/2020," 4,802.40 ",230000,Highway Equipment & Materials
470858,ALTITUDE SERVICES,Operations and Neighbourhoods,Operations and Neighbourhoods,Sub-contractor Services,,20/05/2020," 12,966.48 ",230000,Highway Equipment & Materials
5383217,Alzheimers Society,Adult Social Care,Adults,Project Costs,,21/05/2020," 27,145.00 ",-999999,Unclassifiable
5374753,AMARA CARE LTD,Adult Social Care,Adults,Day Care Fees,,01/04/2020," 9,128.02 ",321000,Social Community Care Supplies & Services - Adult
5374754,AMARA CARE LTD,Adult Social Care,Adults,Homecare Fees,,01/04/2020," 5,907.59 ",321000,Social Community Care Supplies & Services - Adult
5381707,AMARA CARE LTD,Adult Social Care,Adults,Homecare Fees,,05/05/2020," 9,871.80 ",321000,Social Community Care Supplies & Services - Adult
5381703,AMARA CARE LTD,Adult Social Care,Adults,Homecare Fees,,05/05/2020," 6,913.50 ",321000,Social Community Care Supplies & Services - Adult
5384459,AMARA CARE LTD,Adult Social Care,Adults,Homecare Fees,,03/06/2020," 7,143.95 ",321000,Social Community Care Supplies & Services - Adult
5384460,AMARA CARE LTD,Adult Social Care,Adults,Homecare Fees,,03/06/2020," 10,200.86 ",321000,Social Community Care Supplies & Services - Adult
5385149,AMARA CARE LTD,Adult Social Care,Adults,Day Care Fees,,10/06/2020," 9,757.54 ",321000,Social Community Care Supplies & Services - Adult
5385150,AMARA CARE LTD,Adult Social Care,Adults,Homecare Fees,,15/06/2020," 6,315.01 ",321000,Social Community Care Supplies & Services - Adult
5384580,Amber Family Limited,Childrens Services,Children's Services,Childrens Homes Outside Local Authority Fees,,04/06/2020," 18,057.00 ",321000,Social Community Care Supplies & Services - Adult
5365347,AMJ Support Services,Childrens Services,Children's Services,Living With Formal Support,,21/04/2020," 5,001.74 ",100000,Building Construction Materials
5372256,AMJ Support Services,Childrens Services,Children's Services,Living With Formal Support,,21/04/2020," 3,086.18 ",100000,Building Construction Materials
5375944,AMJ Support Services,Childrens Services,Children's Services,Living With Formal Support,,21/04/2020," 3,299.02 ",100000,Building Construction Materials
5374502,AMJ Support Services,Childrens Services,Children's Services,Living With Formal Support,,21/04/2020," 3,299.02 ",100000,Building Construction Materials
5379545,ANEW APPROACH COMMUNITY INTEREST COMPANY,Operations and Neighbourhoods,Operations and Neighbourhoods,Provision for Supporting People,,09/04/2020," 121,759.00 ",260000,Human Resources
5374669,ANGLIA DNA SERVICES LTD,Childrens Services,Children's Services,Professional Medical Services,,01/04/2020," 1,240.00 ",180000,Environmental Services
5374670,ANGLIA DNA SERVICES LTD,Childrens Services,Children's Services,Professional Medical Services,,01/04/2020," 1,310.00 ",180000,Environmental Services
5377783,ANGLIA DNA SERVICES LTD,Childrens Services,Children's Services,Professional Medical Services,,29/04/2020, 864.00 ,180000,Environmental Services
5378804,ANIMAL WARDENS LTD,Operations and Neighbourhoods,Operations and Neighbourhoods,Professional Consultancy Services,,07/04/2020, 578.00 ,180000,Environmental Services
5384973,ANIMAL WARDENS LTD,Operations and Neighbourhoods,Operations and Neighbourhoods,Professional Consultancy Services,,11/06/2020, 559.00 ,180000,Environmental Services
5384955,ANIMAL WARDENS LTD,Operations and Neighbourhoods,Operations and Neighbourhoods,Professional Consultancy Services,,11/06/2020, 559.00 ,180000,Environmental Services
470862,ANSCO SIGNS LIMITED,Operations and Neighbourhoods,Operations and Neighbourhoods,General Materials,,15/06/2020," 1,091.30 ",230000,Highway Equipment & Materials
5377969,ANTHONY HALEY SAFEGUARDING LTD,Quality and Safeguarding,Quality and Safeguarding,Professional Services,,03/04/2020," 2,565.00 ",321000,Social Community Care Supplies & Services - Adult
5381330,ANTHONY HALEY SAFEGUARDING LTD,Quality and Safeguarding,Quality and Safeguarding,Professional Services,,01/05/2020," 15,750.00 ",321000,Social Community Care Supplies & Services - Adult
5379353,AON LIMITED,Finance,Finance & IT,Professional Services,,08/04/2020," 8,050.00 ",260000,Human Resources
5379004,AON LIMITED,Finance,Finance & IT,Professional Services,,08/04/2020," 5,000.00 ",260000,Human Resources
5379005,AON LIMITED,Finance,Finance & IT,Professional Services,,08/04/2020," 11,000.00 ",260000,Human Resources
5378793,APS Group,Operations and Neighbourhoods,Operations and Neighbourhoods,Professional Medical Services,,03/04/2020," 1,166.76 ",-999999,Unclassifiable
5376336,APS Group,Operations and Neighbourhoods,Operations and Neighbourhoods,Professional Medical Services,,03/04/2020, 640.08 ,-999999,Unclassifiable
5381217,APS Group,Operations and Neighbourhoods,Operations and Neighbourhoods,Professional Medical Services,,01/05/2020, 508.25 ,-999999,Unclassifiable
5377318,APT SKIDATA LTD,Operations and Neighbourhoods,Operations and Neighbourhoods,Miscellaneous Expenses,,03/04/2020," 5,585.17 ",-999999,Unclassifiable
5381824,AQUINAS COLLEGE,Education,Children's Services,Post 16 FE College Fees,,06/05/2020," 6,336.00 ",-999999,Unclassifiable
5385246,ARC4 LIMITED,Place,Growth,Professional Consultancy Services,,11/06/2020," 4,600.00 ",151711,Housing Management
5380885,ARCC HR Limited,Hosted Services,Hosted Services,Professional Services,,28/04/2020," 4,800.00 ",260000,Human Resources
5378520,ARCO LIMITED,Adult Social Care,Adults,Uniforms/Clothing,,03/04/2020, 604.50 ,140000,Clothing
5376930,ARCO LIMITED,Adult Social Care,Adults,Uniforms/Clothing,,03/04/2020," 1,007.50 ",140000,Clothing
5377791,ARCO LIMITED,Operations and Neighbourhoods,Operations and Neighbourhoods,Uniforms/Clothing,,03/04/2020, 824.84 ,140000,Clothing
5378114,ARCO LIMITED,Operations and Neighbourhoods,Operations and Neighbourhoods,Uniforms/Clothing,,03/04/2020," 1,046.65 ",140000,Clothing
5378109,ARCO LIMITED,Operations and Neighbourhoods,Operations and Neighbourhoods,Uniforms/Clothing,,03/04/2020," 1,009.40 ",140000,Clothing
5376660,ARCO LIMITED,Adult Social Care,Adults,It Equipment,,03/04/2020, 682.00 ,140000,Clothing
5376659,ARCO LIMITED,Operations and Neighbourhoods,Operations and Neighbourhoods,Uniforms/Clothing,,03/04/2020," 3,247.29 ",140000,Clothing
470854,ARCO LIMITED,Civil Engineers,Director of Place,Debits Goods Received,,20/04/2020," 1,334.37 ",140000,Clothing
470855,ARCO LIMITED,Operations and Neighbourhoods,Operations and Neighbourhoods,General Materials,,27/04/2020, 567.44 ,140000,Clothing
5381142,ARCO LIMITED,Adult Social Care,Adults,Uniforms/Clothing,,04/05/2020, 846.30 ,140000,Clothing
5383603,ARCO LIMITED,Adult Social Care,Adults,Uniforms/Clothing,,29/05/2020, 604.50 ,140000,Clothing
470860,ARCO LIMITED,Civil Engineers,Director of Place,Debits Goods Received,,01/06/2020, 666.15 ,140000,Clothing
470861,ARCO LIMITED,Civil Engineers,Director of Place,Debits Goods Received,,08/06/2020, 642.99 ,140000,Clothing
5370173,ARCO LIMITED,Operations and Neighbourhoods,Operations and Neighbourhoods,Protective Clothing,,09/06/2020," 5,315.00 ",140000,Clothing
5386465,ARCO LIMITED,Operations and Neighbourhoods,Operations and Neighbourhoods,Uniforms/Clothing,,26/06/2020, 865.20 ,140000,Clothing
3250756,ARNOLD CLARK VEHICLE MANAGEMENT,Operations and Neighbourhoods,Operations and Neighbourhoods,Core Hire,,09/04/2020," 3,038.88 ",-999999,Unclassifiable
3250755,ARNOLD PLANT HIRE LTD,Operations and Neighbourhoods,Operations and Neighbourhoods,Additional Hire,,01/04/2020," 1,864.00 ",UNCLASS,Unclassifiable
3250758,ARNOLD PLANT HIRE LTD,Operations and Neighbourhoods,Operations and Neighbourhoods,Additional Hire,,23/04/2020, 700.00 ,UNCLASS,Unclassifiable
3250760,ARNOLD PLANT HIRE LTD,Operations and Neighbourhoods,Operations and Neighbourhoods,Additional Hire,,11/05/2020," 2,368.00 ",UNCLASS,Unclassifiable
3250761,ARNOLD PLANT HIRE LTD,Operations and Neighbourhoods,Operations and Neighbourhoods,Additional Hire,,15/05/2020, 836.00 ,UNCLASS,Unclassifiable
3250763,ARNOLD PLANT HIRE LTD,Operations and Neighbourhoods,Operations and Neighbourhoods,Additional Hire,,28/05/2020, 756.00 ,UNCLASS,Unclassifiable
3250764,ARNOLD PLANT HIRE LTD,Operations and Neighbourhoods,Operations and Neighbourhoods,Additional Hire,,04/06/2020," 1,260.00 ",UNCLASS,Unclassifiable
3250765,ARNOLD PLANT HIRE LTD,Operations and Neighbourhoods,Operations and Neighbourhoods,Additional Hire,,11/06/2020, 756.00 ,UNCLASS,Unclassifiable
3250766,ARNOLD PLANT HIRE LTD,Operations and Neighbourhoods,Operations and Neighbourhoods,Additional Hire,,18/06/2020," 1,260.00 ",UNCLASS,Unclassifiable
3250764,ARNOLD PLANT HIRE LTD (PURCHASES),Transport,Director of Place,Plant & Equipment,,09/06/2020," 53,604.00 ",380000,Vehicle Management
5378593,Arrow Cabs LTD,Education,Children's Services,Transport Of Ola Pupils,,03/04/2020," 4,070.00 ",360000,Public Transport
5378700,Arrow Cabs LTD,Education,Children's Services,Transport Of Ola Pupils,,03/04/2020," 3,850.00 ",360000,Public Transport
5381454,Arrow Cabs LTD,Education,Children's Services,Transport Of Ola Pupils,,05/05/2020," 2,220.00 ",360000,Public Transport
5381453,Arrow Cabs LTD,Education,Children's Services,Transport Of Ola Pupils,,05/05/2020," 1,925.00 ",360000,Public Transport
5383497,Arrow Cabs LTD,Education,Children's Services,Transport Of Ola Pupils,,27/05/2020," 2,625.00 ",360000,Public Transport
5383751,Arrow Cabs LTD,Education,Children's Services,Transport Of Ola Pupils,,02/06/2020," 2,775.00 ",360000,Public Transport
5386342,"Articulate Global, Inc",Digital Tameside,Finance & IT,Computer Software,,22/06/2020," 2,496.78 ",400000,Non 3rd Party spend  
5382803,ASCENDANT LIFTS LIMITED,Adult Social Care,Adults,Building Repairs,,15/05/2020, 850.00 ,190000,Facilities & Management Services
5378228,ASCENDANT LIFTS LIMITED,Adult Social Care,Adults,Building Repairs,,15/05/2020, 850.00 ,190000,Facilities & Management Services
5377403,ASHTON PIONEER HOMES,Place,Growth,Contributions,,01/04/2020," 2,939.30 ",191700,Facilities & Management Services
5380699,ASHTON PIONEER HOMES,Operations and Neighbourhoods,Operations and Neighbourhoods,Miscellaneous Expenses,,24/04/2020," 3,904.75 ",191700,Facilities & Management Services
5381955,ASHTON PIONEER HOMES,Place,Growth,Contributions,,07/05/2020," 2,846.55 ",191700,Facilities & Management Services
5381511,ASHTON PIONEER HOMES,Operations and Neighbourhoods,Operations and Neighbourhoods,Miscellaneous Expenses,,11/05/2020," 3,904.75 ",191700,Facilities & Management Services
5385665,ASHTON PIONEER HOMES,Operations and Neighbourhoods,Operations and Neighbourhoods,Miscellaneous Expenses,,17/06/2020," 3,904.75 ",191700,Facilities & Management Services
5376399,ASHTON SIXTH FORM COLLEGE,Education,Children's Services,Post 16 FE College Fees,,03/04/2020," 10,679.00 ",UNCLASS,Unclassifiable
5376401,ASHTON SIXTH FORM COLLEGE,Education,Children's Services,Post 16 FE College Fees,,03/04/2020," 10,679.00 ",UNCLASS,Unclassifiable
5381012,ASHTON SIXTH FORM COLLEGE,Education,Children's Services,Post 16 FE College Fees,,29/04/2020," 1,854.00 ",UNCLASS,Unclassifiable
5381011,ASHTON SIXTH FORM COLLEGE,Education,Children's Services,Post 16 FE College Fees,,29/04/2020," 10,678.00 ",UNCLASS,Unclassifiable
5378142,ASONE DESIGN LIMITED,Operations and Neighbourhoods,Operations and Neighbourhoods,General Materials,,03/04/2020, 600.00 ,190000,Facilities & Management Services
5376359,Astro Ceilings,Childrens Services,Children's Services,Cash Grants,,03/04/2020, 910.00 ,409999,Social Community Care Supplies & Services - Children
5382665,ATKINS LIMITED,(blank),(blank),Engineers - Internal Recharge,,14/05/2020," 9,860.51 ",180000,Environmental Services
5385700,ATKINS LIMITED,(blank),(blank),Engineers - Internal Recharge,,18/06/2020," 7,948.29 ",180000,Environmental Services
5379737,ATLAS TRADING GROUP LTD,Operations and Neighbourhoods,Operations and Neighbourhoods,General Equipment Purchase,,14/04/2020, 697.84 ,100000,Building Construction Materials
5379874,ATLAS TRADING GROUP LTD,Operations and Neighbourhoods,Operations and Neighbourhoods,General Equipment Purchase,,16/04/2020, 697.84 ,100000,Building Construction Materials
5380687,ATLAS TRADING GROUP LTD,Operations and Neighbourhoods,Operations and Neighbourhoods,General Equipment Purchase,,01/05/2020," 3,445.20 ",100000,Building Construction Materials
5380660,ATLAS TRADING GROUP LTD,Operations and Neighbourhoods,Operations and Neighbourhoods,General Equipment Purchase,,01/05/2020, 697.84 ,100000,Building Construction Materials
5380703,ATLAS TRADING GROUP LTD,Operations and Neighbourhoods,Operations and Neighbourhoods,General Materials,,01/05/2020, 867.84 ,100000,Building Construction Materials
5380659,ATLAS TRADING GROUP LTD,Operations and Neighbourhoods,Operations and Neighbourhoods,General Equipment Purchase,,01/05/2020, 697.84 ,100000,Building Construction Materials
5375851,AUDACIOUS CHURCH LTD,Hosted Services,Hosted Services,Conference/Seminar Expenses,,01/04/2020," 2,350.00 ",400001,Charities and Voluntary Organisations
5376303,AUDEN HOUSE RESIDENTIAL HOME,Place,Growth,Contributions,,03/04/2020," 2,389.28 ",321000,Social Community Care Supplies & Services - Adult
460396,AUDEN HOUSE RESIDENTIAL HOME,Adult Social Care,Adults,Nursing Home Long Stay Fees,,28/04/2020," 17,946.37 ",321000,Social Community Care Supplies & Services - Adult
460396,AUDEN HOUSE RESIDENTIAL HOME,Contingency,Contingency,Nursing Home Long Stay Fees,,28/04/2020," 2,421.88 ",321000,Social Community Care Supplies & Services - Adult
460399,AUDEN HOUSE RESIDENTIAL HOME,Adult Social Care,Adults,Nursing Home Long Stay Fees,,27/05/2020," 22,059.97 ",321000,Social Community Care Supplies & Services - Adult
5383440,AUDEN HOUSE RESIDENTIAL HOME,Place,Growth,Contributions,,27/05/2020," 2,509.20 ",321000,Social Community Care Supplies & Services - Adult
460402,AUDEN HOUSE RESIDENTIAL HOME,Contingency,Contingency,Nursing Home Long Stay Fees,,17/06/2020," 11,699.95 ",321000,Social Community Care Supplies & Services - Adult
460403,AUDEN HOUSE RESIDENTIAL HOME,Adult Social Care,Adults,Nursing Home Long Stay Fees,,25/06/2020," 23,481.87 ",321000,Social Community Care Supplies & Services - Adult
5376776,AUDIOFACE LTD,Operations and Neighbourhoods,Operations and Neighbourhoods,Professional Services,,03/04/2020," 1,475.00 ",279999,Information Communication Technology
5375644,AUTISM INITIATIVES (UK),Adult Social Care,Adults,Supporting People Gross Contract,,01/04/2020," 2,899.68 ",321100,Social Community Care Supplies & Services - Children
5375646,AUTISM INITIATIVES (UK),Adult Social Care,Adults,Supporting People Gross Contract,,01/04/2020," 2,899.68 ",321100,Social Community Care Supplies & Services - Children
5375648,AUTISM INITIATIVES (UK),Adult Social Care,Adults,Supporting People Gross Contract,,01/04/2020, 908.28 ,321100,Social Community Care Supplies & Services - Children
5377927,AUTISM INITIATIVES (UK),Adult Social Care,Adults,Supporting People Gross Contract,,03/04/2020," 2,899.68 ",321100,Social Community Care Supplies & Services - Children
5377926,AUTISM INITIATIVES (UK),Adult Social Care,Adults,Supporting People Gross Contract,,03/04/2020, 908.28 ,321100,Social Community Care Supplies & Services - Children
5377925,AUTISM INITIATIVES (UK),Adult Social Care,Adults,Supporting People Gross Contract,,03/04/2020," 2,899.68 ",321100,Social Community Care Supplies & Services - Children
5380962,AUTISM INITIATIVES (UK),Adult Social Care,Adults,Homecare Fees,,30/04/2020," 2,899.68 ",321100,Social Community Care Supplies & Services - Children
5380964,AUTISM INITIATIVES (UK),Adult Social Care,Adults,Homecare Fees,,30/04/2020," 2,899.68 ",321100,Social Community Care Supplies & Services - Children
5380963,AUTISM INITIATIVES (UK),Adult Social Care,Adults,Homecare Fees,,30/04/2020, 908.28 ,321100,Social Community Care Supplies & Services - Children
5382981,AUTISM INITIATIVES (UK),Adult Social Care,Adults,Homecare Fees,,20/05/2020," 2,899.68 ",321100,Social Community Care Supplies & Services - Children
5382984,AUTISM INITIATIVES (UK),Adult Social Care,Adults,Homecare Fees,,20/05/2020, 908.28 ,321100,Social Community Care Supplies & Services - Children
5382986,AUTISM INITIATIVES (UK),Adult Social Care,Adults,Homecare Fees,,20/05/2020," 2,899.68 ",321100,Social Community Care Supplies & Services - Children
5385653,AUTISM INITIATIVES (UK),Adult Social Care,Adults,Homecare Fees,,17/06/2020, 908.28 ,321100,Social Community Care Supplies & Services - Children
5385654,AUTISM INITIATIVES (UK),Adult Social Care,Adults,Homecare Fees,,17/06/2020," 2,899.68 ",321100,Social Community Care Supplies & Services - Children
5385652,AUTISM INITIATIVES (UK),Adult Social Care,Adults,Homecare Fees,,17/06/2020," 2,899.68 ",321100,Social Community Care Supplies & Services - Children
5377219,AUTOMATIC ALARMS LTD,Operations and Neighbourhoods,Operations and Neighbourhoods,Building Maintenance,,03/04/2020," 1,097.59 ",190000,Facilities & Management Services
5379127,AUTOMATIC ALARMS LTD,Operations and Neighbourhoods,Operations and Neighbourhoods,Building Maintenance,,08/04/2020, 501.08 ,190000,Facilities & Management Services
3250766,AUTOSMART INTERNATIONAL,Operations and Neighbourhoods,Operations and Neighbourhoods,General Equipment Repair & Maintenance,,18/06/2020, 515.50 ,380000,Vehicle Management
5379752,AUTUMN (UK) 2017 LIMITED,Housing,Director of Place,Mandatory Adaptations Grant (DFG),,15/04/2020," 4,453.50 ",321000,Social Community Care Supplies & Services - Adult
5379840,AUTUMN (UK) 2017 LIMITED,Housing,Director of Place,Mandatory Adaptations Grant (DFG),,15/04/2020," 4,265.00 ",321000,Social Community Care Supplies & Services - Adult
5380447,AUTUMN (UK) 2017 LIMITED,Housing,Director of Place,Mandatory Adaptations Grant (DFG),,23/04/2020," 4,029.00 ",321000,Social Community Care Supplies & Services - Adult
5383129,AUTUMN (UK) 2017 LIMITED,Housing,Director of Place,Mandatory Adaptations Grant (DFG),,27/05/2020," 4,616.00 ",321000,Social Community Care Supplies & Services - Adult
5383623,AUTUMN (UK) 2017 LIMITED,Housing,Director of Place,Mandatory Adaptations Grant (DFG),,29/05/2020," 4,407.08 ",321000,Social Community Care Supplies & Services - Adult
5385976,AUTUMN (UK) 2017 LIMITED,Housing,Director of Place,Mandatory Adaptations Grant (DFG),,22/06/2020," 3,981.00 ",321000,Social Community Care Supplies & Services - Adult
5386289,AUTUMN (UK) 2017 LIMITED,Housing,Director of Place,Mandatory Adaptations Grant (DFG),,23/06/2020," 4,044.88 ",321000,Social Community Care Supplies & Services - Adult
5386569,AUTUMN (UK) 2017 LIMITED,Housing,Director of Place,Mandatory Adaptations Grant (DFG),,26/06/2020," 3,554.00 ",321000,Social Community Care Supplies & Services - Adult
5380534,Aventis Solutions,Contingency,Contingency,Purchase General Office Equipment,,23/04/2020," 15,200.00 ",311300,Healthcare
5381236,Avid Plc,Operations and Neighbourhoods,Operations and Neighbourhoods,General Materials,,30/04/2020, 508.00 ,-999999,Unclassifiable
5381358,AVTAR Properties - University Leeds,Childrens Services,Children's Services,Living Without Formal Support,,04/05/2020," 1,635.00 ",202000,Financial Services
29000093,AWBURN HOUSE MEDICAL PRACTICE,Population Health,Population Health,Local Enhanced Services,,21/05/2020, 724.00 ,150000,Consultancy
29000094,AWBURN HOUSE MEDICAL PRACTICE,Population Health,Population Health,Local Enhanced Services,,22/05/2020, 608.00 ,150000,Consultancy
5379842,AXIELL ALM LTD,Operations and Neighbourhoods,Operations and Neighbourhoods,Licences,,15/04/2020," 1,860.00 ",908001,Public Bodies
5376796,BACK CARE SOLUTIONS LTD,Childrens Services,Children's Services,"Fixtures, Fittings & Furniture Purchase",,03/04/2020, 772.00 ,310000,Healthcare
5381130,BACS PAYMENT SCHEMES LTD,Corporate Costs,Corporate Costs,Bank Commission,,07/05/2020," 3,500.00 ",200000,Financial Services
5380110,BAKER ROSS LIMITED,Childrens Services,Children's Services,"Activity (Materials, Trips)",,17/04/2020," 1,450.18 ",170000,Education
5377453,Balanced Counselling Ltd.,Education,Children's Services,Professional Services,,03/04/2020," 1,950.00 ",171011,Education
5377454,Balanced Counselling Ltd.,Education,Children's Services,Professional Services,,03/04/2020," 1,950.00 ",171011,Education
5377451,Balanced Counselling Ltd.,Education,Children's Services,Professional Services,,03/04/2020," 1,170.00 ",171011,Education
5377450,Balanced Counselling Ltd.,Education,Children's Services,Professional Services,,03/04/2020," 1,170.00 ",171011,Education
5377659,BALMERS GM LTD,Operations and Neighbourhoods,Operations and Neighbourhoods,General Materials,,03/04/2020," 3,051.00 ",241500,Horticultural
5382741,BANNER GROUP LIMITED,Contingency,Contingency,"Activity (Materials, Trips)",,21/05/2020, 611.00 ,340000,Stationery
5383605,BANNER GROUP LIMITED,Adult Social Care,Adults,"Fixtures, Fittings & Furniture Purchase",,28/05/2020, 672.00 ,340000,Stationery
5380734,Barbour Logic,Operations and Neighbourhoods,Operations and Neighbourhoods,General Materials,,27/04/2020," 9,188.00 ",-999999,Unclassifiable
5378502,BARCLAYCARD COMMERCIAL,Childrens Services,Children's Services,Procurement Hub Holding Account,,24/04/2020," 13,232.02 ",200000,Financial Services
5378502,BARCLAYCARD COMMERCIAL,Individual Schools Budget,Children's Services,Procurement Hub Holding Account,,24/04/2020," 1,571.90 ",200000,Financial Services
5378502,BARCLAYCARD COMMERCIAL,Operations and Neighbourhoods,Operations and Neighbourhoods,Procurement Hub Holding Account,,24/04/2020," 1,911.18 ",200000,Financial Services
5378502,BARCLAYCARD COMMERCIAL,Education,Children's Services,Procurement Hub Holding Account,,24/04/2020, 600.07 ,200000,Financial Services
5378502,BARCLAYCARD COMMERCIAL,Hosted Services,Hosted Services,Procurement Hub Holding Account,,24/04/2020," 1,005.51 ",200000,Financial Services
5378502,BARCLAYCARD COMMERCIAL,Digital Tameside,Finance & IT,Procurement Hub Holding Account,,24/04/2020, 839.79 ,200000,Financial Services
5378502,BARCLAYCARD COMMERCIAL,Finance,Finance & IT,Procurement Hub Holding Account,,24/04/2020, 979.50 ,200000,Financial Services
5380492,BARCLAYCARD COMMERCIAL,Childrens Services,Children's Services,Procurement Hub Holding Account,,24/04/2020," 19,181.74 ",200000,Financial Services
5380492,BARCLAYCARD COMMERCIAL,Individual Schools Budget,Children's Services,Procurement Hub Holding Account,,24/04/2020," 1,029.34 ",200000,Financial Services
5380492,BARCLAYCARD COMMERCIAL,Operations and Neighbourhoods,Operations and Neighbourhoods,Procurement Hub Holding Account,,24/04/2020," 2,176.75 ",200000,Financial Services
5380492,BARCLAYCARD COMMERCIAL,Education,Children's Services,Procurement Hub Holding Account,,24/04/2020, 781.06 ,200000,Financial Services
5380492,BARCLAYCARD COMMERCIAL,Hosted Services,Hosted Services,Procurement Hub Holding Account,,24/04/2020," 1,790.07 ",200000,Financial Services
5380492,BARCLAYCARD COMMERCIAL,Adult Social Care,Adults,Procurement Hub Holding Account,,24/04/2020," 1,814.79 ",200000,Financial Services
5380492,BARCLAYCARD COMMERCIAL,Digital Tameside,Finance & IT,Procurement Hub Holding Account,,24/04/2020, 925.27 ,200000,Financial Services
5380492,BARCLAYCARD COMMERCIAL,Policy and Communications,Governance,Procurement Hub Holding Account,,24/04/2020, 992.40 ,200000,Financial Services
5380492,BARCLAYCARD COMMERCIAL,Finance,Finance & IT,Procurement Hub Holding Account,,24/04/2020, 979.00 ,200000,Financial Services
5382932,BARCLAYCARD COMMERCIAL,Childrens Services,Children's Services,Procurement Hub Holding Account,,27/05/2020," 18,767.63 ",200000,Financial Services
5382932,BARCLAYCARD COMMERCIAL,Hosted Services,Hosted Services,Procurement Hub Holding Account,,27/05/2020," 1,419.82 ",200000,Financial Services
5382932,BARCLAYCARD COMMERCIAL,Digital Tameside,Finance & IT,Procurement Hub Holding Account,,27/05/2020," 1,105.80 ",200000,Financial Services
5384861,BARCLAYCARD COMMERCIAL,Childrens Services,Children's Services,Procurement Hub Holding Account,,05/06/2020," 19,975.35 ",200000,Financial Services
5384861,BARCLAYCARD COMMERCIAL,Individual Schools Budget,Children's Services,Procurement Hub Holding Account,,05/06/2020, 998.69 ,200000,Financial Services
5384861,BARCLAYCARD COMMERCIAL,Operations and Neighbourhoods,Operations and Neighbourhoods,Procurement Hub Holding Account,,05/06/2020, 669.68 ,200000,Financial Services
5384861,BARCLAYCARD COMMERCIAL,Adult Social Care,Adults,Procurement Hub Holding Account,,05/06/2020, 750.72 ,200000,Financial Services
5384861,BARCLAYCARD COMMERCIAL,Digital Tameside,Finance & IT,Procurement Hub Holding Account,,05/06/2020, 937.27 ,200000,Financial Services
5375424,BARNARDO SERVICES LIMITED,Childrens Services,Children's Services,Professional Services,,01/04/2020," 18,555.83 ",321100,Social Community Care Supplies & Services - Children
5377964,BARNARDO SERVICES LIMITED,Childrens Services,Children's Services,Professional Services,,03/04/2020," 18,555.83 ",321100,Social Community Care Supplies & Services - Children
5385501,BARNARDO SERVICES LIMITED,Childrens Services,Children's Services,Professional Services,,12/06/2020," 55,667.49 ",321100,Social Community Care Supplies & Services - Children
5377649,BARNARDO'S,Childrens Services,Children's Services,Foster Carer Agency Fees,,03/04/2020," 3,558.80 ",-999999,Unclassifiable
5383810,BARNARDO'S,Childrens Services,Children's Services,Foster Carer Agency Fees,,01/06/2020," 3,444.00 ",-999999,Unclassifiable
5384037,BARNARDO'S,Childrens Services,Children's Services,Foster Carer Agency Fees,,01/06/2020," 3,558.80 ",-999999,Unclassifiable
5384903,BARNARDO'S,Childrens Services,Children's Services,Professional Child Services,,08/06/2020," 3,445.20 ",-999999,Unclassifiable
5386126,BARNARDO'S,Childrens Services,Children's Services,Adoption Agency Fees,,22/06/2020," 51,714.00 ",-999999,Unclassifiable
5379448,BARTON VILLA HOTEL,Contingency,Contingency,Other Accommodation Related Costs,,09/04/2020, 560.00 ,260000,Human Resources
5380141,BC EDUCATION LTD,Education,Children's Services,General Equipment Repair & Maintenance,,17/04/2020," 14,400.00 ",261500,Human Resources
5380143,BC EDUCATION LTD,Education,Children's Services,Professional Consultancy Services,,17/04/2020," 2,400.00 ",261500,Human Resources
5379358,Beacon Counselling,People and Workforce Development,Governance,Professional Medical Services,,08/04/2020," 3,560.00 ",310000,Healthcare
5382258,Beacon Counselling,People and Workforce Development,Governance,Professional Medical Services,,11/05/2020," 3,040.00 ",310000,Healthcare
5383593,Beacon Counselling,People and Workforce Development,Governance,Professional Medical Services,,27/05/2020," 4,040.00 ",310000,Healthcare
5384809,Beacon Counselling,People and Workforce Development,Governance,Professional Medical Services,,08/06/2020," 2,520.00 ",310000,Healthcare
5375766,BEDSPACE RESOURCE LTD,Childrens Services,Children's Services,Living With Formal Support,,01/04/2020, 550.00 ,250000,Housing Management
5375770,BEDSPACE RESOURCE LTD,Childrens Services,Children's Services,Living With Formal Support,,01/04/2020, 975.00 ,250000,Housing Management
5376106,BEDSPACE RESOURCE LTD,Childrens Services,Children's Services,Living With Formal Support,,01/04/2020, 587.50 ,250000,Housing Management
5377701,BEDSPACE RESOURCE LTD,Childrens Services,Children's Services,Living With Formal Support,,03/04/2020, 975.00 ,250000,Housing Management
5376196,BEDSPACE RESOURCE LTD,Childrens Services,Children's Services,Living With Formal Support,,03/04/2020, 975.00 ,250000,Housing Management
5377174,BEDSPACE RESOURCE LTD,Childrens Services,Children's Services,Living With Formal Support,,03/04/2020, 975.00 ,250000,Housing Management
5376189,BEDSPACE RESOURCE LTD,Childrens Services,Children's Services,Living With Formal Support,,03/04/2020, 550.00 ,250000,Housing Management
5377184,BEDSPACE RESOURCE LTD,Childrens Services,Children's Services,Living With Formal Support,,03/04/2020, 550.00 ,250000,Housing Management
5377785,BEDSPACE RESOURCE LTD,Childrens Services,Children's Services,Living With Formal Support,,03/04/2020, 550.00 ,250000,Housing Management
5377171,BEDSPACE RESOURCE LTD,Childrens Services,Children's Services,Living With Formal Support,,03/04/2020, 587.50 ,250000,Housing Management
5376193,BEDSPACE RESOURCE LTD,Childrens Services,Children's Services,Professional Services,,03/04/2020, 522.90 ,250000,Housing Management
5377699,BEDSPACE RESOURCE LTD,Childrens Services,Children's Services,Professional Services,,03/04/2020, 522.90 ,250000,Housing Management
5377175,BEDSPACE RESOURCE LTD,Childrens Services,Children's Services,Professional Services,,03/04/2020, 522.90 ,250000,Housing Management
5376194,BEDSPACE RESOURCE LTD,Childrens Services,Children's Services,Living With Formal Support,,03/04/2020, 587.50 ,250000,Housing Management
5377706,BEDSPACE RESOURCE LTD,Childrens Services,Children's Services,Living With Formal Support,,03/04/2020, 587.50 ,250000,Housing Management
5379155,BEDSPACE RESOURCE LTD,Childrens Services,Children's Services,Living With Formal Support,,07/04/2020, 587.50 ,250000,Housing Management
5379163,BEDSPACE RESOURCE LTD,Childrens Services,Children's Services,Living With Formal Support,,07/04/2020, 725.00 ,250000,Housing Management
5379165,BEDSPACE RESOURCE LTD,Childrens Services,Children's Services,Living With Formal Support,,07/04/2020, 850.00 ,250000,Housing Management
5379170,BEDSPACE RESOURCE LTD,Childrens Services,Children's Services,Professional Services,,08/04/2020, 522.90 ,250000,Housing Management
5379768,BEDSPACE RESOURCE LTD,Childrens Services,Children's Services,Living With Formal Support,,16/04/2020, 550.00 ,250000,Housing Management
5379766,BEDSPACE RESOURCE LTD,Childrens Services,Children's Services,Professional Services,,16/04/2020, 522.90 ,250000,Housing Management
5379762,BEDSPACE RESOURCE LTD,Childrens Services,Children's Services,Living With Formal Support,,16/04/2020, 587.50 ,250000,Housing Management
5379764,BEDSPACE RESOURCE LTD,Childrens Services,Children's Services,Living With Formal Support,,20/04/2020, 975.00 ,250000,Housing Management
5380234,BEDSPACE RESOURCE LTD,Childrens Services,Children's Services,Living With Formal Support,,22/04/2020, 550.00 ,250000,Housing Management
5380228,BEDSPACE RESOURCE LTD,Childrens Services,Children's Services,Living With Formal Support,,23/04/2020, 975.00 ,250000,Housing Management
5380233,BEDSPACE RESOURCE LTD,Childrens Services,Children's Services,Living With Formal Support,,23/04/2020, 587.50 ,250000,Housing Management
5380579,BEDSPACE RESOURCE LTD,Childrens Services,Children's Services,Living With Formal Support,,24/04/2020, 725.00 ,250000,Housing Management
5380709,BEDSPACE RESOURCE LTD,Childrens Services,Children's Services,Living With Formal Support,,24/04/2020, 975.00 ,250000,Housing Management
5380706,BEDSPACE RESOURCE LTD,Childrens Services,Children's Services,Living With Formal Support,,24/04/2020, 550.00 ,250000,Housing Management
5380226,BEDSPACE RESOURCE LTD,Childrens Services,Children's Services,Professional Services,,24/04/2020, 522.90 ,250000,Housing Management
5380707,BEDSPACE RESOURCE LTD,Childrens Services,Children's Services,Living With Formal Support,,24/04/2020, 587.50 ,250000,Housing Management
5380627,BEDSPACE RESOURCE LTD,Childrens Services,Children's Services,Living With Formal Support,,27/04/2020, 625.00 ,250000,Housing Management
5380758,BEDSPACE RESOURCE LTD,Childrens Services,Children's Services,Living With Formal Support,,27/04/2020, 625.00 ,250000,Housing Management
5380583,BEDSPACE RESOURCE LTD,Childrens Services,Children's Services,Living With Formal Support,,27/04/2020, 975.00 ,250000,Housing Management
5379152,BEDSPACE RESOURCE LTD,Childrens Services,Children's Services,Living With Formal Support,,28/04/2020, 550.00 ,250000,Housing Management
5380757,BEDSPACE RESOURCE LTD,Childrens Services,Children's Services,Living With Formal Support,,28/04/2020, 500.00 ,250000,Housing Management
5379150,BEDSPACE RESOURCE LTD,Childrens Services,Children's Services,Living With Formal Support,,28/04/2020, 975.00 ,250000,Housing Management
5380606,BEDSPACE RESOURCE LTD,Childrens Services,Children's Services,Living With Formal Support,,28/04/2020, 850.00 ,250000,Housing Management
5380577,BEDSPACE RESOURCE LTD,Childrens Services,Children's Services,Living With Formal Support,,28/04/2020, 725.00 ,250000,Housing Management
5379159,BEDSPACE RESOURCE LTD,Childrens Services,Children's Services,Living With Formal Support,,28/04/2020, 600.00 ,250000,Housing Management
5380581,BEDSPACE RESOURCE LTD,Childrens Services,Children's Services,Living With Formal Support,,28/04/2020, 725.00 ,250000,Housing Management
5379849,BEDSPACE RESOURCE LTD,Childrens Services,Children's Services,Living With Formal Support,,29/04/2020, 550.00 ,250000,Housing Management
5380710,BEDSPACE RESOURCE LTD,Childrens Services,Children's Services,Professional Services,,29/04/2020, 522.90 ,250000,Housing Management
5379168,BEDSPACE RESOURCE LTD,Childrens Services,Children's Services,Living With Formal Support,,01/05/2020," 1,035.00 ",250000,Housing Management
5382064,BEDSPACE RESOURCE LTD,Childrens Services,Children's Services,Living With Formal Support,,07/05/2020, 587.50 ,250000,Housing Management
5382218,BEDSPACE RESOURCE LTD,Childrens Services,Children's Services,Living With Formal Support,,14/05/2020, 587.50 ,250000,Housing Management
5382299,BEDSPACE RESOURCE LTD,Childrens Services,Children's Services,Living With Formal Support,,14/05/2020, 975.00 ,250000,Housing Management
5382808,BEDSPACE RESOURCE LTD,Childrens Services,Children's Services,Living With Formal Support,,15/05/2020, 587.50 ,250000,Housing Management
5382349,BEDSPACE RESOURCE LTD,Childrens Services,Children's Services,Professional Services,,19/05/2020, 522.90 ,250000,Housing Management
5382056,BEDSPACE RESOURCE LTD,Childrens Services,Children's Services,Living With Formal Support,,19/05/2020, 550.00 ,250000,Housing Management
5382810,BEDSPACE RESOURCE LTD,Childrens Services,Children's Services,Living With Formal Support,,19/05/2020, 975.00 ,250000,Housing Management
5382807,BEDSPACE RESOURCE LTD,Childrens Services,Children's Services,Living With Formal Support,,20/05/2020, 550.00 ,250000,Housing Management
5382273,BEDSPACE RESOURCE LTD,Childrens Services,Children's Services,Living With Formal Support,,20/05/2020, 550.00 ,250000,Housing Management
5382027,BEDSPACE RESOURCE LTD,Childrens Services,Children's Services,Professional Services,,21/05/2020, 597.90 ,250000,Housing Management
5382806,BEDSPACE RESOURCE LTD,Childrens Services,Children's Services,Professional Services,,21/05/2020, 522.90 ,250000,Housing Management
5383439,BEDSPACE RESOURCE LTD,Childrens Services,Children's Services,Living With Formal Support,,22/05/2020, 587.50 ,250000,Housing Management
5383457,BEDSPACE RESOURCE LTD,Childrens Services,Children's Services,Living With Formal Support,,22/05/2020, 550.00 ,250000,Housing Management
5383454,BEDSPACE RESOURCE LTD,Childrens Services,Children's Services,Living With Formal Support,,27/05/2020, 550.00 ,250000,Housing Management
5383452,BEDSPACE RESOURCE LTD,Childrens Services,Children's Services,Professional Services,,27/05/2020, 522.90 ,250000,Housing Management
5383410,BEDSPACE RESOURCE LTD,Childrens Services,Children's Services,Living With Formal Support,,27/05/2020, 975.00 ,250000,Housing Management
5383885,BEDSPACE RESOURCE LTD,Childrens Services,Children's Services,Living With Formal Support,,03/06/2020, 587.50 ,250000,Housing Management
5383888,BEDSPACE RESOURCE LTD,Childrens Services,Children's Services,Living With Formal Support,,04/06/2020, 975.00 ,250000,Housing Management
5385436,BEDSPACE RESOURCE LTD,Childrens Services,Children's Services,Living With Formal Support,,15/06/2020, 587.50 ,250000,Housing Management
5385434,BEDSPACE RESOURCE LTD,Childrens Services,Children's Services,Living With Formal Support,,16/06/2020, 975.00 ,250000,Housing Management
5386575,BEDSPACE RESOURCE LTD,Childrens Services,Children's Services,Living With Formal Support,,25/06/2020, 587.50 ,250000,Housing Management
460396,Beeches t/a Meridian Healthcare LTD,Adult Social Care,Adults,Nursing Home Long Stay Fees,,28/04/2020," 99,579.28 ",321000,Social Community Care Supplies & Services - Adult
460396,Beeches t/a Meridian Healthcare LTD,Contingency,Contingency,Nursing Home Long Stay Fees,,28/04/2020," 3,632.82 ",321000,Social Community Care Supplies & Services - Adult
460399,Beeches t/a Meridian Healthcare LTD,Adult Social Care,Adults,Nursing Home Long Stay Fees,,27/05/2020," 48,922.47 ",321000,Social Community Care Supplies & Services - Adult
460402,Beeches t/a Meridian Healthcare LTD,Contingency,Contingency,Nursing Home Long Stay Fees,,17/06/2020," 15,599.93 ",321000,Social Community Care Supplies & Services - Adult
460403,Beeches t/a Meridian Healthcare LTD,Adult Social Care,Adults,Nursing Home Long Stay Fees,,25/06/2020," 48,765.24 ",321000,Social Community Care Supplies & Services - Adult
5380597,BEHAVIOURWATCH LTD,Individual Schools Budget,Children's Services,Subscriptions,,23/04/2020," 4,916.65 ",170000,Education
460396,BELMONT PARKHILL LTD,Adult Social Care,Adults,Nursing Home Long Stay Fees,,28/04/2020," 72,795.28 ",UNCLASS,Unclassifiable
460399,BELMONT PARKHILL LTD,Adult Social Care,Adults,Nursing Home Long Stay Fees,,27/05/2020," 37,200.11 ",UNCLASS,Unclassifiable
460399,BELMONT PARKHILL LTD,Contingency,Contingency,Nursing Home Long Stay Fees,,27/05/2020," 26,978.40 ",UNCLASS,Unclassifiable
460402,BELMONT PARKHILL LTD,Adult Social Care,Adults,Nursing Home Long Stay Fees,,17/06/2020," 13,369.59 ",UNCLASS,Unclassifiable
460402,BELMONT PARKHILL LTD,Contingency,Contingency,Nursing Home Long Stay Fees,,17/06/2020," 18,524.92 ",UNCLASS,Unclassifiable
460403,BELMONT PARKHILL LTD,Adult Social Care,Adults,Nursing Home Long Stay Fees,,25/06/2020," 49,343.82 ",UNCLASS,Unclassifiable
460403,BELMONT PARKHILL LTD,Contingency,Contingency,Nursing Home Long Stay Fees,,25/06/2020," 17,831.20 ",UNCLASS,Unclassifiable
5375979,BERTRAM LIBRARY SERVICES,Place,Growth,Other Accommodation Related Costs,,01/04/2020, 970.72 ,171113,Education
5374814,BERTRAM LIBRARY SERVICES,Operations and Neighbourhoods,Operations and Neighbourhoods,Purchase Books,,01/04/2020," 7,323.44 ",171113,Education
5377801,BERTRAM LIBRARY SERVICES,Operations and Neighbourhoods,Operations and Neighbourhoods,Purchase Books,,03/04/2020," 5,887.79 ",171113,Education
5380676,Beverley Edwards Training & Consultancy LTD,Childrens Services,Children's Services,Training Course Costs,,29/06/2020," 3,000.00 ",-999999,Unclassifiable
5384118,BIBLIOGRAPHIC DATA SERVICES LTD,Operations and Neighbourhoods,Operations and Neighbourhoods,Subscriptions,,02/06/2020," 4,637.50 ",170000,Education
5376935,BIBLIOTHECA LTD,Multiple Heads of Service,Multiple Strategic Directorates,Plant & Equipment,,03/04/2020, 990.00 ,-999999,Unclassifiable
5377688,BLACK & WHITE PROMOTIONAL PRINT SERVICES,Policy and Communications,Governance,Printing And Stationery,,03/04/2020," 5,100.80 ",190000,Facilities & Management Services
460396,BLACKCLIFFE LTD,Adult Social Care,Adults,Nursing Home Long Stay Fees,,28/04/2020," 158,783.16 ",321000,Social Community Care Supplies & Services - Adult
460396,BLACKCLIFFE LTD,Contingency,Contingency,Nursing Home Long Stay Fees,,28/04/2020," 2,864.45 ",321000,Social Community Care Supplies & Services - Adult
460399,BLACKCLIFFE LTD,Adult Social Care,Adults,Nursing Home Long Stay Fees,,27/05/2020," 111,294.16 ",321000,Social Community Care Supplies & Services - Adult
460399,BLACKCLIFFE LTD,Contingency,Contingency,Nursing Home Long Stay Fees,,27/05/2020," 68,795.74 ",321000,Social Community Care Supplies & Services - Adult
460402,BLACKCLIFFE LTD,Adult Social Care,Adults,Nursing Home Long Stay Fees,,17/06/2020," 26,560.52 ",321000,Social Community Care Supplies & Services - Adult
460402,BLACKCLIFFE LTD,Contingency,Contingency,Nursing Home Long Stay Fees,,17/06/2020," 37,537.34 ",321000,Social Community Care Supplies & Services - Adult
460403,BLACKCLIFFE LTD,Adult Social Care,Adults,Nursing Home Long Stay Fees,,25/06/2020," 108,514.49 ",321000,Social Community Care Supplies & Services - Adult
460403,BLACKCLIFFE LTD,Contingency,Contingency,Nursing Home Long Stay Fees,,25/06/2020," 71,882.80 ",321000,Social Community Care Supplies & Services - Adult
5379390,BLACKPOOL TEACHING HOSPITALS NHS FT,Population Health,Population Health,Professional Services,,04/06/2020, 756.43 ,150000,Consultancy
5383340,BLB PARTNERSHIPS LTD,Operations and Neighbourhoods,Operations and Neighbourhoods,Other Accommodation Related Costs,,26/05/2020, 800.00 ,202000,Financial Services
470860,BLOK N MESH UK LTD,Operations and Neighbourhoods,Operations and Neighbourhoods,General Materials,,01/06/2020," 1,540.00 ",100000,Building Construction Materials
5377901,Bloom Procurement Services Limited,(blank),(blank),External  Consultants,,01/04/2020," 8,714.87 ",150000,Consultancy
5377600,Bloom Procurement Services Limited,Tameside Investment Partnership,Director of Place,Consultancies,,01/04/2020," 13,650.00 ",150000,Consultancy
5377724,Bloom Procurement Services Limited,Tameside Investment Partnership,Director of Place,Consultancies,,01/04/2020," 8,250.00 ",150000,Consultancy
5377729,Bloom Procurement Services Limited,GMPF (FX),GMPF (FX),Computer Software,,01/04/2020," 12,764.00 ",150000,Consultancy
5378717,Bloom Procurement Services Limited,Place,Growth,Professional Consultancy Services,,03/04/2020," 7,587.18 ",150000,Consultancy
5378538,Bloom Procurement Services Limited,(blank),(blank),Professional Consultancy Services,,14/04/2020," 9,000.00 ",150000,Consultancy
5379120,Bloom Procurement Services Limited,Policy and Communications,Governance,Professional Consultancy Services,,15/04/2020," 32,967.00 ",150000,Consultancy
5379980,Bloom Procurement Services Limited,Hosted Services,Hosted Services,Professional Services,,16/04/2020," 1,150.00 ",150000,Consultancy
5380613,Bloom Procurement Services Limited,Tameside Investment Partnership,Director of Place,Consultancies,,24/04/2020," 8,250.00 ",150000,Consultancy
5380643,Bloom Procurement Services Limited,Engineers Client,Director of Place,Engineers -External,,29/04/2020," 12,064.51 ",150000,Consultancy
5381512,Bloom Procurement Services Limited,(blank),(blank),External  Consultants,,05/05/2020," 8,714.87 ",150000,Consultancy
5381066,Bloom Procurement Services Limited,Tameside Investment Partnership,Director of Place,Consultancies,,06/05/2020," 9,500.00 ",150000,Consultancy
5382311,Bloom Procurement Services Limited,(blank),(blank),Professional Consultancy Services,,12/05/2020," 9,000.00 ",150000,Consultancy
5381651,Bloom Procurement Services Limited,Tameside Investment Partnership,Director of Place,Consultancies,,14/05/2020," 13,650.00 ",150000,Consultancy
5382852,Bloom Procurement Services Limited,Tameside Investment Partnership,Director of Place,Consultancies,,18/05/2020," 15,789.47 ",150000,Consultancy
5382833,Bloom Procurement Services Limited,(blank),(blank),External  Consultants,,19/05/2020," 12,064.51 ",150000,Consultancy
5383124,Bloom Procurement Services Limited,(blank),(blank),External  Consultants,,21/05/2020," 9,355.94 ",150000,Consultancy
5383386,Bloom Procurement Services Limited,Tameside Investment Partnership,Director of Place,Consultancies,,28/05/2020," 17,198.50 ",150000,Consultancy
5384583,Bloom Procurement Services Limited,Tameside Investment Partnership,Director of Place,Consultancies,,04/06/2020," 8,820.00 ",150000,Consultancy
5384164,Bloom Procurement Services Limited,(blank),(blank),Professional Consultancy Services,,05/06/2020," 9,000.00 ",150000,Consultancy
5384787,Bloom Procurement Services Limited,(blank),(blank),External  Consultants,,05/06/2020," 8,714.87 ",150000,Consultancy
5384942,Bloom Procurement Services Limited,Tameside Investment Partnership,Director of Place,Consultancies,,09/06/2020," 11,235.00 ",150000,Consultancy
5384799,Bloom Procurement Services Limited,(blank),(blank),Professional Consultancy Services,,10/06/2020," 9,000.00 ",150000,Consultancy
5385044,Bloom Procurement Services Limited,Tameside Investment Partnership,Director of Place,Consultancies,,11/06/2020," 14,210.53 ",150000,Consultancy
5384971,Bloom Procurement Services Limited,Tameside Investment Partnership,Director of Place,Consultancies,,11/06/2020," 12,500.00 ",150000,Consultancy
5383640,Bloom Procurement Services Limited,(blank),(blank),Engineers -External,,12/06/2020," 11,774.34 ",150000,Consultancy
5385836,Bloom Procurement Services Limited,(blank),(blank),Engineers -External,,22/06/2020," 11,774.34 ",150000,Consultancy
5385982,Bloom Procurement Services Limited,(blank),(blank),Engineers -External,,22/06/2020," 8,767.52 ",150000,Consultancy
5386413,Bloom Procurement Services Limited,(blank),(blank),Engineers -External,,24/06/2020," 15,958.69 ",150000,Consultancy
5381457,Blue Amber Services,Adult Social Care,Adults,Cleaning Contractor Costs,,06/05/2020, 720.00 ,321000,Social Community Care Supplies & Services - Adult
5380179,BOLINDA UK LIMITED,Operations and Neighbourhoods,Operations and Neighbourhoods,Digital Materials,,20/04/2020," 15,688.33 ",170000,Education
5380180,BOLINDA UK LIMITED,Operations and Neighbourhoods,Operations and Neighbourhoods,Digital Materials,,20/04/2020," 2,500.00 ",170000,Education
5379012,BOLTON MBC,Education,Children's Services,Other Local Authorities Fees,,06/04/2020," 1,200.00 ",UNCLASS,Unclassifiable
5386394,BOLTON MBC,GMPF (FX),GMPF (FX),Members Responsibility Allowance,,23/06/2020," 1,421.00 ",UNCLASS,Unclassifiable
5376590,BOND SOLON TRAINING LTD,Operations and Neighbourhoods,Operations and Neighbourhoods,Professional Entertainment Services,,03/04/2020," 2,245.00 ",-999999,Unclassifiable
29000091,BOOTS UK LTD,Population Health,Population Health,Local Enhanced Services,,03/04/2020," 1,078.95 ",319999,Healthcare
29000094,BOOTS UK LTD,Population Health,Population Health,Local Enhanced Services,,22/05/2020," 1,441.78 ",319999,Healthcare
5386706,BOTTOMLINE TECHNOLOGIES LIMITED,Digital Tameside,Finance & IT,Computer Software,,30/06/2020," 17,568.00 ",270000,Information Communication Technology
460396,BOURNE HOUSE RESIDENTIAL HOME,Adult Social Care,Adults,Nursing Home Long Stay Fees,,28/04/2020," 54,457.07 ",321000,Social Community Care Supplies & Services - Adult
460396,BOURNE HOUSE RESIDENTIAL HOME,Contingency,Contingency,Nursing Home Long Stay Fees,,28/04/2020," 12,108.79 ",321000,Social Community Care Supplies & Services - Adult
460399,BOURNE HOUSE RESIDENTIAL HOME,Adult Social Care,Adults,Nursing Home Long Stay Fees,,27/05/2020," 29,861.73 ",321000,Social Community Care Supplies & Services - Adult
460399,BOURNE HOUSE RESIDENTIAL HOME,Contingency,Contingency,Nursing Home Long Stay Fees,,27/05/2020," 15,227.53 ",321000,Social Community Care Supplies & Services - Adult
460402,BOURNE HOUSE RESIDENTIAL HOME,Contingency,Contingency,Nursing Home Long Stay Fees,,17/06/2020," 16,087.43 ",321000,Social Community Care Supplies & Services - Adult
460403,BOURNE HOUSE RESIDENTIAL HOME,Adult Social Care,Adults,Nursing Home Long Stay Fees,,25/06/2020," 32,232.36 ",321000,Social Community Care Supplies & Services - Adult
460403,BOURNE HOUSE RESIDENTIAL HOME,Contingency,Contingency,Nursing Home Long Stay Fees,,25/06/2020," 5,108.00 ",321000,Social Community Care Supplies & Services - Adult
460399,BOWERFIELD COURT,Adult Social Care,Adults,Nursing Home Long Stay Fees,,27/05/2020," 6,457.29 ",321000,Social Community Care Supplies & Services - Adult
5380457,BPI RECYCLED PRODUCTS,Operations and Neighbourhoods,Operations and Neighbourhoods,Purchase Wheeled Bins,,23/04/2020," 1,130.24 ",180000,Environmental Services
5379875,BPP,Governance,Governance,Training Course Costs,,15/04/2020," 1,317.00 ",260000,Human Resources
470853,BRAMHALL SURFACING LTD,Operations and Neighbourhoods,Operations and Neighbourhoods,Sub-contractor Services,,15/04/2020," 18,900.00 ",390000,"Works - Construction, Repair & Maintenance"
470859,BRAMHALL SURFACING LTD,Operations and Neighbourhoods,Operations and Neighbourhoods,Sub-contractor Services,,26/05/2020," 4,500.00 ",390000,"Works - Construction, Repair & Maintenance"
470863,BRAMHALL SURFACING LTD,Operations and Neighbourhoods,Operations and Neighbourhoods,Sub-contractor Services,,22/06/2020," 8,550.00 ",390000,"Works - Construction, Repair & Maintenance"
5374928,BRANAS ISAF LTD,Childrens Services,Children's Services,Childrens Homes Outside Local Authority Fees,,01/04/2020," 20,300.00 ",321100,Social Community Care Supplies & Services - Children
5374927,BRANAS ISAF LTD,Childrens Services,Children's Services,Childrens Homes Outside Local Authority Fees,,01/04/2020," 18,978.43 ",321100,Social Community Care Supplies & Services - Children
5378817,BRANAS ISAF LTD,Childrens Services,Children's Services,Childrens Homes Outside Local Authority Fees,,06/04/2020," 21,700.00 ",321100,Social Community Care Supplies & Services - Children
5378818,BRANAS ISAF LTD,Childrens Services,Children's Services,Childrens Homes Outside Local Authority Fees,,06/04/2020," 20,287.29 ",321100,Social Community Care Supplies & Services - Children
5382189,BRANAS ISAF LTD,Childrens Services,Children's Services,Childrens Homes Outside Local Authority Fees,,13/05/2020," 21,000.00 ",321100,Social Community Care Supplies & Services - Children
5382131,BRANAS ISAF LTD,Childrens Services,Children's Services,Living With Formal Support,,18/05/2020," 19,986.43 ",321100,Social Community Care Supplies & Services - Children
5384775,BRANAS ISAF LTD,Childrens Services,Children's Services,Living With Formal Support,,05/06/2020," 20,652.64 ",321100,Social Community Care Supplies & Services - Children
5384887,BRANAS ISAF LTD,Childrens Services,Children's Services,Childrens Homes Outside Local Authority Fees,,08/06/2020," 21,700.00 ",321100,Social Community Care Supplies & Services - Children
3250756,BRENNTAG UK LIMITED,Transport,Director of Place,Fuel / Ad Blu,,09/04/2020," 1,050.00 ",130000,Cleaning & Janitorial
3250766,BRENNTAG UK LIMITED,Transport,Director of Place,Fuel / Ad Blu,,18/06/2020," 1,081.98 ",130000,Cleaning & Janitorial
470856,BRIDGE ELECTRICALSUPPLIES LTD,Civil Engineers,Director of Place,Debits Goods Received,,04/05/2020, 716.00 ,100000,Building Construction Materials
3250765,BRIDGE ENGINEERING SERVICES LTD,Operations and Neighbourhoods,Operations and Neighbourhoods,Building Repairs,,11/06/2020," 2,020.00 ",100000,Building Construction Materials
3250766,BRIDGE ENGINEERING SERVICES LTD,Operations and Neighbourhoods,Operations and Neighbourhoods,Building Repairs,,18/06/2020, 572.00 ,100000,Building Construction Materials
3250766,BRIDGE ENGINEERING SERVICES LTD,Operations and Neighbourhoods,Operations and Neighbourhoods,Consumable Materials,,18/06/2020, 780.00 ,100000,Building Construction Materials
5380594,BRIGHT FUTURES SCHOOL LIMITED,Education,Children's Services,Independent School Fees,,23/04/2020," 14,565.00 ",170000,Education
5374993,Bright Opportunities,Adult Social Care,Adults,Day Centre Fees,,01/04/2020, 520.00 ,-999999,Unclassifiable
5379054,Bright Opportunities,Adult Social Care,Adults,Day Centre Fees,,06/04/2020, 580.00 ,-999999,Unclassifiable
5384561,Bright Opportunities,Adult Social Care,Adults,Day Centre Fees,,04/06/2020, 540.00 ,-999999,Unclassifiable
5374701,British Telecommunications PLC,Digital Tameside,Finance & IT,Telephone Landline Costs,,01/04/2020," 1,240.13 ",270000,Information Communication Technology
5374698,British Telecommunications PLC,Digital Tameside,Finance & IT,Telephone Landline Costs,,01/04/2020," 1,292.23 ",270000,Information Communication Technology
5375071,British Telecommunications PLC,Digital Tameside,Finance & IT,Telephone Landline Costs,,01/04/2020," 1,303.84 ",270000,Information Communication Technology
5374693,British Telecommunications PLC,Digital Tameside,Finance & IT,Telephone Landline Costs,,01/04/2020," 1,133.43 ",270000,Information Communication Technology
5374703,British Telecommunications PLC,Digital Tameside,Finance & IT,Telephone Landline Costs,,01/04/2020," 1,103.73 ",270000,Information Communication Technology
5384616,British Telecommunications PLC,Digital Tameside,Finance & IT,Telephone Landline Costs,,08/06/2020," 1,411.38 ",270000,Information Communication Technology
5379556,BROADOAK & SMALLSHAW COMMUNITY ASSOCIATION,Childrens Services,Children's Services,Room Hire,,09/04/2020," 7,000.00 ",260000,Human Resources
5376943,BROADSTONES SCHOOL LTD.,Individual Schools Budget,Children's Services,Agency Staff,,03/04/2020," 2,928.00 ",170000,Education
5380684,BROADSTONES SCHOOL LTD.,Education,Children's Services,Other Local Authorities Fees,,24/04/2020," 9,842.06 ",170000,Education
5380683,BROADSTONES SCHOOL LTD.,Education,Children's Services,Other Local Authorities Fees,,24/04/2020," 7,157.80 ",170000,Education
460396,BROOKFIELD RESIDENTIAL CARE HOME,Adult Social Care,Adults,Nursing Home Long Stay Fees,,28/04/2020," 2,575.45 ",321000,Social Community Care Supplies & Services - Adult
460399,BROOKFIELD RESIDENTIAL CARE HOME,Adult Social Care,Adults,Nursing Home Long Stay Fees,,27/05/2020," 2,661.31 ",321000,Social Community Care Supplies & Services - Adult
460403,BROOKFIELD RESIDENTIAL CARE HOME,Adult Social Care,Adults,Nursing Home Long Stay Fees,,25/06/2020," 2,575.46 ",321000,Social Community Care Supplies & Services - Adult
460403,BROOKVALE,Adult Social Care,Adults,Nursing Home Long Stay Fees,,25/06/2020," 27,244.69 ",321000,Social Community Care Supplies & Services - Adult
460396,BROUGHTON HOUSE HOME FOR  EX-SERVICE PERSONNEL,Adult Social Care,Adults,Nursing Home Long Stay Fees,,28/04/2020," 2,000.32 ",321000,Social Community Care Supplies & Services - Adult
460399,BROUGHTON HOUSE HOME FOR  EX-SERVICE PERSONNEL,Adult Social Care,Adults,Nursing Home Long Stay Fees,,27/05/2020," 2,066.99 ",321000,Social Community Care Supplies & Services - Adult
460403,BROUGHTON HOUSE HOME FOR  EX-SERVICE PERSONNEL,Adult Social Care,Adults,Nursing Home Long Stay Fees,,25/06/2020," 2,000.31 ",321000,Social Community Care Supplies & Services - Adult
460396,BROWNLOW HOUSE RESIDENTIAL CARE,Adult Social Care,Adults,Nursing Home Long Stay Fees,,28/04/2020," 7,100.17 ",-999999,Unclassifiable
460399,BROWNLOW HOUSE RESIDENTIAL CARE,Adult Social Care,Adults,Nursing Home Long Stay Fees,,27/05/2020," 4,085.96 ",-999999,Unclassifiable
5379735,BROXAP LIMITED,Operations and Neighbourhoods,Operations and Neighbourhoods,General Materials,,14/04/2020, 768.00 ,230000,Highway Equipment & Materials
5375082,BT GLOBAL SERVICES,Digital Tameside,Finance & IT,Network Maintenance/Rental,,01/04/2020," 8,293.25 ",270000,Information Communication Technology
5377380,BT GLOBAL SERVICES,Digital Tameside,Finance & IT,Network Maintenance/Rental,,03/04/2020," 7,549.81 ",270000,Information Communication Technology
5380945,BT GLOBAL SERVICES,Digital Tameside,Finance & IT,Telephone Landline Costs,,02/06/2020," 7,549.81 ",270000,Information Communication Technology
5383753,BT GLOBAL SERVICES,Digital Tameside,Finance & IT,Network Maintenance/Rental,,02/06/2020," 7,549.81 ",270000,Information Communication Technology
5386471,BT GLOBAL SERVICES,Digital Tameside,Finance & IT,Telephone Landline Costs,,24/06/2020," 7,549.81 ",270000,Information Communication Technology
5385169,BT REDCARE,Operations and Neighbourhoods,Operations and Neighbourhoods,British Telecom Redcare Alarm Line Costs,,15/06/2020," 46,894.55 ",190000,Facilities & Management Services
5381118,BUCHANAN COMPUTING LTD,Operations and Neighbourhoods,Operations and Neighbourhoods,General Materials,,07/05/2020," 3,104.00 ",270000,Information Communication Technology
5383622,BUILDING SOFTWARE LTD T/A MEASURE2IMPROVE,Engineers Client,Director of Place,Survey/Surveyors Fees,,28/05/2020," 12,950.00 ",-999999,Unclassifiable
5383270,BUREAU VAN DIJK ELECTRONIC PUBLISHING LTD,Operations and Neighbourhoods,Operations and Neighbourhoods,Digital Materials,,22/05/2020," 4,100.00 ",270000,Information Communication Technology
3250756,BURNT TREE GROUP LIMITED,Operations and Neighbourhoods,Operations and Neighbourhoods,Additional Hire,,09/04/2020," 5,574.09 ",380000,Vehicle Management
3250757,BURNT TREE GROUP LIMITED,Operations and Neighbourhoods,Operations and Neighbourhoods,Additional Hire,,16/04/2020, 535.53 ,380000,Vehicle Management
3250760,BURNT TREE GROUP LIMITED,Operations and Neighbourhoods,Operations and Neighbourhoods,Additional Hire,,11/05/2020," 5,743.42 ",380000,Vehicle Management
3250764,BURNT TREE GROUP LIMITED,Operations and Neighbourhoods,Operations and Neighbourhoods,Additional Hire,,04/06/2020," 5,468.55 ",380000,Vehicle Management
5374685,BY THE BRIDGE NORTH WEST LTD,Childrens Services,Children's Services,Foster Carer Agency Fees,,01/04/2020," 4,174.55 ",908001,Public Bodies
5374688,BY THE BRIDGE NORTH WEST LTD,Childrens Services,Children's Services,Foster Carer Agency Fees,,01/04/2020," 4,210.38 ",908001,Public Bodies
5374690,BY THE BRIDGE NORTH WEST LTD,Childrens Services,Children's Services,Foster Carer Agency Fees,,01/04/2020," 4,185.00 ",908001,Public Bodies
5374676,BY THE BRIDGE NORTH WEST LTD,Childrens Services,Children's Services,Foster Carer Agency Fees,,01/04/2020," 4,470.03 ",908001,Public Bodies
5374675,BY THE BRIDGE NORTH WEST LTD,Childrens Services,Children's Services,Foster Carer Agency Fees,,01/04/2020," 4,394.25 ",908001,Public Bodies
5374689,BY THE BRIDGE NORTH WEST LTD,Childrens Services,Children's Services,Foster Carer Agency Fees,,01/04/2020," 4,318.30 ",908001,Public Bodies
5374684,BY THE BRIDGE NORTH WEST LTD,Childrens Services,Children's Services,Foster Carer Agency Fees,,01/04/2020," 3,272.71 ",908001,Public Bodies
5374682,BY THE BRIDGE NORTH WEST LTD,Childrens Services,Children's Services,Foster Carer Agency Fees,,01/04/2020," 3,270.50 ",908001,Public Bodies
5374686,BY THE BRIDGE NORTH WEST LTD,Childrens Services,Children's Services,Foster Carer Agency Fees,,01/04/2020," 3,998.78 ",908001,Public Bodies
5374680,BY THE BRIDGE NORTH WEST LTD,Childrens Services,Children's Services,Foster Carer Agency Fees,,01/04/2020," 4,626.75 ",908001,Public Bodies
5374677,BY THE BRIDGE NORTH WEST LTD,Childrens Services,Children's Services,Foster Carer Agency Fees,,01/04/2020," 4,670.68 ",908001,Public Bodies
5374679,BY THE BRIDGE NORTH WEST LTD,Childrens Services,Children's Services,Foster Carer Agency Fees,,01/04/2020," 2,335.32 ",908001,Public Bodies
5374683,BY THE BRIDGE NORTH WEST LTD,Childrens Services,Children's Services,Foster Carer Agency Fees,,01/04/2020," 3,270.50 ",908001,Public Bodies
5378761,BY THE BRIDGE NORTH WEST LTD,Childrens Services,Children's Services,Foster Carer Agency Fees,,06/04/2020," 4,477.50 ",908001,Public Bodies
5378759,BY THE BRIDGE NORTH WEST LTD,Childrens Services,Children's Services,Foster Carer Agency Fees,,06/04/2020," 2,259.99 ",908001,Public Bodies
5378768,BY THE BRIDGE NORTH WEST LTD,Childrens Services,Children's Services,Foster Carer Agency Fees,,06/04/2020," 4,050.00 ",908001,Public Bodies
5378756,BY THE BRIDGE NORTH WEST LTD,Childrens Services,Children's Services,Foster Carer Agency Fees,,06/04/2020," 4,520.01 ",908001,Public Bodies
5378738,BY THE BRIDGE NORTH WEST LTD,Childrens Services,Children's Services,Foster Carer Agency Fees,,06/04/2020," 4,252.50 ",908001,Public Bodies
5378744,BY THE BRIDGE NORTH WEST LTD,Childrens Services,Children's Services,Foster Carer Agency Fees,,06/04/2020," 4,253.61 ",908001,Public Bodies
5378763,BY THE BRIDGE NORTH WEST LTD,Childrens Services,Children's Services,Foster Carer Agency Fees,,06/04/2020," 3,167.14 ",908001,Public Bodies
5378746,BY THE BRIDGE NORTH WEST LTD,Childrens Services,Children's Services,Foster Carer Agency Fees,,06/04/2020," 3,165.00 ",908001,Public Bodies
5378751,BY THE BRIDGE NORTH WEST LTD,Childrens Services,Children's Services,Foster Carer Agency Fees,,06/04/2020," 3,165.00 ",908001,Public Bodies
5378770,BY THE BRIDGE NORTH WEST LTD,Childrens Services,Children's Services,Foster Carer Agency Fees,,17/04/2020," 4,179.00 ",908001,Public Bodies
5378771,BY THE BRIDGE NORTH WEST LTD,Childrens Services,Children's Services,Foster Carer Agency Fees,,17/04/2020," 3,944.19 ",908001,Public Bodies
5378774,BY THE BRIDGE NORTH WEST LTD,Childrens Services,Children's Services,Foster Carer Agency Fees,,17/04/2020," 3,774.09 ",908001,Public Bodies
5378765,BY THE BRIDGE NORTH WEST LTD,Childrens Services,Children's Services,Foster Carer Agency Fees,,17/04/2020," 3,973.77 ",908001,Public Bodies
5381744,BY THE BRIDGE NORTH WEST LTD,Childrens Services,Children's Services,Foster Carer Agency Fees,,06/05/2020," 4,094.66 ",908001,Public Bodies
5381743,BY THE BRIDGE NORTH WEST LTD,Childrens Services,Children's Services,Foster Carer Agency Fees,,06/05/2020," 4,185.00 ",908001,Public Bodies
5381746,BY THE BRIDGE NORTH WEST LTD,Childrens Services,Children's Services,Foster Carer Agency Fees,,06/05/2020," 3,270.50 ",908001,Public Bodies
5381752,BY THE BRIDGE NORTH WEST LTD,Childrens Services,Children's Services,Foster Carer Agency Fees,,06/05/2020," 3,270.50 ",908001,Public Bodies
5381749,BY THE BRIDGE NORTH WEST LTD,Childrens Services,Children's Services,Foster Carer Agency Fees,,06/05/2020," 4,394.25 ",908001,Public Bodies
5381748,BY THE BRIDGE NORTH WEST LTD,Childrens Services,Children's Services,Foster Carer Agency Fees,,06/05/2020," 4,395.40 ",908001,Public Bodies
5381747,BY THE BRIDGE NORTH WEST LTD,Childrens Services,Children's Services,Foster Carer Agency Fees,,06/05/2020," 3,272.71 ",908001,Public Bodies
5381745,BY THE BRIDGE NORTH WEST LTD,Childrens Services,Children's Services,Foster Carer Agency Fees,,06/05/2020," 3,888.91 ",908001,Public Bodies
5381740,BY THE BRIDGE NORTH WEST LTD,Childrens Services,Children's Services,Foster Carer Agency Fees,,07/05/2020," 4,064.68 ",908001,Public Bodies
5381751,BY THE BRIDGE NORTH WEST LTD,Childrens Services,Children's Services,Foster Carer Agency Fees,,15/05/2020," 4,626.75 ",908001,Public Bodies
5384408,BY THE BRIDGE NORTH WEST LTD,Childrens Services,Children's Services,Foster Carer Agency Fees,,03/06/2020," 3,165.00 ",908001,Public Bodies
5384314,BY THE BRIDGE NORTH WEST LTD,Childrens Services,Children's Services,Foster Carer Agency Fees,,03/06/2020," 3,165.00 ",908001,Public Bodies
5384426,BY THE BRIDGE NORTH WEST LTD,Childrens Services,Children's Services,Foster Carer Agency Fees,,03/06/2020," 4,252.50 ",908001,Public Bodies
5384418,BY THE BRIDGE NORTH WEST LTD,Childrens Services,Children's Services,Foster Carer Agency Fees,,03/06/2020," 4,253.61 ",908001,Public Bodies
5384420,BY THE BRIDGE NORTH WEST LTD,Childrens Services,Children's Services,Foster Carer Agency Fees,,03/06/2020," 3,933.56 ",908001,Public Bodies
5384425,BY THE BRIDGE NORTH WEST LTD,Childrens Services,Children's Services,Foster Carer Agency Fees,,03/06/2020," 4,050.00 ",908001,Public Bodies
5384422,BY THE BRIDGE NORTH WEST LTD,Childrens Services,Children's Services,Foster Carer Agency Fees,,03/06/2020," 3,962.57 ",908001,Public Bodies
5384421,BY THE BRIDGE NORTH WEST LTD,Childrens Services,Children's Services,Foster Carer Agency Fees,,03/06/2020," 3,763.46 ",908001,Public Bodies
5384424,BY THE BRIDGE NORTH WEST LTD,Childrens Services,Children's Services,Foster Carer Agency Fees,,04/06/2020," 3,167.14 ",908001,Public Bodies
5384406,BY THE BRIDGE NORTH WEST LTD,Childrens Services,Children's Services,Foster Carer Agency Fees,,09/06/2020," 4,670.68 ",908001,Public Bodies
5381750,BY THE BRIDGE NORTH WEST LTD,Childrens Services,Children's Services,Foster Carer Agency Fees,,16/06/2020," 2,335.32 ",908001,Public Bodies
5375192,CACI LTD,Childrens Services,Children's Services,Computer Software Maintenance Costs,,01/04/2020," 1,800.00 ",270000,Information Communication Technology
5377748,CACI LTD,Childrens Services,Children's Services,Computer Software Maintenance Costs,,06/04/2020," 1,800.00 ",270000,Information Communication Technology
5382765,CACI LTD,Childrens Services,Children's Services,Network Maintenance/Rental,,19/05/2020," 2,700.00 ",270000,Information Communication Technology
470854,CADUK,Operations and Neighbourhoods,Operations and Neighbourhoods,General Materials,,21/04/2020," 9,250.00 ",261520,Human Resources
3250756,CALIBRATION &CONSULTANCYSERVICES (UK) LTD,Operations and Neighbourhoods,Operations and Neighbourhoods,General Equipment Repair & Maintenance,,09/04/2020," 2,133.24 ",150000,Consultancy
3250767,CALIBRATION &CONSULTANCYSERVICES (UK) LTD,Operations and Neighbourhoods,Operations and Neighbourhoods,General Equipment Repair & Maintenance,,25/06/2020," 1,331.59 ",150000,Consultancy
5377773,CAMBIAN CHILDCARE LTD,Education,Children's Services,Independent School Fees,,03/04/2020," 5,336.61 ",321100,Social Community Care Supplies & Services - Children
5378668,CANAL & RIVER TRUST,Place,Growth,British Waterways Levy,,03/04/2020," 92,955.22 ",WORKS,"Works - Construction, Repair & Maintenance"
460396,CANTERBURY CARE HOMES LTD,Adult Social Care,Adults,Nursing Home Long Stay Fees,,28/04/2020," 22,856.75 ",321000,Social Community Care Supplies & Services - Adult
460399,CANTERBURY CARE HOMES LTD,Adult Social Care,Adults,Nursing Home Long Stay Fees,,27/05/2020," 2,403.60 ",321000,Social Community Care Supplies & Services - Adult
5377843,CAPACITY GRID,Exchequer,Governance,Professional Consultancy Services,,09/04/2020," 2,812.50 ",-999999,Unclassifiable
5379988,CAPITA - NNDR REFUNDS,Contingency,Contingency,COVID-19 Small Business 10k,,17/04/2020," 520,000.00 ",400000,Non 3rd Party spend  
5379988,CAPITA - NNDR REFUNDS,Contingency,Contingency,"COVID-19 Retail, Hospitality and Leisure 25k",,17/04/2020," 125,000.00 ",400000,Non 3rd Party spend  
5380005,CAPITA - NNDR REFUNDS,Contingency,Contingency,COVID-19 Small Business 10k,,17/04/2020," 1,890,000.00 ",400000,Non 3rd Party spend  
5380005,CAPITA - NNDR REFUNDS,Contingency,Contingency,"COVID-19 Retail, Hospitality and Leisure 25k",,17/04/2020," 500,000.00 ",400000,Non 3rd Party spend  
5380005,CAPITA - NNDR REFUNDS,Contingency,Contingency,"COVID-19 Retail, Hospitality and Leisure 10k",,17/04/2020," 50,000.00 ",400000,Non 3rd Party spend  
5380173,CAPITA - NNDR REFUNDS,Contingency,Contingency,COVID-19 Small Business 10k,,17/04/2020," 2,030,000.00 ",400000,Non 3rd Party spend  
5380173,CAPITA - NNDR REFUNDS,Contingency,Contingency,"COVID-19 Retail, Hospitality and Leisure 25k",,17/04/2020," 575,000.00 ",400000,Non 3rd Party spend  
5380173,CAPITA - NNDR REFUNDS,Contingency,Contingency,"COVID-19 Retail, Hospitality and Leisure 10k",,17/04/2020," 200,000.00 ",400000,Non 3rd Party spend  
5380477,CAPITA - NNDR REFUNDS,Contingency,Contingency,COVID-19 Small Business 10k,,24/04/2020," 5,660,000.00 ",400000,Non 3rd Party spend  
5380477,CAPITA - NNDR REFUNDS,Contingency,Contingency,"COVID-19 Retail, Hospitality and Leisure 25k",,24/04/2020," 1,400,000.00 ",400000,Non 3rd Party spend  
5380477,CAPITA - NNDR REFUNDS,Contingency,Contingency,"COVID-19 Retail, Hospitality and Leisure 10k",,24/04/2020," 420,000.00 ",400000,Non 3rd Party spend  
5380631,CAPITA - NNDR REFUNDS,Contingency,Contingency,COVID-19 Small Business 10k,,24/04/2020," 1,170,000.00 ",400000,Non 3rd Party spend  
5380631,CAPITA - NNDR REFUNDS,Contingency,Contingency,"COVID-19 Retail, Hospitality and Leisure 25k",,24/04/2020," 325,000.00 ",400000,Non 3rd Party spend  
5380631,CAPITA - NNDR REFUNDS,Contingency,Contingency,"COVID-19 Retail, Hospitality and Leisure 10k",,24/04/2020," 160,000.00 ",400000,Non 3rd Party spend  
5380475,CAPITA - NNDR REFUNDS,Contingency,Contingency,COVID-19 Small Business 10k,,24/04/2020," 1,180,000.00 ",400000,Non 3rd Party spend  
5380475,CAPITA - NNDR REFUNDS,Contingency,Contingency,"COVID-19 Retail, Hospitality and Leisure 25k",,24/04/2020," 425,000.00 ",400000,Non 3rd Party spend  
5380475,CAPITA - NNDR REFUNDS,Contingency,Contingency,"COVID-19 Retail, Hospitality and Leisure 10k",,24/04/2020," 110,000.00 ",400000,Non 3rd Party spend  
5380769,CAPITA - NNDR REFUNDS,Contingency,Contingency,COVID-19 Small Business 10k,,24/04/2020," 1,240,000.00 ",400000,Non 3rd Party spend  
5380769,CAPITA - NNDR REFUNDS,Contingency,Contingency,"COVID-19 Retail, Hospitality and Leisure 25k",,24/04/2020," 250,000.00 ",400000,Non 3rd Party spend  
5380769,CAPITA - NNDR REFUNDS,Contingency,Contingency,"COVID-19 Retail, Hospitality and Leisure 10k",,24/04/2020," 100,000.00 ",400000,Non 3rd Party spend  
5380740,CAPITA - NNDR REFUNDS,Contingency,Contingency,COVID-19 Small Business 10k,,24/04/2020," 1,090,000.00 ",400000,Non 3rd Party spend  
5380740,CAPITA - NNDR REFUNDS,Contingency,Contingency,"COVID-19 Retail, Hospitality and Leisure 25k",,24/04/2020," 350,000.00 ",400000,Non 3rd Party spend  
5380740,CAPITA - NNDR REFUNDS,Contingency,Contingency,"COVID-19 Retail, Hospitality and Leisure 10k",,24/04/2020," 90,000.00 ",400000,Non 3rd Party spend  
5381286,CAPITA - NNDR REFUNDS,Contingency,Contingency,COVID-19 Small Business 10k,,07/05/2020," 1,260,000.00 ",400000,Non 3rd Party spend  
5381286,CAPITA - NNDR REFUNDS,Contingency,Contingency,"COVID-19 Retail, Hospitality and Leisure 25k",,07/05/2020," 150,000.00 ",400000,Non 3rd Party spend  
5381286,CAPITA - NNDR REFUNDS,Contingency,Contingency,"COVID-19 Retail, Hospitality and Leisure 10k",,07/05/2020," 180,000.00 ",400000,Non 3rd Party spend  
5381136,CAPITA - NNDR REFUNDS,Contingency,Contingency,COVID-19 Small Business 10k,,07/05/2020," 1,480,000.00 ",400000,Non 3rd Party spend  
5381136,CAPITA - NNDR REFUNDS,Contingency,Contingency,"COVID-19 Retail, Hospitality and Leisure 25k",,07/05/2020," 250,000.00 ",400000,Non 3rd Party spend  
5381136,CAPITA - NNDR REFUNDS,Contingency,Contingency,"COVID-19 Retail, Hospitality and Leisure 10k",,07/05/2020," 90,000.00 ",400000,Non 3rd Party spend  
5382143,CAPITA - NNDR REFUNDS,Contingency,Contingency,COVID-19 Small Business 10k,,07/05/2020," 530,000.00 ",400000,Non 3rd Party spend  
5382143,CAPITA - NNDR REFUNDS,Contingency,Contingency,"COVID-19 Retail, Hospitality and Leisure 25k",,07/05/2020," 125,000.00 ",400000,Non 3rd Party spend  
5382143,CAPITA - NNDR REFUNDS,Contingency,Contingency,"COVID-19 Retail, Hospitality and Leisure 10k",,07/05/2020," 50,000.00 ",400000,Non 3rd Party spend  
5381727,CAPITA - NNDR REFUNDS,Contingency,Contingency,COVID-19 Small Business 10k,,07/05/2020," 620,000.00 ",400000,Non 3rd Party spend  
5381727,CAPITA - NNDR REFUNDS,Contingency,Contingency,"COVID-19 Retail, Hospitality and Leisure 25k",,07/05/2020," 225,000.00 ",400000,Non 3rd Party spend  
5381727,CAPITA - NNDR REFUNDS,Contingency,Contingency,"COVID-19 Retail, Hospitality and Leisure 10k",,07/05/2020," 50,000.00 ",400000,Non 3rd Party spend  
5381728,CAPITA - NNDR REFUNDS,Contingency,Contingency,COVID-19 Small Business 10k,,07/05/2020," 810,000.00 ",400000,Non 3rd Party spend  
5381728,CAPITA - NNDR REFUNDS,Contingency,Contingency,"COVID-19 Retail, Hospitality and Leisure 25k",,07/05/2020," 100,000.00 ",400000,Non 3rd Party spend  
5381728,CAPITA - NNDR REFUNDS,Contingency,Contingency,"COVID-19 Retail, Hospitality and Leisure 10k",,07/05/2020," 50,000.00 ",400000,Non 3rd Party spend  
5381135,CAPITA - NNDR REFUNDS,Contingency,Contingency,COVID-19 Small Business 10k,,07/05/2020," 670,000.00 ",400000,Non 3rd Party spend  
5381135,CAPITA - NNDR REFUNDS,Contingency,Contingency,"COVID-19 Retail, Hospitality and Leisure 25k",,07/05/2020," 250,000.00 ",400000,Non 3rd Party spend  
5381135,CAPITA - NNDR REFUNDS,Contingency,Contingency,"COVID-19 Retail, Hospitality and Leisure 10k",,07/05/2020," 80,000.00 ",400000,Non 3rd Party spend  
5382138,CAPITA - NNDR REFUNDS,Contingency,Contingency,COVID-19 Small Business 10k,,07/05/2020," 280,000.00 ",400000,Non 3rd Party spend  
5382138,CAPITA - NNDR REFUNDS,Contingency,Contingency,"COVID-19 Retail, Hospitality and Leisure 25k",,07/05/2020," 25,000.00 ",400000,Non 3rd Party spend  
5382141,CAPITA - NNDR REFUNDS,Contingency,Contingency,COVID-19 Small Business 10k,,07/05/2020," 650,000.00 ",400000,Non 3rd Party spend  
5382141,CAPITA - NNDR REFUNDS,Contingency,Contingency,"COVID-19 Retail, Hospitality and Leisure 25k",,07/05/2020," 50,000.00 ",400000,Non 3rd Party spend  
5382141,CAPITA - NNDR REFUNDS,Contingency,Contingency,"COVID-19 Retail, Hospitality and Leisure 10k",,07/05/2020," 50,000.00 ",400000,Non 3rd Party spend  
5381124,CAPITA - NNDR REFUNDS,Contingency,Contingency,COVID-19 Small Business 10k,,07/05/2020," 1,112,000.00 ",400000,Non 3rd Party spend  
5381124,CAPITA - NNDR REFUNDS,Contingency,Contingency,"COVID-19 Retail, Hospitality and Leisure 25k",,07/05/2020," 450,000.00 ",400000,Non 3rd Party spend  
5381124,CAPITA - NNDR REFUNDS,Contingency,Contingency,"COVID-19 Retail, Hospitality and Leisure 10k",,07/05/2020," 90,000.00 ",400000,Non 3rd Party spend  
5383096,CAPITA - NNDR REFUNDS,Contingency,Contingency,COVID-19 Small Business 10k,,27/05/2020," 210,000.00 ",400000,Non 3rd Party spend  
5383096,CAPITA - NNDR REFUNDS,Contingency,Contingency,"COVID-19 Retail, Hospitality and Leisure 25k",,27/05/2020," 25,000.00 ",400000,Non 3rd Party spend  
5383096,CAPITA - NNDR REFUNDS,Contingency,Contingency,"COVID-19 Retail, Hospitality and Leisure 10k",,27/05/2020," 40,000.00 ",400000,Non 3rd Party spend  
5383701,CAPITA - NNDR REFUNDS,Contingency,Contingency,COVID-19 Small Business 10k,,27/05/2020," 30,000.00 ",400000,Non 3rd Party spend  
5383701,CAPITA - NNDR REFUNDS,Contingency,Contingency,"COVID-19 Retail, Hospitality and Leisure 25k",,27/05/2020," 25,000.00 ",400000,Non 3rd Party spend  
5383701,CAPITA - NNDR REFUNDS,Contingency,Contingency,"COVID-19 Retail, Hospitality and Leisure 10k",,27/05/2020," 10,000.00 ",400000,Non 3rd Party spend  
5382957,CAPITA - NNDR REFUNDS,Contingency,Contingency,COVID-19 Small Business 10k,,27/05/2020," 240,000.00 ",400000,Non 3rd Party spend  
5382957,CAPITA - NNDR REFUNDS,Contingency,Contingency,"COVID-19 Retail, Hospitality and Leisure 25k",,27/05/2020," 25,000.00 ",400000,Non 3rd Party spend  
5383697,CAPITA - NNDR REFUNDS,Contingency,Contingency,COVID-19 Small Business 10k,,27/05/2020," 180,000.00 ",400000,Non 3rd Party spend  
5383697,CAPITA - NNDR REFUNDS,Contingency,Contingency,"COVID-19 Retail, Hospitality and Leisure 25k",,27/05/2020," 50,000.00 ",400000,Non 3rd Party spend  
5383697,CAPITA - NNDR REFUNDS,Contingency,Contingency,"COVID-19 Retail, Hospitality and Leisure 10k",,27/05/2020," 20,000.00 ",400000,Non 3rd Party spend  
5383476,CAPITA - NNDR REFUNDS,Contingency,Contingency,COVID-19 Small Business 10k,,27/05/2020," 250,000.00 ",400000,Non 3rd Party spend  
5383476,CAPITA - NNDR REFUNDS,Contingency,Contingency,"COVID-19 Retail, Hospitality and Leisure 25k",,27/05/2020," 75,000.00 ",400000,Non 3rd Party spend  
5383476,CAPITA - NNDR REFUNDS,Contingency,Contingency,"COVID-19 Retail, Hospitality and Leisure 10k",,27/05/2020," 10,000.00 ",400000,Non 3rd Party spend  
5382541,CAPITA - NNDR REFUNDS,Contingency,Contingency,COVID-19 Small Business 10k,,27/05/2020," 470,000.00 ",400000,Non 3rd Party spend  
5382541,CAPITA - NNDR REFUNDS,Contingency,Contingency,"COVID-19 Retail, Hospitality and Leisure 25k",,27/05/2020," 125,000.00 ",400000,Non 3rd Party spend  
5382541,CAPITA - NNDR REFUNDS,Contingency,Contingency,"COVID-19 Retail, Hospitality and Leisure 10k",,27/05/2020," 40,000.00 ",400000,Non 3rd Party spend  
5382545,CAPITA - NNDR REFUNDS,Contingency,Contingency,COVID-19 Small Business 10k,,27/05/2020," 410,000.00 ",400000,Non 3rd Party spend  
5382545,CAPITA - NNDR REFUNDS,Contingency,Contingency,"COVID-19 Retail, Hospitality and Leisure 10k",,27/05/2020," 20,000.00 ",400000,Non 3rd Party spend  
5383478,CAPITA - NNDR REFUNDS,Contingency,Contingency,COVID-19 Small Business 10k,,27/05/2020," 40,000.00 ",400000,Non 3rd Party spend  
5383478,CAPITA - NNDR REFUNDS,Contingency,Contingency,"COVID-19 Retail, Hospitality and Leisure 25k",,27/05/2020," 25,000.00 ",400000,Non 3rd Party spend  
5383478,CAPITA - NNDR REFUNDS,Contingency,Contingency,"COVID-19 Retail, Hospitality and Leisure 10k",,27/05/2020," 10,000.00 ",400000,Non 3rd Party spend  
5382944,CAPITA - NNDR REFUNDS,Contingency,Contingency,COVID-19 Small Business 10k,,27/05/2020," 340,000.00 ",400000,Non 3rd Party spend  
5382944,CAPITA - NNDR REFUNDS,Contingency,Contingency,"COVID-19 Retail, Hospitality and Leisure 25k",,27/05/2020," 75,000.00 ",400000,Non 3rd Party spend  
5382944,CAPITA - NNDR REFUNDS,Contingency,Contingency,"COVID-19 Retail, Hospitality and Leisure 10k",,27/05/2020," 10,000.00 ",400000,Non 3rd Party spend  
5383479,CAPITA - NNDR REFUNDS,Contingency,Contingency,COVID-19 Small Business 10k,,27/05/2020," 80,000.00 ",400000,Non 3rd Party spend  
5383479,CAPITA - NNDR REFUNDS,Contingency,Contingency,"COVID-19 Retail, Hospitality and Leisure 10k",,27/05/2020," 20,000.00 ",400000,Non 3rd Party spend  
5382948,CAPITA - NNDR REFUNDS,Contingency,Contingency,COVID-19 Small Business 10k,,27/05/2020," 300,000.00 ",400000,Non 3rd Party spend  
5382948,CAPITA - NNDR REFUNDS,Contingency,Contingency,"COVID-19 Retail, Hospitality and Leisure 10k",,27/05/2020," 20,000.00 ",400000,Non 3rd Party spend  
5383095,CAPITA - NNDR REFUNDS,Contingency,Contingency,COVID-19 Small Business 10k,,27/05/2020," 140,000.00 ",400000,Non 3rd Party spend  
5384175,CAPITA - NNDR REFUNDS,Contingency,Contingency,COVID-19 Small Business 10k,,05/06/2020," 50,000.00 ",400000,Non 3rd Party spend  
5384175,CAPITA - NNDR REFUNDS,Contingency,Contingency,"COVID-19 Retail, Hospitality and Leisure 25k",,05/06/2020," 25,000.00 ",400000,Non 3rd Party spend  
5384175,CAPITA - NNDR REFUNDS,Contingency,Contingency,"COVID-19 Retail, Hospitality and Leisure 10k",,05/06/2020," 10,000.00 ",400000,Non 3rd Party spend  
5384171,CAPITA - NNDR REFUNDS,Contingency,Contingency,COVID-19 Small Business 10k,,05/06/2020," 160,000.00 ",400000,Non 3rd Party spend  
5384171,CAPITA - NNDR REFUNDS,Contingency,Contingency,"COVID-19 Retail, Hospitality and Leisure 10k",,05/06/2020," 30,000.00 ",400000,Non 3rd Party spend  
5384840,CAPITA - NNDR REFUNDS,Contingency,Contingency,COVID-19 Small Business 10k,,05/06/2020," 70,000.00 ",400000,Non 3rd Party spend  
5384840,CAPITA - NNDR REFUNDS,Contingency,Contingency,"COVID-19 Retail, Hospitality and Leisure 25k",,05/06/2020," 25,000.00 ",400000,Non 3rd Party spend  
5384840,CAPITA - NNDR REFUNDS,Contingency,Contingency,"COVID-19 Retail, Hospitality and Leisure 10k",,05/06/2020," 10,000.00 ",400000,Non 3rd Party spend  
5384845,CAPITA - NNDR REFUNDS,Contingency,Contingency,COVID-19 Small Business 10k,,05/06/2020," 50,000.00 ",400000,Non 3rd Party spend  
5384845,CAPITA - NNDR REFUNDS,Contingency,Contingency,"COVID-19 Retail, Hospitality and Leisure 25k",,05/06/2020," 50,000.00 ",400000,Non 3rd Party spend  
5384835,CAPITA - NNDR REFUNDS,Contingency,Contingency,COVID-19 Small Business 10k,,05/06/2020," 120,000.00 ",400000,Non 3rd Party spend  
5385105,CAPITA - NNDR REFUNDS,Contingency,Contingency,COVID-19 Small Business 10k,,22/06/2020," 80,000.00 ",400000,Non 3rd Party spend  
5385105,CAPITA - NNDR REFUNDS,Contingency,Contingency,"COVID-19 Retail, Hospitality and Leisure 25k",,22/06/2020," 25,000.00 ",400000,Non 3rd Party spend  
5385810,CAPITA - NNDR REFUNDS,Contingency,Contingency,COVID-19 Small Business 10k,,22/06/2020," 140,000.00 ",400000,Non 3rd Party spend  
5385810,CAPITA - NNDR REFUNDS,Contingency,Contingency,"COVID-19 Retail, Hospitality and Leisure 25k",,22/06/2020," 50,000.00 ",400000,Non 3rd Party spend  
5385810,CAPITA - NNDR REFUNDS,Contingency,Contingency,"COVID-19 Retail, Hospitality and Leisure 10k",,22/06/2020," 40,000.00 ",400000,Non 3rd Party spend  
5386173,CAPITA - NNDR REFUNDS,Contingency,Contingency,COVID-19 Small Business 10k,,22/06/2020," 180,000.00 ",400000,Non 3rd Party spend  
5386173,CAPITA - NNDR REFUNDS,Contingency,Contingency,"COVID-19 Retail, Hospitality and Leisure 25k",,22/06/2020," 50,000.00 ",400000,Non 3rd Party spend  
5386173,CAPITA - NNDR REFUNDS,Contingency,Contingency,"COVID-19 Retail, Hospitality and Leisure 10k",,22/06/2020," 20,000.00 ",400000,Non 3rd Party spend  
5385821,CAPITA - NNDR REFUNDS,Contingency,Contingency,COVID-19 Small Business 10k,,22/06/2020," 120,000.00 ",400000,Non 3rd Party spend  
5385103,CAPITA - NNDR REFUNDS,Contingency,Contingency,COVID-19 Small Business 10k,,22/06/2020," 90,000.00 ",400000,Non 3rd Party spend  
5385103,CAPITA - NNDR REFUNDS,Contingency,Contingency,"COVID-19 Retail, Hospitality and Leisure 25k",,22/06/2020," 25,000.00 ",400000,Non 3rd Party spend  
5385103,CAPITA - NNDR REFUNDS,Contingency,Contingency,"COVID-19 Retail, Hospitality and Leisure 10k",,22/06/2020," 10,000.00 ",400000,Non 3rd Party spend  
5385880,CAPITA - NNDR REFUNDS,Contingency,Contingency,COVID-19 Small Business 10k,,22/06/2020," 10,000.00 ",400000,Non 3rd Party spend  
5385880,CAPITA - NNDR REFUNDS,Contingency,Contingency,"COVID-19 Retail, Hospitality and Leisure 25k",,22/06/2020," 25,000.00 ",400000,Non 3rd Party spend  
5385880,CAPITA - NNDR REFUNDS,Contingency,Contingency,"COVID-19 Retail, Hospitality and Leisure 10k",,22/06/2020," 20,000.00 ",400000,Non 3rd Party spend  
5385287,CAPITA - NNDR REFUNDS,Contingency,Contingency,COVID-19 Small Business 10k,,22/06/2020," 50,000.00 ",400000,Non 3rd Party spend  
5385287,CAPITA - NNDR REFUNDS,Contingency,Contingency,"COVID-19 Retail, Hospitality and Leisure 25k",,22/06/2020," 50,000.00 ",400000,Non 3rd Party spend  
5386324,CAPITA - NNDR REFUNDS,Contingency,Contingency,COVID-19 Small Business 10k,,22/06/2020," 110,000.00 ",400000,Non 3rd Party spend  
5386324,CAPITA - NNDR REFUNDS,Contingency,Contingency,"COVID-19 Retail, Hospitality and Leisure 25k",,22/06/2020," 125,000.00 ",400000,Non 3rd Party spend  
5385817,CAPITA - NNDR REFUNDS,Contingency,Contingency,COVID-19 Small Business 10k,,22/06/2020," 20,000.00 ",400000,Non 3rd Party spend  
5385289,CAPITA - NNDR REFUNDS,Contingency,Contingency,COVID-19 Small Business 10k,,22/06/2020," 50,000.00 ",400000,Non 3rd Party spend  
5386176,CAPITA - NNDR REFUNDS,Contingency,Contingency,COVID-19 Small Business 10k,,22/06/2020," 10,000.00 ",400000,Non 3rd Party spend  
5375803,CAPITA BUSINESS SERVICES LIMITED,Exchequer,Governance,Professional Consultancy Services,,01/04/2020," 57,247.24 ",270000,Information Communication Technology
5375803,CAPITA BUSINESS SERVICES LIMITED,Digital Tameside,Finance & IT,Professional Consultancy Services,,01/04/2020," 5,532.84 ",270000,Information Communication Technology
5375823,CAPITA BUSINESS SERVICES LIMITED,Digital Tameside,Finance & IT,Computer Software,,01/04/2020," 88,062.75 ",270000,Information Communication Technology
5375823,CAPITA BUSINESS SERVICES LIMITED,Digital Tameside,Finance & IT,Professional Services,,01/04/2020," 12,000.00 ",270000,Information Communication Technology
5376003,CAPITA BUSINESS SERVICES LIMITED,Exchequer,Governance,Professional Consultancy Services,,01/04/2020," 22,084.22 ",270000,Information Communication Technology
5376646,CAPITA BUSINESS SERVICES LIMITED,Education,Children's Services,Computer Software Maintenance Costs,,03/04/2020," 134,431.82 ",270000,Information Communication Technology
5377065,CAPITA BUSINESS SERVICES LIMITED,Exchequer,Governance,Professional Consultancy Services,,03/04/2020," 3,900.00 ",270000,Information Communication Technology
5378782,CAPITA BUSINESS SERVICES LIMITED,Exchequer,Governance,Professional Consultancy Services,,03/04/2020," 4,811.12 ",270000,Information Communication Technology
5378673,CAPITA BUSINESS SERVICES LIMITED,Exchequer,Governance,Professional Consultancy Services,,03/04/2020, 655.00 ,270000,Information Communication Technology
5378231,CAPITA BUSINESS SERVICES LIMITED,Exchequer,Governance,Professional Consultancy Services,,07/04/2020," 5,000.00 ",270000,Information Communication Technology
5377345,CAPITA BUSINESS SERVICES LIMITED,Education,Children's Services,Free School Meal Costs,,17/04/2020," 5,850.00 ",270000,Information Communication Technology
5380670,CAPITA BUSINESS SERVICES LIMITED,Exchequer,Governance,Professional Consultancy Services,,24/04/2020," 6,093.68 ",270000,Information Communication Technology
5381110,CAPITA BUSINESS SERVICES LIMITED,Exchequer,Governance,Professional Consultancy Services,,30/04/2020," 2,500.00 ",270000,Information Communication Technology
5381111,CAPITA BUSINESS SERVICES LIMITED,Exchequer,Governance,Professional Consultancy Services,,30/04/2020," 1,800.00 ",270000,Information Communication Technology
5381783,CAPITA BUSINESS SERVICES LIMITED,Exchequer,Governance,Professional Consultancy Services,,14/05/2020," 4,300.00 ",270000,Information Communication Technology
5377064,CAPITA BUSINESS SERVICES LIMITED,People and Workforce Development,Governance,Training Course Costs,,14/05/2020," 3,300.00 ",270000,Information Communication Technology
5384179,CAPITA BUSINESS SERVICES LIMITED,Education,Children's Services,Computer Software Maintenance Costs,,03/06/2020," 10,000.00 ",270000,Information Communication Technology
5384816,CAPITA BUSINESS SERVICES LIMITED,Exchequer,Governance,Professional Consultancy Services,,10/06/2020," 2,334.53 ",270000,Information Communication Technology
5386481,CAPITA BUSINESS SERVICES LIMITED,Childrens Services,Children's Services,Training Course Costs,,24/06/2020," 6,750.00 ",270000,Information Communication Technology
5386822,CAPITA BUSINESS SERVICES LIMITED,Education,Children's Services,Free School Meal Costs,,29/06/2020," 11,400.00 ",270000,Information Communication Technology
5374736,Capita Resourcing Ltd trading as Veredus,Education,Children's Services,Agency Staff,,01/04/2020, 700.00 ,-999999,Unclassifiable
5376341,Capita Resourcing Ltd trading as Veredus,Education,Children's Services,Agency Staff,,03/04/2020," 4,550.00 ",-999999,Unclassifiable
5379031,Capita Resourcing Ltd trading as Veredus,Childrens Services,Children's Services,Agency Staff,,06/04/2020," 6,165.00 ",-999999,Unclassifiable
5380422,Capita Resourcing Ltd trading as Veredus,Childrens Services,Children's Services,Agency Staff,,22/04/2020," 3,425.00 ",-999999,Unclassifiable
5379975,Capita Resourcing Ltd trading as Veredus,Education,Children's Services,Agency Staff,,27/04/2020," 3,675.00 ",-999999,Unclassifiable
5380957,Capita Resourcing Ltd trading as Veredus,Education,Children's Services,Agency Staff,,29/04/2020," 2,100.00 ",-999999,Unclassifiable
5381556,Capita Resourcing Ltd trading as Veredus,Childrens Services,Children's Services,Agency Staff,,04/05/2020," 3,425.00 ",-999999,Unclassifiable
5382980,Capita Resourcing Ltd trading as Veredus,Childrens Services,Children's Services,Agency Staff,,19/05/2020," 4,110.00 ",-999999,Unclassifiable
5383388,Capita Resourcing Ltd trading as Veredus,Childrens Services,Children's Services,Agency Staff,,22/05/2020," 5,480.00 ",-999999,Unclassifiable
5384797,Capita Resourcing Ltd trading as Veredus,Childrens Services,Children's Services,Agency Staff,,05/06/2020," 6,850.00 ",-999999,Unclassifiable
5385640,Capita Resourcing Ltd trading as Veredus,Childrens Services,Children's Services,Agency Staff,,16/06/2020," 1,712.50 ",-999999,Unclassifiable
5385969,Capita Resourcing Ltd trading as Veredus,Childrens Services,Children's Services,Agency Staff,,18/06/2020," 3,425.00 ",-999999,Unclassifiable
5386737,Capita Resourcing Ltd trading as Veredus,Childrens Services,Children's Services,Agency Staff,,26/06/2020," 3,425.00 ",-999999,Unclassifiable
5385263,Capita Resourcing Ltd trading as Veredus,Education,Children's Services,Agency Staff,,30/06/2020," 3,850.00 ",-999999,Unclassifiable
5374240,CAPSTONE FOSTER CARE,Childrens Services,Children's Services,Foster Carer Agency Fees,,01/04/2020," 3,283.83 ",321000,Social Community Care Supplies & Services - Adult
5378585,CAPSTONE FOSTER CARE,Childrens Services,Children's Services,Foster Carer Agency Fees,,06/04/2020," 3,797.44 ",321000,Social Community Care Supplies & Services - Adult
5378631,CAPSTONE FOSTER CARE,Childrens Services,Children's Services,Foster Carer Agency Fees,,06/04/2020," 3,797.44 ",321000,Social Community Care Supplies & Services - Adult
5378634,CAPSTONE FOSTER CARE,Childrens Services,Children's Services,Foster Carer Agency Fees,,06/04/2020," 3,835.80 ",321000,Social Community Care Supplies & Services - Adult
5378635,CAPSTONE FOSTER CARE,Childrens Services,Children's Services,Foster Carer Agency Fees,,06/04/2020," 3,835.80 ",321000,Social Community Care Supplies & Services - Adult
5378620,CAPSTONE FOSTER CARE,Childrens Services,Children's Services,Foster Carer Agency Fees,,06/04/2020," 3,686.96 ",321000,Social Community Care Supplies & Services - Adult
5378624,CAPSTONE FOSTER CARE,Childrens Services,Children's Services,Foster Carer Agency Fees,,06/04/2020," 3,686.96 ",321000,Social Community Care Supplies & Services - Adult
5378627,CAPSTONE FOSTER CARE,Childrens Services,Children's Services,Foster Carer Agency Fees,,06/04/2020," 3,177.90 ",321000,Social Community Care Supplies & Services - Adult
5378581,CAPSTONE FOSTER CARE,Childrens Services,Children's Services,Foster Carer Agency Fees,,06/04/2020," 3,182.65 ",321000,Social Community Care Supplies & Services - Adult
5378629,CAPSTONE FOSTER CARE,Childrens Services,Children's Services,Foster Carer Agency Fees,,06/04/2020," 3,214.20 ",321000,Social Community Care Supplies & Services - Adult
5378584,CAPSTONE FOSTER CARE,Childrens Services,Children's Services,Foster Carer Agency Fees,,06/04/2020," 3,385.80 ",321000,Social Community Care Supplies & Services - Adult
5378670,CAPSTONE FOSTER CARE,Childrens Services,Children's Services,Foster Carer Agency Fees,,06/04/2020," 3,420.00 ",321000,Social Community Care Supplies & Services - Adult
5378579,CAPSTONE FOSTER CARE,Childrens Services,Children's Services,Foster Carer Agency Fees,,06/04/2020," 3,420.00 ",321000,Social Community Care Supplies & Services - Adult
5378622,CAPSTONE FOSTER CARE,Childrens Services,Children's Services,Foster Carer Agency Fees,,06/04/2020," 3,420.00 ",321000,Social Community Care Supplies & Services - Adult
5378583,CAPSTONE FOSTER CARE,Childrens Services,Children's Services,Foster Carer Agency Fees,,06/04/2020," 3,420.00 ",321000,Social Community Care Supplies & Services - Adult
5378632,CAPSTONE FOSTER CARE,Childrens Services,Children's Services,Foster Carer Agency Fees,,06/04/2020," 3,797.44 ",321000,Social Community Care Supplies & Services - Adult
5378625,CAPSTONE FOSTER CARE,Childrens Services,Children's Services,Foster Carer Agency Fees,,06/04/2020," 3,686.96 ",321000,Social Community Care Supplies & Services - Adult
5379400,CAPSTONE FOSTER CARE,Childrens Services,Children's Services,Foster Carer Agency Fees,,08/04/2020," 3,295.80 ",321000,Social Community Care Supplies & Services - Adult
5379399,CAPSTONE FOSTER CARE,Childrens Services,Children's Services,Foster Carer Agency Fees,,08/04/2020," 3,835.80 ",321000,Social Community Care Supplies & Services - Adult
5378669,CAPSTONE FOSTER CARE,Childrens Services,Children's Services,Foster Carer Agency Fees,,17/04/2020," 3,078.00 ",321000,Social Community Care Supplies & Services - Adult
5382095,CAPSTONE FOSTER CARE,Childrens Services,Children's Services,Foster Carer Agency Fees,,11/05/2020," 3,924.02 ",321000,Social Community Care Supplies & Services - Adult
5382093,CAPSTONE FOSTER CARE,Childrens Services,Children's Services,Foster Carer Agency Fees,,11/05/2020," 3,924.02 ",321000,Social Community Care Supplies & Services - Adult
5381961,CAPSTONE FOSTER CARE,Childrens Services,Children's Services,Foster Carer Agency Fees,,11/05/2020," 3,963.66 ",321000,Social Community Care Supplies & Services - Adult
5382089,CAPSTONE FOSTER CARE,Childrens Services,Children's Services,Foster Carer Agency Fees,,11/05/2020," 3,405.66 ",321000,Social Community Care Supplies & Services - Adult
5381964,CAPSTONE FOSTER CARE,Childrens Services,Children's Services,Foster Carer Agency Fees,,11/05/2020," 3,809.86 ",321000,Social Community Care Supplies & Services - Adult
5382096,CAPSTONE FOSTER CARE,Childrens Services,Children's Services,Foster Carer Agency Fees,,11/05/2020," 3,534.00 ",321000,Social Community Care Supplies & Services - Adult
5381969,CAPSTONE FOSTER CARE,Childrens Services,Children's Services,Foster Carer Agency Fees,,11/05/2020," 3,534.00 ",321000,Social Community Care Supplies & Services - Adult
5382102,CAPSTONE FOSTER CARE,Childrens Services,Children's Services,Foster Carer Agency Fees,,11/05/2020," 3,534.00 ",321000,Social Community Care Supplies & Services - Adult
5381960,CAPSTONE FOSTER CARE,Childrens Services,Children's Services,Foster Carer Agency Fees,,11/05/2020," 3,534.00 ",321000,Social Community Care Supplies & Services - Adult
5381962,CAPSTONE FOSTER CARE,Childrens Services,Children's Services,Foster Carer Agency Fees,,11/05/2020," 3,809.86 ",321000,Social Community Care Supplies & Services - Adult
5381963,CAPSTONE FOSTER CARE,Childrens Services,Children's Services,Foster Carer Agency Fees,,11/05/2020," 3,809.86 ",321000,Social Community Care Supplies & Services - Adult
5382091,CAPSTONE FOSTER CARE,Childrens Services,Children's Services,Foster Carer Agency Fees,,11/05/2020," 3,534.00 ",321000,Social Community Care Supplies & Services - Adult
5381966,CAPSTONE FOSTER CARE,Childrens Services,Children's Services,Foster Carer Agency Fees,,11/05/2020," 3,283.83 ",321000,Social Community Care Supplies & Services - Adult
5382092,CAPSTONE FOSTER CARE,Childrens Services,Children's Services,Foster Carer Agency Fees,,11/05/2020," 3,288.74 ",321000,Social Community Care Supplies & Services - Adult
5382090,CAPSTONE FOSTER CARE,Childrens Services,Children's Services,Foster Carer Agency Fees,,11/05/2020," 3,963.66 ",321000,Social Community Care Supplies & Services - Adult
5382100,CAPSTONE FOSTER CARE,Childrens Services,Children's Services,Foster Carer Agency Fees,,11/05/2020," 3,963.66 ",321000,Social Community Care Supplies & Services - Adult
5381959,CAPSTONE FOSTER CARE,Childrens Services,Children's Services,Foster Carer Agency Fees,,12/05/2020," 3,924.02 ",321000,Social Community Care Supplies & Services - Adult
5381958,CAPSTONE FOSTER CARE,Childrens Services,Children's Services,Foster Carer Agency Fees,,12/05/2020," 3,498.66 ",321000,Social Community Care Supplies & Services - Adult
5384344,CAPSTONE FOSTER CARE,Childrens Services,Children's Services,Foster Carer Agency Fees,,04/06/2020," 3,295.80 ",321000,Social Community Care Supplies & Services - Adult
5384361,CAPSTONE FOSTER CARE,Childrens Services,Children's Services,Foster Carer Agency Fees,,04/06/2020," 3,686.96 ",321000,Social Community Care Supplies & Services - Adult
5384363,CAPSTONE FOSTER CARE,Childrens Services,Children's Services,Foster Carer Agency Fees,,04/06/2020," 3,686.96 ",321000,Social Community Care Supplies & Services - Adult
5384365,CAPSTONE FOSTER CARE,Childrens Services,Children's Services,Foster Carer Agency Fees,,04/06/2020," 3,686.96 ",321000,Social Community Care Supplies & Services - Adult
5384343,CAPSTONE FOSTER CARE,Childrens Services,Children's Services,Foster Carer Agency Fees,,04/06/2020," 3,835.80 ",321000,Social Community Care Supplies & Services - Adult
5384357,CAPSTONE FOSTER CARE,Childrens Services,Children's Services,Foster Carer Agency Fees,,04/06/2020," 3,835.80 ",321000,Social Community Care Supplies & Services - Adult
5384351,CAPSTONE FOSTER CARE,Childrens Services,Children's Services,Foster Carer Agency Fees,,04/06/2020," 3,797.44 ",321000,Social Community Care Supplies & Services - Adult
5384348,CAPSTONE FOSTER CARE,Childrens Services,Children's Services,Foster Carer Agency Fees,,04/06/2020," 3,420.00 ",321000,Social Community Care Supplies & Services - Adult
5384355,CAPSTONE FOSTER CARE,Childrens Services,Children's Services,Foster Carer Agency Fees,,04/06/2020," 3,420.00 ",321000,Social Community Care Supplies & Services - Adult
5384342,CAPSTONE FOSTER CARE,Childrens Services,Children's Services,Foster Carer Agency Fees,,04/06/2020," 3,420.00 ",321000,Social Community Care Supplies & Services - Adult
5384350,CAPSTONE FOSTER CARE,Childrens Services,Children's Services,Foster Carer Agency Fees,,04/06/2020," 3,182.65 ",321000,Social Community Care Supplies & Services - Adult
5384345,CAPSTONE FOSTER CARE,Childrens Services,Children's Services,Foster Carer Agency Fees,,04/06/2020," 3,835.80 ",321000,Social Community Care Supplies & Services - Adult
5384347,CAPSTONE FOSTER CARE,Childrens Services,Children's Services,Foster Carer Agency Fees,,04/06/2020," 3,420.00 ",321000,Social Community Care Supplies & Services - Adult
5384349,CAPSTONE FOSTER CARE,Childrens Services,Children's Services,Foster Carer Agency Fees,,04/06/2020," 3,385.80 ",321000,Social Community Care Supplies & Services - Adult
5384352,CAPSTONE FOSTER CARE,Childrens Services,Children's Services,Foster Carer Agency Fees,,04/06/2020," 3,797.44 ",321000,Social Community Care Supplies & Services - Adult
5384354,CAPSTONE FOSTER CARE,Childrens Services,Children's Services,Foster Carer Agency Fees,,04/06/2020," 3,797.44 ",321000,Social Community Care Supplies & Services - Adult
5384359,CAPSTONE FOSTER CARE,Childrens Services,Children's Services,Foster Carer Agency Fees,,04/06/2020," 3,177.90 ",321000,Social Community Care Supplies & Services - Adult
5384346,CAPSTONE FOSTER CARE,Childrens Services,Children's Services,Foster Carer Agency Fees,,04/06/2020," 3,420.00 ",321000,Social Community Care Supplies & Services - Adult
5382097,CAPSTONE FOSTER CARE,Childrens Services,Children's Services,Foster Carer Agency Fees,,10/06/2020," 3,107.06 ",321000,Social Community Care Supplies & Services - Adult
5374986,CARE 4 CHILDREN RESIDENTIAL SERVICES LTD,Childrens Services,Children's Services,Foster Carer Agency Fees,,01/04/2020," 3,321.34 ",321100,Social Community Care Supplies & Services - Children
5374985,CARE 4 CHILDREN RESIDENTIAL SERVICES LTD,Childrens Services,Children's Services,Childrens Homes Outside Local Authority Fees,,01/04/2020," 3,595.07 ",321100,Social Community Care Supplies & Services - Children
5374978,CARE 4 CHILDREN RESIDENTIAL SERVICES LTD,Childrens Services,Children's Services,Foster Carer Agency Fees,,01/04/2020," 3,104.96 ",321100,Social Community Care Supplies & Services - Children
5374984,CARE 4 CHILDREN RESIDENTIAL SERVICES LTD,Childrens Services,Children's Services,Foster Carer Agency Fees,,01/04/2020," 7,572.68 ",321100,Social Community Care Supplies & Services - Children
5374989,CARE 4 CHILDREN RESIDENTIAL SERVICES LTD,Childrens Services,Children's Services,Foster Carer Agency Fees,,01/04/2020," 3,463.63 ",321100,Social Community Care Supplies & Services - Children
5374983,CARE 4 CHILDREN RESIDENTIAL SERVICES LTD,Childrens Services,Children's Services,Foster Carer Agency Fees,,01/04/2020," 4,184.69 ",321100,Social Community Care Supplies & Services - Children
5379192,CARE 4 CHILDREN RESIDENTIAL SERVICES LTD,Childrens Services,Children's Services,Foster Carer Agency Fees,,07/04/2020," 3,600.03 ",321100,Social Community Care Supplies & Services - Children
5379169,CARE 4 CHILDREN RESIDENTIAL SERVICES LTD,Childrens Services,Children's Services,Foster Carer Agency Fees,,07/04/2020," 5,142.90 ",321100,Social Community Care Supplies & Services - Children
5379167,CARE 4 CHILDREN RESIDENTIAL SERVICES LTD,Childrens Services,Children's Services,Foster Carer Agency Fees,,07/04/2020," 4,049.70 ",321100,Social Community Care Supplies & Services - Children
5379180,CARE 4 CHILDREN RESIDENTIAL SERVICES LTD,Childrens Services,Children's Services,Foster Carer Agency Fees,,07/04/2020," 3,214.20 ",321100,Social Community Care Supplies & Services - Children
5379171,CARE 4 CHILDREN RESIDENTIAL SERVICES LTD,Childrens Services,Children's Services,Foster Carer Agency Fees,,07/04/2020," 3,351.90 ",321100,Social Community Care Supplies & Services - Children
5379173,CARE 4 CHILDREN RESIDENTIAL SERVICES LTD,Childrens Services,Children's Services,Foster Carer Agency Fees,,07/04/2020," 3,479.10 ",321100,Social Community Care Supplies & Services - Children
5379182,CARE 4 CHILDREN RESIDENTIAL SERVICES LTD,Childrens Services,Children's Services,Foster Carer Agency Fees,,07/04/2020," 7,328.40 ",321100,Social Community Care Supplies & Services - Children
5379292,CARE 4 CHILDREN RESIDENTIAL SERVICES LTD,Childrens Services,Children's Services,Foster Carer Agency Fees,,16/04/2020," 3,004.80 ",321100,Social Community Care Supplies & Services - Children
5381882,CARE 4 CHILDREN RESIDENTIAL SERVICES LTD,Childrens Services,Children's Services,Foster Carer Agency Fees,,07/05/2020," 7,572.68 ",321100,Social Community Care Supplies & Services - Children
5381879,CARE 4 CHILDREN RESIDENTIAL SERVICES LTD,Childrens Services,Children's Services,Foster Carer Agency Fees,,07/05/2020," 4,184.69 ",321100,Social Community Care Supplies & Services - Children
5381892,CARE 4 CHILDREN RESIDENTIAL SERVICES LTD,Childrens Services,Children's Services,Foster Carer Agency Fees,,07/05/2020," 3,463.63 ",321100,Social Community Care Supplies & Services - Children
5381876,CARE 4 CHILDREN RESIDENTIAL SERVICES LTD,Childrens Services,Children's Services,Foster Carer Agency Fees,,07/05/2020," 5,314.33 ",321100,Social Community Care Supplies & Services - Children
5381885,CARE 4 CHILDREN RESIDENTIAL SERVICES LTD,Childrens Services,Children's Services,Foster Carer Agency Fees,,07/05/2020," 3,595.07 ",321100,Social Community Care Supplies & Services - Children
5381895,CARE 4 CHILDREN RESIDENTIAL SERVICES LTD,Childrens Services,Children's Services,Foster Carer Agency Fees,,07/05/2020," 3,631.34 ",321100,Social Community Care Supplies & Services - Children
5381886,CARE 4 CHILDREN RESIDENTIAL SERVICES LTD,Childrens Services,Children's Services,Foster Carer Agency Fees,,07/05/2020," 3,321.34 ",321100,Social Community Care Supplies & Services - Children
5381902,CARE 4 CHILDREN RESIDENTIAL SERVICES LTD,Childrens Services,Children's Services,Foster Carer Agency Fees,,11/05/2020," 3,463.63 ",321100,Social Community Care Supplies & Services - Children
5381906,CARE 4 CHILDREN RESIDENTIAL SERVICES LTD,Childrens Services,Children's Services,Foster Carer Agency Fees,,12/05/2020," 3,104.96 ",321100,Social Community Care Supplies & Services - Children
5381887,CARE 4 CHILDREN RESIDENTIAL SERVICES LTD,Childrens Services,Children's Services,Foster Carer Agency Fees,,19/05/2020," 3,595.07 ",321100,Social Community Care Supplies & Services - Children
5374980,CARE 4 CHILDREN RESIDENTIAL SERVICES LTD,Childrens Services,Children's Services,Foster Carer Agency Fees,,21/05/2020," 2,881.76 ",321100,Social Community Care Supplies & Services - Children
5374982,CARE 4 CHILDREN RESIDENTIAL SERVICES LTD,Childrens Services,Children's Services,Foster Carer Agency Fees,,21/05/2020," 2,797.75 ",321100,Social Community Care Supplies & Services - Children
5383422,CARE 4 CHILDREN RESIDENTIAL SERVICES LTD,Childrens Services,Children's Services,Foster Carer Agency Fees,,22/05/2020," 1,452.49 ",321100,Social Community Care Supplies & Services - Children
5383426,CARE 4 CHILDREN RESIDENTIAL SERVICES LTD,Childrens Services,Children's Services,Childrens Homes Outside Local Authority Fees,,22/05/2020," 3,363.13 ",321100,Social Community Care Supplies & Services - Children
5383416,CARE 4 CHILDREN RESIDENTIAL SERVICES LTD,Childrens Services,Children's Services,Foster Carer Agency Fees,,22/05/2020," 3,479.10 ",321100,Social Community Care Supplies & Services - Children
5383423,CARE 4 CHILDREN RESIDENTIAL SERVICES LTD,Childrens Services,Children's Services,Foster Carer Agency Fees,,22/05/2020," 3,514.20 ",321100,Social Community Care Supplies & Services - Children
5383433,CARE 4 CHILDREN RESIDENTIAL SERVICES LTD,Childrens Services,Children's Services,Foster Carer Agency Fees,,22/05/2020," 2,617.25 ",321100,Social Community Care Supplies & Services - Children
5383417,CARE 4 CHILDREN RESIDENTIAL SERVICES LTD,Childrens Services,Children's Services,Foster Carer Agency Fees,,22/05/2020," 1,507.61 ",321100,Social Community Care Supplies & Services - Children
5383420,CARE 4 CHILDREN RESIDENTIAL SERVICES LTD,Childrens Services,Children's Services,Foster Carer Agency Fees,,22/05/2020," 3,351.90 ",321100,Social Community Care Supplies & Services - Children
5383432,CARE 4 CHILDREN RESIDENTIAL SERVICES LTD,Childrens Services,Children's Services,Foster Carer Agency Fees,,22/05/2020," 3,914.71 ",321100,Social Community Care Supplies & Services - Children
5383444,CARE 4 CHILDREN RESIDENTIAL SERVICES LTD,Childrens Services,Children's Services,Foster Carer Agency Fees,,22/05/2020," 3,321.34 ",321100,Social Community Care Supplies & Services - Children
5383427,CARE 4 CHILDREN RESIDENTIAL SERVICES LTD,Childrens Services,Children's Services,Foster Carer Agency Fees,,22/05/2020," 7,084.12 ",321100,Social Community Care Supplies & Services - Children
5383442,CARE 4 CHILDREN RESIDENTIAL SERVICES LTD,Childrens Services,Children's Services,Foster Carer Agency Fees,,26/05/2020," 3,463.63 ",321100,Social Community Care Supplies & Services - Children
5383438,CARE 4 CHILDREN RESIDENTIAL SERVICES LTD,Childrens Services,Children's Services,Foster Carer Agency Fees,,26/05/2020," 3,498.66 ",321100,Social Community Care Supplies & Services - Children
5383654,CARE 4 CHILDREN RESIDENTIAL SERVICES LTD,Childrens Services,Children's Services,Foster Carer Agency Fees,,27/05/2020," 2,695.84 ",321100,Social Community Care Supplies & Services - Children
5383655,CARE 4 CHILDREN RESIDENTIAL SERVICES LTD,Childrens Services,Children's Services,Foster Carer Agency Fees,,27/05/2020," 1,522.82 ",321100,Social Community Care Supplies & Services - Children
5383651,CARE 4 CHILDREN RESIDENTIAL SERVICES LTD,Childrens Services,Children's Services,Foster Carer Agency Fees,,27/05/2020," 4,184.69 ",321100,Social Community Care Supplies & Services - Children
5383649,CARE 4 CHILDREN RESIDENTIAL SERVICES LTD,Childrens Services,Children's Services,Foster Carer Agency Fees,,27/05/2020," 3,104.96 ",321100,Social Community Care Supplies & Services - Children
5383648,CARE 4 CHILDREN RESIDENTIAL SERVICES LTD,Childrens Services,Children's Services,Foster Carer Agency Fees,,27/05/2020," 2,881.76 ",321100,Social Community Care Supplies & Services - Children
5383650,CARE 4 CHILDREN RESIDENTIAL SERVICES LTD,Childrens Services,Children's Services,Foster Carer Agency Fees,,27/05/2020," 2,797.75 ",321100,Social Community Care Supplies & Services - Children
5383435,CARE 4 CHILDREN RESIDENTIAL SERVICES LTD,Childrens Services,Children's Services,Foster Carer Agency Fees,,28/05/2020," 4,397.04 ",321100,Social Community Care Supplies & Services - Children
5383652,CARE 4 CHILDREN RESIDENTIAL SERVICES LTD,Childrens Services,Children's Services,Foster Carer Agency Fees,,28/05/2020," 3,342.82 ",321100,Social Community Care Supplies & Services - Children
5384674,CARE 4 CHILDREN RESIDENTIAL SERVICES LTD,Childrens Services,Children's Services,Foster Carer Agency Fees,,05/06/2020," 3,514.20 ",321100,Social Community Care Supplies & Services - Children
5384705,CARE 4 CHILDREN RESIDENTIAL SERVICES LTD,Childrens Services,Children's Services,Foster Carer Agency Fees,,05/06/2020," 7,328.40 ",321100,Social Community Care Supplies & Services - Children
5384702,CARE 4 CHILDREN RESIDENTIAL SERVICES LTD,Childrens Services,Children's Services,Foster Carer Agency Fees,,05/06/2020," 4,049.70 ",321100,Social Community Care Supplies & Services - Children
5384708,CARE 4 CHILDREN RESIDENTIAL SERVICES LTD,Childrens Services,Children's Services,Foster Carer Agency Fees,,05/06/2020," 5,142.90 ",321100,Social Community Care Supplies & Services - Children
5384696,CARE 4 CHILDREN RESIDENTIAL SERVICES LTD,Childrens Services,Children's Services,Foster Carer Agency Fees,,05/06/2020," 3,214.20 ",321100,Social Community Care Supplies & Services - Children
5384697,CARE 4 CHILDREN RESIDENTIAL SERVICES LTD,Childrens Services,Children's Services,Foster Carer Agency Fees,,05/06/2020," 3,479.10 ",321100,Social Community Care Supplies & Services - Children
5384672,CARE 4 CHILDREN RESIDENTIAL SERVICES LTD,Childrens Services,Children's Services,Foster Carer Agency Fees,,05/06/2020," 3,351.90 ",321100,Social Community Care Supplies & Services - Children
5384706,CARE 4 CHILDREN RESIDENTIAL SERVICES LTD,Childrens Services,Children's Services,Foster Carer Agency Fees,,09/06/2020," 3,004.80 ",321100,Social Community Care Supplies & Services - Children
460399,Care in Mind trading as Elmhurst Residential Home,Adult Social Care,Adults,Nursing Home Long Stay Fees,,27/05/2020," 15,491.81 ",321000,Social Community Care Supplies & Services - Adult
5376123,CARELINE HOMECARE LTD,Adult Social Care,Adults,Homecare Fees,,01/04/2020," 8,001.59 ",321000,Social Community Care Supplies & Services - Adult
5376936,CARELINE HOMECARE LTD,Adult Social Care,Adults,Homecare Fees,,01/04/2020," 7,532.20 ",321000,Social Community Care Supplies & Services - Adult
5376937,CARELINE HOMECARE LTD,Adult Social Care,Adults,Homecare Fees,,01/04/2020," 1,442.84 ",321000,Social Community Care Supplies & Services - Adult
5376125,CARELINE HOMECARE LTD,Adult Social Care,Adults,Homecare Fees,,01/04/2020," 1,452.51 ",321000,Social Community Care Supplies & Services - Adult
5377645,CARELINE HOMECARE LTD,Adult Social Care,Adults,Homecare Fees,,03/04/2020," 1,121.49 ",321000,Social Community Care Supplies & Services - Adult
5377644,CARELINE HOMECARE LTD,Adult Social Care,Adults,Homecare Fees,,03/04/2020," 7,963.40 ",321000,Social Community Care Supplies & Services - Adult
5379947,CARELINE HOMECARE LTD,Adult Social Care,Adults,Homecare Fees,,16/04/2020," 8,020.60 ",321000,Social Community Care Supplies & Services - Adult
5379960,CARELINE HOMECARE LTD,Adult Social Care,Adults,Homecare Fees,,16/04/2020, 783.14 ,321000,Social Community Care Supplies & Services - Adult
5380357,CARELINE HOMECARE LTD,Adult Social Care,Adults,Homecare Fees,,24/04/2020," 6,194.44 ",321000,Social Community Care Supplies & Services - Adult
5383341,CARELINE HOMECARE LTD,Adult Social Care,Adults,Homecare Fees,,22/05/2020," 151,570.60 ",321000,Social Community Care Supplies & Services - Adult
5384888,CARELINE HOMECARE LTD,Adult Social Care,Adults,Homecare Fees,,10/06/2020," 23,238.00 ",321000,Social Community Care Supplies & Services - Adult
5384859,CARELINE HOMECARE LTD,Adult Social Care,Adults,Homecare Fees,,10/06/2020," 151,570.60 ",321000,Social Community Care Supplies & Services - Adult
5384857,CARELINE HOMECARE LTD,Adult Social Care,Adults,Homecare Fees,,10/06/2020," 151,570.60 ",321000,Social Community Care Supplies & Services - Adult
5385852,CARELINE HOMECARE LTD,Adult Social Care,Adults,Homecare Fees,,18/06/2020," 23,238.00 ",321000,Social Community Care Supplies & Services - Adult
5375706,CARETECH COMMUNITY SERVICES LIMITED,Adult Social Care,Adults,Homecare Fees,,01/04/2020," 5,189.80 ",321000,Social Community Care Supplies & Services - Adult
5375710,CARETECH COMMUNITY SERVICES LIMITED,Adult Social Care,Adults,Residential Home Long Stay Fees,,01/04/2020," 5,142.64 ",321000,Social Community Care Supplies & Services - Adult
5375720,CARETECH COMMUNITY SERVICES LIMITED,Adult Social Care,Adults,Residential Home Long Stay Fees,,01/04/2020," 8,917.04 ",321000,Social Community Care Supplies & Services - Adult
5375708,CARETECH COMMUNITY SERVICES LIMITED,Adult Social Care,Adults,Residential Home Long Stay Fees,,01/04/2020," 3,774.40 ",321000,Social Community Care Supplies & Services - Adult
5375707,CARETECH COMMUNITY SERVICES LIMITED,Adult Social Care,Adults,Residential Home Long Stay Fees,,01/04/2020," 3,302.60 ",321000,Social Community Care Supplies & Services - Adult
5375719,CARETECH COMMUNITY SERVICES LIMITED,Adult Social Care,Adults,Residential Home Long Stay Fees,,01/04/2020," 2,830.80 ",321000,Social Community Care Supplies & Services - Adult
5375717,CARETECH COMMUNITY SERVICES LIMITED,Adult Social Care,Adults,Residential Home Long Stay Fees,,01/04/2020," 2,830.80 ",321000,Social Community Care Supplies & Services - Adult
5375711,CARETECH COMMUNITY SERVICES LIMITED,Adult Social Care,Adults,Residential Home Long Stay Fees,,01/04/2020," 6,605.20 ",321000,Social Community Care Supplies & Services - Adult
5375714,CARETECH COMMUNITY SERVICES LIMITED,Adult Social Care,Adults,Residential Home Long Stay Fees,,01/04/2020," 2,099.52 ",321000,Social Community Care Supplies & Services - Adult
5379050,CARETECH COMMUNITY SERVICES LIMITED,Adult Social Care,Adults,Residential Home Long Stay Fees,,06/04/2020," 8,917.04 ",321000,Social Community Care Supplies & Services - Adult
5379042,CARETECH COMMUNITY SERVICES LIMITED,Adult Social Care,Adults,Residential Home Long Stay Fees,,07/04/2020," 3,774.40 ",321000,Social Community Care Supplies & Services - Adult
5379049,CARETECH COMMUNITY SERVICES LIMITED,Adult Social Care,Adults,Residential Home Long Stay Fees,,07/04/2020," 2,830.80 ",321000,Social Community Care Supplies & Services - Adult
5379041,CARETECH COMMUNITY SERVICES LIMITED,Adult Social Care,Adults,Residential Home Long Stay Fees,,07/04/2020," 2,830.80 ",321000,Social Community Care Supplies & Services - Adult
5379052,CARETECH COMMUNITY SERVICES LIMITED,Adult Social Care,Adults,Residential Home Long Stay Fees,,07/04/2020," 6,605.20 ",321000,Social Community Care Supplies & Services - Adult
5379048,CARETECH COMMUNITY SERVICES LIMITED,Adult Social Care,Adults,Residential Home Long Stay Fees,,07/04/2020," 2,099.52 ",321000,Social Community Care Supplies & Services - Adult
5379045,CARETECH COMMUNITY SERVICES LIMITED,Adult Social Care,Adults,Residential Home Long Stay Fees,,07/04/2020," 3,302.60 ",321000,Social Community Care Supplies & Services - Adult
5379047,CARETECH COMMUNITY SERVICES LIMITED,Adult Social Care,Adults,Residential Home Long Stay Fees,,07/04/2020," 5,142.64 ",321000,Social Community Care Supplies & Services - Adult
5379423,CARETECH COMMUNITY SERVICES LIMITED,Adult Social Care,Adults,Residential Home Long Stay Fees,,08/04/2020," 6,605.20 ",321000,Social Community Care Supplies & Services - Adult
5380191,CARETECH COMMUNITY SERVICES LIMITED,Adult Social Care,Adults,Homecare Fees,,20/04/2020," 2,092.60 ",321000,Social Community Care Supplies & Services - Adult
5380196,CARETECH COMMUNITY SERVICES LIMITED,Adult Social Care,Adults,Homecare Fees,,20/04/2020," 2,092.60 ",321000,Social Community Care Supplies & Services - Adult
5380190,CARETECH COMMUNITY SERVICES LIMITED,Adult Social Care,Adults,Homecare Fees,,20/04/2020," 2,092.60 ",321000,Social Community Care Supplies & Services - Adult
5380193,CARETECH COMMUNITY SERVICES LIMITED,Adult Social Care,Adults,Homecare Fees,,20/04/2020," 2,092.60 ",321000,Social Community Care Supplies & Services - Adult
5380198,CARETECH COMMUNITY SERVICES LIMITED,Adult Social Care,Adults,Homecare Fees,,20/04/2020," 2,092.60 ",321000,Social Community Care Supplies & Services - Adult
5380200,CARETECH COMMUNITY SERVICES LIMITED,Adult Social Care,Adults,Homecare Fees,,20/04/2020," 2,092.60 ",321000,Social Community Care Supplies & Services - Adult
5380186,CARETECH COMMUNITY SERVICES LIMITED,Adult Social Care,Adults,Homecare Fees,,20/04/2020," 9,267.23 ",321000,Social Community Care Supplies & Services - Adult
5380192,CARETECH COMMUNITY SERVICES LIMITED,Adult Social Care,Adults,Homecare Fees,,20/04/2020," 2,092.60 ",321000,Social Community Care Supplies & Services - Adult
5380195,CARETECH COMMUNITY SERVICES LIMITED,Adult Social Care,Adults,Homecare Fees,,20/04/2020," 2,092.60 ",321000,Social Community Care Supplies & Services - Adult
5380202,CARETECH COMMUNITY SERVICES LIMITED,Adult Social Care,Adults,Homecare Fees,,20/04/2020," 2,092.60 ",321000,Social Community Care Supplies & Services - Adult
5380187,CARETECH COMMUNITY SERVICES LIMITED,Adult Social Care,Adults,Homecare Fees,,20/04/2020," 2,092.60 ",321000,Social Community Care Supplies & Services - Adult
5380189,CARETECH COMMUNITY SERVICES LIMITED,Adult Social Care,Adults,Homecare Fees,,20/04/2020," 2,092.60 ",321000,Social Community Care Supplies & Services - Adult
5380194,CARETECH COMMUNITY SERVICES LIMITED,Adult Social Care,Adults,Homecare Fees,,20/04/2020," 2,092.60 ",321000,Social Community Care Supplies & Services - Adult
5380197,CARETECH COMMUNITY SERVICES LIMITED,Adult Social Care,Adults,Homecare Fees,,20/04/2020," 2,092.60 ",321000,Social Community Care Supplies & Services - Adult
5380201,CARETECH COMMUNITY SERVICES LIMITED,Adult Social Care,Adults,Homecare Fees,,20/04/2020," 2,092.60 ",321000,Social Community Care Supplies & Services - Adult
5381901,CARETECH COMMUNITY SERVICES LIMITED,Adult Social Care,Adults,Homecare Fees,,06/05/2020," 5,189.80 ",321000,Social Community Care Supplies & Services - Adult
5381880,CARETECH COMMUNITY SERVICES LIMITED,Adult Social Care,Adults,Homecare Fees,,07/05/2020," 2,092.60 ",321000,Social Community Care Supplies & Services - Adult
5381900,CARETECH COMMUNITY SERVICES LIMITED,Adult Social Care,Adults,Residential Home Long Stay Fees,,12/05/2020," 8,917.04 ",321000,Social Community Care Supplies & Services - Adult
5381897,CARETECH COMMUNITY SERVICES LIMITED,Adult Social Care,Adults,Residential Home Long Stay Fees,,12/05/2020," 3,774.40 ",321000,Social Community Care Supplies & Services - Adult
5381888,CARETECH COMMUNITY SERVICES LIMITED,Adult Social Care,Adults,Residential Home Long Stay Fees,,12/05/2020," 2,099.52 ",321000,Social Community Care Supplies & Services - Adult
5381899,CARETECH COMMUNITY SERVICES LIMITED,Adult Social Care,Adults,Residential Home Long Stay Fees,,12/05/2020," 2,830.80 ",321000,Social Community Care Supplies & Services - Adult
5381889,CARETECH COMMUNITY SERVICES LIMITED,Adult Social Care,Adults,Residential Home Long Stay Fees,,12/05/2020," 6,605.20 ",321000,Social Community Care Supplies & Services - Adult
5381891,CARETECH COMMUNITY SERVICES LIMITED,Adult Social Care,Adults,Residential Home Long Stay Fees,,14/05/2020," 6,605.20 ",321000,Social Community Care Supplies & Services - Adult
5381890,CARETECH COMMUNITY SERVICES LIMITED,Adult Social Care,Adults,Residential Home Long Stay Fees,,14/05/2020," 5,142.64 ",321000,Social Community Care Supplies & Services - Adult
5381898,CARETECH COMMUNITY SERVICES LIMITED,Adult Social Care,Adults,Residential Home Long Stay Fees,,14/05/2020," 2,830.80 ",321000,Social Community Care Supplies & Services - Adult
5381893,CARETECH COMMUNITY SERVICES LIMITED,Adult Social Care,Adults,Residential Home Long Stay Fees,,14/05/2020," 3,302.60 ",321000,Social Community Care Supplies & Services - Adult
5384777,CARETECH COMMUNITY SERVICES LIMITED,Adult Social Care,Adults,Homecare Fees,,10/06/2020," 2,092.60 ",321000,Social Community Care Supplies & Services - Adult
5384929,CARETECH COMMUNITY SERVICES LIMITED,Adult Social Care,Adults,Residential Home Long Stay Fees,,10/06/2020," 2,099.52 ",321000,Social Community Care Supplies & Services - Adult
5384926,CARETECH COMMUNITY SERVICES LIMITED,Adult Social Care,Adults,Residential Home Long Stay Fees,,10/06/2020," 2,830.80 ",321000,Social Community Care Supplies & Services - Adult
5384925,CARETECH COMMUNITY SERVICES LIMITED,Adult Social Care,Adults,Residential Home Long Stay Fees,,10/06/2020," 8,917.04 ",321000,Social Community Care Supplies & Services - Adult
5384931,CARETECH COMMUNITY SERVICES LIMITED,Adult Social Care,Adults,Residential Home Long Stay Fees,,10/06/2020," 3,774.40 ",321000,Social Community Care Supplies & Services - Adult
5384791,CARETECH COMMUNITY SERVICES LIMITED,Adult Social Care,Adults,Residential Home Long Stay Fees,,10/06/2020," 3,302.60 ",321000,Social Community Care Supplies & Services - Adult
5384928,CARETECH COMMUNITY SERVICES LIMITED,Adult Social Care,Adults,Residential Home Long Stay Fees,,10/06/2020," 6,605.20 ",321000,Social Community Care Supplies & Services - Adult
5384924,CARETECH COMMUNITY SERVICES LIMITED,Adult Social Care,Adults,Residential Home Long Stay Fees,,10/06/2020," 6,605.20 ",321000,Social Community Care Supplies & Services - Adult
5384923,CARETECH COMMUNITY SERVICES LIMITED,Adult Social Care,Adults,Residential Home Long Stay Fees,,10/06/2020," 2,830.80 ",321000,Social Community Care Supplies & Services - Adult
5385159,CARETECH COMMUNITY SERVICES LIMITED,Adult Social Care,Adults,Homecare Fees,,10/06/2020," 5,189.80 ",321000,Social Community Care Supplies & Services - Adult
5384930,CARETECH COMMUNITY SERVICES LIMITED,Adult Social Care,Adults,Residential Home Long Stay Fees,,10/06/2020," 5,142.64 ",321000,Social Community Care Supplies & Services - Adult
5375705,CARETECH COMMUNITY SERVICES LIMITED,Adult Social Care,Adults,Residential Home Long Stay Fees,,23/06/2020," 4,044.00 ",321000,Social Community Care Supplies & Services - Adult
5367091,CARETECH COMMUNITY SERVICES LIMITED,Adult Social Care,Adults,Residential Home Long Stay Fees,,23/06/2020," 4,044.00 ",321000,Social Community Care Supplies & Services - Adult
5369166,CARETECH COMMUNITY SERVICES LIMITED,Adult Social Care,Adults,Residential Home Long Stay Fees,,23/06/2020," 4,044.00 ",321000,Social Community Care Supplies & Services - Adult
5371822,CARETECH COMMUNITY SERVICES LIMITED,Adult Social Care,Adults,Residential Home Long Stay Fees,,23/06/2020," 4,044.00 ",321000,Social Community Care Supplies & Services - Adult
5364902,CARETECH COMMUNITY SERVICES LIMITED,Adult Social Care,Adults,Residential Home Long Stay Fees,,23/06/2020," 6,133.40 ",321000,Social Community Care Supplies & Services - Adult
5364908,CARETECH COMMUNITY SERVICES LIMITED,Adult Social Care,Adults,Residential Home Long Stay Fees,,23/06/2020," 6,133.40 ",321000,Social Community Care Supplies & Services - Adult
5367110,CARETECH COMMUNITY SERVICES LIMITED,Adult Social Care,Adults,Residential Home Long Stay Fees,,23/06/2020," 6,133.40 ",321000,Social Community Care Supplies & Services - Adult
5371821,CARETECH COMMUNITY SERVICES LIMITED,Adult Social Care,Adults,Residential Home Long Stay Fees,,23/06/2020," 6,133.40 ",321000,Social Community Care Supplies & Services - Adult
5371829,CARETECH COMMUNITY SERVICES LIMITED,Adult Social Care,Adults,Residential Home Long Stay Fees,,23/06/2020," 6,133.40 ",321000,Social Community Care Supplies & Services - Adult
5367107,CARETECH COMMUNITY SERVICES LIMITED,Adult Social Care,Adults,Residential Home Long Stay Fees,,23/06/2020," 6,133.40 ",321000,Social Community Care Supplies & Services - Adult
5369173,CARETECH COMMUNITY SERVICES LIMITED,Adult Social Care,Adults,Residential Home Long Stay Fees,,23/06/2020," 6,133.40 ",321000,Social Community Care Supplies & Services - Adult
5375722,CARETECH COMMUNITY SERVICES LIMITED,Adult Social Care,Adults,Residential Home Long Stay Fees,,23/06/2020," 6,133.40 ",321000,Social Community Care Supplies & Services - Adult
5369167,CARETECH COMMUNITY SERVICES LIMITED,Adult Social Care,Adults,Residential Home Long Stay Fees,,23/06/2020," 6,133.40 ",321000,Social Community Care Supplies & Services - Adult
5361657,CARETECH COMMUNITY SERVICES LIMITED,Adult Social Care,Adults,Residential Home Long Stay Fees,,23/06/2020," 7,614.60 ",321000,Social Community Care Supplies & Services - Adult
5361716,CARETECH COMMUNITY SERVICES LIMITED,Adult Social Care,Adults,Residential Home Long Stay Fees,,23/06/2020," 7,614.60 ",321000,Social Community Care Supplies & Services - Adult
5361708,CARETECH COMMUNITY SERVICES LIMITED,Adult Social Care,Adults,Residential Home Long Stay Fees,,23/06/2020," 4,170.86 ",321000,Social Community Care Supplies & Services - Adult
5364900,CARETECH COMMUNITY SERVICES LIMITED,Adult Social Care,Adults,Residential Home Long Stay Fees,,23/06/2020," 4,044.00 ",321000,Social Community Care Supplies & Services - Adult
5384793,CARETECH COMMUNITY SERVICES LIMITED,Adult Social Care,Adults,Residential Home Long Stay Fees,,25/06/2020," 6,133.40 ",321000,Social Community Care Supplies & Services - Adult
5385171,CARETECH COMMUNITY SERVICES LIMITED,Adult Social Care,Adults,Residential Home Long Stay Fees,,25/06/2020," 6,133.40 ",321000,Social Community Care Supplies & Services - Adult
5381894,CARETECH COMMUNITY SERVICES LIMITED,Adult Social Care,Adults,Residential Home Long Stay Fees,,25/06/2020," 6,133.40 ",321000,Social Community Care Supplies & Services - Adult
5385172,CARETECH COMMUNITY SERVICES LIMITED,Adult Social Care,Adults,Residential Home Long Stay Fees,,25/06/2020," 6,133.40 ",321000,Social Community Care Supplies & Services - Adult
5375716,CARETECH COMMUNITY SERVICES LIMITED,Adult Social Care,Adults,Residential Home Long Stay Fees,,25/06/2020," 6,133.40 ",321000,Social Community Care Supplies & Services - Adult
5379044,CARETECH COMMUNITY SERVICES LIMITED,Adult Social Care,Adults,Residential Home Long Stay Fees,,25/06/2020," 6,133.40 ",321000,Social Community Care Supplies & Services - Adult
5385173,CARETECH COMMUNITY SERVICES LIMITED,Adult Social Care,Adults,Residential Home Long Stay Fees,,25/06/2020," 6,133.40 ",321000,Social Community Care Supplies & Services - Adult
5379043,CARETECH COMMUNITY SERVICES LIMITED,Adult Social Care,Adults,Residential Home Long Stay Fees,,25/06/2020," 4,044.00 ",321000,Social Community Care Supplies & Services - Adult
5381896,CARETECH COMMUNITY SERVICES LIMITED,Adult Social Care,Adults,Residential Home Long Stay Fees,,25/06/2020," 4,044.00 ",321000,Social Community Care Supplies & Services - Adult
5384800,CARETECH COMMUNITY SERVICES LIMITED,Adult Social Care,Adults,Residential Home Long Stay Fees,,25/06/2020," 4,044.00 ",321000,Social Community Care Supplies & Services - Adult
5376951,CARETOWER LTD,Digital Tameside,Finance & IT,Computer Software Maintenance Costs,,03/04/2020," 12,851.40 ",270000,Information Communication Technology
5376609,CARITAS CARE LTD,Childrens Services,Children's Services,Foster Carer Agency Fees,,03/04/2020," 1,857.14 ",321000,Social Community Care Supplies & Services - Adult
5376610,CARITAS CARE LTD,Childrens Services,Children's Services,Foster Carer Agency Fees,,03/04/2020," 2,071.43 ",321000,Social Community Care Supplies & Services - Adult
5376611,CARITAS CARE LTD,Childrens Services,Children's Services,Foster Carer Agency Fees,,03/04/2020," 2,071.47 ",321000,Social Community Care Supplies & Services - Adult
5381143,CARITAS CARE LTD,Childrens Services,Children's Services,Foster Carer Agency Fees,,30/04/2020," 1,642.86 ",321000,Social Community Care Supplies & Services - Adult
5381772,CARITAS CARE LTD,Childrens Services,Children's Services,Foster Carer Agency Fees,,06/05/2020," 2,214.29 ",321000,Social Community Care Supplies & Services - Adult
5381770,CARITAS CARE LTD,Childrens Services,Children's Services,Foster Carer Agency Fees,,06/05/2020," 2,214.29 ",321000,Social Community Care Supplies & Services - Adult
5381771,CARITAS CARE LTD,Childrens Services,Children's Services,Foster Carer Agency Fees,,06/05/2020," 1,928.57 ",321000,Social Community Care Supplies & Services - Adult
5382332,CARITAS CARE LTD,Childrens Services,Children's Services,Foster Carer Agency Fees,,11/05/2020," 5,857.14 ",321000,Social Community Care Supplies & Services - Adult
5382330,CARITAS CARE LTD,Childrens Services,Children's Services,Foster Carer Agency Fees,,11/05/2020," 1,928.57 ",321000,Social Community Care Supplies & Services - Adult
5382951,CARITAS CARE LTD,Childrens Services,Children's Services,Foster Carer Agency Fees,,19/05/2020," 2,142.90 ",321000,Social Community Care Supplies & Services - Adult
5382952,CARITAS CARE LTD,Childrens Services,Children's Services,Foster Carer Agency Fees,,19/05/2020," 1,500.03 ",321000,Social Community Care Supplies & Services - Adult
5382949,CARITAS CARE LTD,Childrens Services,Children's Services,Foster Carer Agency Fees,,19/05/2020," 2,142.86 ",321000,Social Community Care Supplies & Services - Adult
5382950,CARITAS CARE LTD,Childrens Services,Children's Services,Foster Carer Agency Fees,,19/05/2020," 2,142.86 ",321000,Social Community Care Supplies & Services - Adult
5383304,CARITAS CARE LTD,Childrens Services,Children's Services,Adoption Agency Fees,,22/05/2020," 51,714.00 ",321000,Social Community Care Supplies & Services - Adult
5385488,CARITAS CARE LTD,Childrens Services,Children's Services,Foster Carer Agency Fees,,16/06/2020," 2,214.29 ",321000,Social Community Care Supplies & Services - Adult
5385751,CARITAS CARE LTD,Childrens Services,Children's Services,Foster Carer Agency Fees,,17/06/2020," 2,214.33 ",321000,Social Community Care Supplies & Services - Adult
5385754,CARITAS CARE LTD,Childrens Services,Children's Services,Foster Carer Agency Fees,,17/06/2020," 1,500.03 ",321000,Social Community Care Supplies & Services - Adult
5385756,CARITAS CARE LTD,Childrens Services,Children's Services,Foster Carer Agency Fees,,17/06/2020, 928.59 ,321000,Social Community Care Supplies & Services - Adult
5385753,CARITAS CARE LTD,Childrens Services,Children's Services,Foster Carer Agency Fees,,17/06/2020," 2,214.29 ",321000,Social Community Care Supplies & Services - Adult
5385750,CARITAS CARE LTD,Childrens Services,Children's Services,Foster Carer Agency Fees,,17/06/2020," 2,214.33 ",321000,Social Community Care Supplies & Services - Adult
5377768,CAROLE SOUVENIRS LTD,Operations and Neighbourhoods,Operations and Neighbourhoods,"Marketing, Publicity and Recruitment",,03/04/2020, 582.00 ,190000,Facilities & Management Services
5385042,CARRICK SIGNS LTD,Policy and Communications,Governance,Printing And Stationery,,09/06/2020, 551.00 ,100000,Building Construction Materials
5385043,CARRICK SIGNS LTD,Policy and Communications,Governance,Printing And Stationery,,09/06/2020," 1,125.00 ",100000,Building Construction Materials
5382465,Carrington West Ltd,Place,Growth,Agency Staff,,12/05/2020, 819.00 ,-999999,Unclassifiable
5382464,Carrington West Ltd,Place,Growth,Agency Staff,,12/05/2020, 842.40 ,-999999,Unclassifiable
5383437,Carrington West Ltd,Place,Growth,Agency Staff,,27/05/2020, 819.00 ,-999999,Unclassifiable
5384609,Carrington West Ltd,Place,Growth,Agency Staff,,04/06/2020, 842.40 ,-999999,Unclassifiable
5385104,Carrington West Ltd,Place,Growth,Agency Staff,,09/06/2020, 819.00 ,-999999,Unclassifiable
5385106,Carrington West Ltd,Place,Growth,Agency Staff,,09/06/2020, 842.40 ,-999999,Unclassifiable
5386092,Carrington West Ltd,Place,Growth,Agency Staff,,19/06/2020, 912.60 ,-999999,Unclassifiable
5386225,Carrington West Ltd,Place,Growth,Agency Staff,,22/06/2020, 865.80 ,-999999,Unclassifiable
5386815,Carrington West Ltd,Place,Growth,Agency Staff,,29/06/2020, 912.60 ,-999999,Unclassifiable
5385999,CARTER BROWN - THE EXPERT SERVICE LIMITED,Childrens Services,Children's Services,Professional Child Services,,19/06/2020," 2,003.20 ",280000,Legal Services
5385997,CARTER BROWN - THE EXPERT SERVICE LIMITED,Childrens Services,Children's Services,Professional Child Services,,19/06/2020," 1,181.95 ",280000,Legal Services
460395,Cartwright Care Balmoral Management Ltd,Adult Social Care,Adults,Nursing Home Long Stay Fees,,30/04/2020," 10,581.35 ",321017,Social Community Care Supplies & Services - Adult
460396,Cartwright Care Balmoral Management Ltd,Adult Social Care,Adults,Nursing Home Long Stay Fees,,30/04/2020," 35,099.09 ",321017,Social Community Care Supplies & Services - Adult
460399,Cartwright Care Balmoral Management Ltd,Adult Social Care,Adults,Nursing Home Long Stay Fees,,27/05/2020," 20,275.68 ",321017,Social Community Care Supplies & Services - Adult
460399,Cartwright Care Balmoral Management Ltd,Contingency,Contingency,Nursing Home Long Stay Fees,,27/05/2020," 14,821.22 ",321017,Social Community Care Supplies & Services - Adult
460402,Cartwright Care Balmoral Management Ltd,Adult Social Care,Adults,Nursing Home Long Stay Fees,,17/06/2020," 2,464.09 ",321017,Social Community Care Supplies & Services - Adult
460402,Cartwright Care Balmoral Management Ltd,Contingency,Contingency,Nursing Home Long Stay Fees,,17/06/2020," 16,087.43 ",321017,Social Community Care Supplies & Services - Adult
460403,Cartwright Care Balmoral Management Ltd,Adult Social Care,Adults,Nursing Home Long Stay Fees,,25/06/2020," 24,084.31 ",321017,Social Community Care Supplies & Services - Adult
460403,Cartwright Care Balmoral Management Ltd,Contingency,Contingency,Nursing Home Long Stay Fees,,25/06/2020," 19,096.00 ",321017,Social Community Care Supplies & Services - Adult
470852,CASTINGS SERVICES LTD,Civil Engineers,Director of Place,Debits Goods Received,,06/04/2020," 1,050.00 ",100000,Building Construction Materials
5386594,Cathmor,Childrens Services,Children's Services,Living With Formal Support,,25/06/2020," 9,855.00 ",-999999,Unclassifiable
5386593,Cathmor,Childrens Services,Children's Services,Living With Formal Support,,25/06/2020," 8,760.00 ",-999999,Unclassifiable
5374745,CATHOLIC BLIND INSTITUTE,Education,Children's Services,Non-Maintained School Fees,,01/04/2020," 9,170.00 ",321100,Social Community Care Supplies & Services - Children
5385881,CATHOLIC BLIND INSTITUTE,Education,Children's Services,Non-Maintained School Fees,,18/06/2020," 9,170.00 ",321100,Social Community Care Supplies & Services - Children
5386482,CBS Building and Maintenance,Operations and Neighbourhoods,Operations and Neighbourhoods,Building Maintenance,,24/06/2020," 1,850.00 ",100000,Building Construction Materials
5386482,CBS Building and Maintenance,Operations and Neighbourhoods,Operations and Neighbourhoods,New Build Construction Costs,,24/06/2020, 850.00 ,100000,Building Construction Materials
5380993,CC Construction,Place,Growth,Contributions,,05/05/2020," 1,500.00 ",201700,Financial Services
5375955,CCW CARE LTD,Adult Social Care,Adults,Professional Services,,01/04/2020, 550.00 ,260000,Human Resources
5379785,CCW CARE LTD,Adult Social Care,Adults,Professional Services,,21/04/2020, 700.00 ,260000,Human Resources
5380654,CCW CARE LTD,Adult Social Care,Adults,Professional Services,,24/04/2020, 550.00 ,260000,Human Resources
5380861,CCW CARE LTD,Adult Social Care,Adults,Professional Services,,30/04/2020, 550.00 ,260000,Human Resources
5382129,CCW CARE LTD,Adult Social Care,Adults,Professional Services,,14/05/2020, 525.00 ,260000,Human Resources
5377740,Centaura Limited,Hosted Services,Hosted Services,Indirect Employee Pay Expenditure,,03/04/2020," 2,000.00 ",151510,Healthcare
5377231,Central Chambers,Childrens Services,Children's Services,Legal Fees,,12/05/2020," 1,100.00 ",280000,Legal Services
5385460,CENTRE FOR ASSESSMENT,GMPF (FX),GMPF (FX),Training Course Costs,,15/06/2020," 1,800.00 ",200000,Financial Services
5374739,CFS CARE LIMITED,Childrens Services,Children's Services,Foster Carer Agency Fees,,01/04/2020," 1,300.00 ",321100,Social Community Care Supplies & Services - Children
5374691,CFS CARE LIMITED,Childrens Services,Children's Services,Living With Formal Support,,01/04/2020," 1,072.50 ",321100,Social Community Care Supplies & Services - Children
5374700,CFS CARE LIMITED,Childrens Services,Children's Services,Living With Formal Support,,01/04/2020," 4,347.00 ",321100,Social Community Care Supplies & Services - Children
5374692,CFS CARE LIMITED,Childrens Services,Children's Services,Living With Formal Support,,01/04/2020," 4,554.00 ",321100,Social Community Care Supplies & Services - Children
5374695,CFS CARE LIMITED,Childrens Services,Children's Services,Living With Formal Support,,01/04/2020," 4,347.00 ",321100,Social Community Care Supplies & Services - Children
5374740,CFS CARE LIMITED,Childrens Services,Children's Services,Living With Formal Support,,01/04/2020," 4,554.00 ",321100,Social Community Care Supplies & Services - Children
5374696,CFS CARE LIMITED,Childrens Services,Children's Services,Living With Formal Support,,01/04/2020, 792.00 ,321100,Social Community Care Supplies & Services - Children
5378494,CFS CARE LIMITED,Childrens Services,Children's Services,Living With Formal Support,,03/04/2020," 4,651.50 ",321100,Social Community Care Supplies & Services - Children
5378493,CFS CARE LIMITED,Childrens Services,Children's Services,Living With Formal Support,,03/04/2020, 745.50 ,321100,Social Community Care Supplies & Services - Children
5378577,CFS CARE LIMITED,Childrens Services,Children's Services,Living With Formal Support,,06/04/2020," 4,865.08 ",321100,Social Community Care Supplies & Services - Children
5378580,CFS CARE LIMITED,Childrens Services,Children's Services,Living With Formal Support,,06/04/2020," 4,242.81 ",321100,Social Community Care Supplies & Services - Children
5378516,CFS CARE LIMITED,Childrens Services,Children's Services,Living With Formal Support,,07/04/2020," 4,873.00 ",321100,Social Community Care Supplies & Services - Children
5378575,CFS CARE LIMITED,Childrens Services,Children's Services,Living With Formal Support,,17/04/2020," 4,246.00 ",321100,Social Community Care Supplies & Services - Children
5378576,CFS CARE LIMITED,Childrens Services,Children's Services,Living With Formal Support,,17/04/2020," 1,350.00 ",321100,Social Community Care Supplies & Services - Children
5382029,CFS CARE LIMITED,Childrens Services,Children's Services,Living With Formal Support,,11/05/2020," 3,214.29 ",321100,Social Community Care Supplies & Services - Children
5382036,CFS CARE LIMITED,Childrens Services,Children's Services,Living With Formal Support,,11/05/2020," 4,714.29 ",321100,Social Community Care Supplies & Services - Children
5382026,CFS CARE LIMITED,Childrens Services,Children's Services,Living With Formal Support,,11/05/2020," 4,500.00 ",321100,Social Community Care Supplies & Services - Children
5382032,CFS CARE LIMITED,Childrens Services,Children's Services,Living With Formal Support,,11/05/2020," 4,714.29 ",321100,Social Community Care Supplies & Services - Children
5382024,CFS CARE LIMITED,Childrens Services,Children's Services,Living With Formal Support,,11/05/2020," 2,892.86 ",321100,Social Community Care Supplies & Services - Children
5382033,CFS CARE LIMITED,Childrens Services,Children's Services,Living With Formal Support,,12/05/2020," 4,714.29 ",321100,Social Community Care Supplies & Services - Children
5382498,CFS CARE LIMITED,Childrens Services,Children's Services,Living With Formal Support,,12/05/2020," 1,607.14 ",321100,Social Community Care Supplies & Services - Children
5382982,CFS CARE LIMITED,Childrens Services,Children's Services,Living With Formal Support,,20/05/2020," 4,500.00 ",321100,Social Community Care Supplies & Services - Children
5384547,CFS CARE LIMITED,Childrens Services,Children's Services,Living With Formal Support,,04/06/2020," 4,871.43 ",321100,Social Community Care Supplies & Services - Children
5384540,CFS CARE LIMITED,Childrens Services,Children's Services,Living With Formal Support,,04/06/2020," 4,871.43 ",321100,Social Community Care Supplies & Services - Children
5384549,CFS CARE LIMITED,Childrens Services,Children's Services,Living With Formal Support,,04/06/2020," 3,321.43 ",321100,Social Community Care Supplies & Services - Children
5384541,CFS CARE LIMITED,Childrens Services,Children's Services,Living With Formal Support,,05/06/2020," 4,650.00 ",321100,Social Community Care Supplies & Services - Children
5384543,CFS CARE LIMITED,Childrens Services,Children's Services,Living With Formal Support,,09/06/2020," 4,871.43 ",321100,Social Community Care Supplies & Services - Children
5384542,CFS CARE LIMITED,Childrens Services,Children's Services,Living With Formal Support,,09/06/2020," 3,321.43 ",321100,Social Community Care Supplies & Services - Children
5385180,CFS CARE LIMITED,Childrens Services,Children's Services,Living With Formal Support,,10/06/2020," 2,989.29 ",321100,Social Community Care Supplies & Services - Children
5385188,CFS CARE LIMITED,Childrens Services,Children's Services,Living With Formal Support,,12/06/2020," 4,650.00 ",321100,Social Community Care Supplies & Services - Children
460396,CHADDERTON TOTAL CAREUNIT LTD,Adult Social Care,Adults,Nursing Home Long Stay Fees,,28/04/2020," 3,976.11 ",321000,Social Community Care Supplies & Services - Adult
460399,CHADDERTON TOTAL CAREUNIT LTD,Adult Social Care,Adults,Nursing Home Long Stay Fees,,27/05/2020," 4,108.65 ",321000,Social Community Care Supplies & Services - Adult
460403,CHADDERTON TOTAL CAREUNIT LTD,Adult Social Care,Adults,Nursing Home Long Stay Fees,,25/06/2020," 4,214.79 ",321000,Social Community Care Supplies & Services - Adult
5376225,Change Grow Live,Population Health,Population Health,Professional Services,,03/04/2020," 272,416.00 ",321000,Social Community Care Supplies & Services - Adult
5382617,Change Grow Live,Operations and Neighbourhoods,Operations and Neighbourhoods,Professional Services,,14/05/2020," 11,992.00 ",321000,Social Community Care Supplies & Services - Adult
5382616,Change Grow Live,Operations and Neighbourhoods,Operations and Neighbourhoods,Professional Services,,19/05/2020, 617.00 ,321000,Social Community Care Supplies & Services - Adult
5378529,Changes Support Ltd,Childrens Services,Children's Services,Living With Formal Support,,20/04/2020," 2,173.58 ",321100,Social Community Care Supplies & Services - Children
5380954,Changes Support Ltd,Childrens Services,Children's Services,Living With Formal Support,,28/04/2020," 3,580.00 ",321100,Social Community Care Supplies & Services - Children
5377047,Changing Minds Psychology Service,Education,Children's Services,Professional Services,,03/04/2020," 4,399.92 ",171011,Education
5379186,CHAPEL MOTORS,Contingency,Contingency,COVID-19 Small Business 10k,,07/04/2020," 10,000.00 ",201700,Financial Services
460396,CHARNLEY HOUSE LIMITED,Adult Social Care,Adults,Nursing Home Long Stay Fees,,28/04/2020," 50,722.10 ",321000,Social Community Care Supplies & Services - Adult
460396,CHARNLEY HOUSE LIMITED,Contingency,Contingency,Nursing Home Long Stay Fees,,28/04/2020," 1,319.38 ",321000,Social Community Care Supplies & Services - Adult
460399,CHARNLEY HOUSE LIMITED,Adult Social Care,Adults,Nursing Home Long Stay Fees,,27/05/2020," 18,126.46 ",321000,Social Community Care Supplies & Services - Adult
460399,CHARNLEY HOUSE LIMITED,Contingency,Contingency,Nursing Home Long Stay Fees,,27/05/2020," 1,956.77 ",321000,Social Community Care Supplies & Services - Adult
460402,CHARNLEY HOUSE LIMITED,Adult Social Care,Adults,Nursing Home Long Stay Fees,,17/06/2020," 4,614.00 ",321000,Social Community Care Supplies & Services - Adult
460402,CHARNLEY HOUSE LIMITED,Contingency,Contingency,Nursing Home Long Stay Fees,,17/06/2020," 19,499.92 ",321000,Social Community Care Supplies & Services - Adult
460403,CHARNLEY HOUSE LIMITED,Adult Social Care,Adults,Nursing Home Long Stay Fees,,25/06/2020," 24,830.45 ",321000,Social Community Care Supplies & Services - Adult
460403,CHARNLEY HOUSE LIMITED,Contingency,Contingency,Nursing Home Long Stay Fees,,25/06/2020," 15,691.27 ",321000,Social Community Care Supplies & Services - Adult
460395,Cherry Tree Lodge Limited,Adult Social Care,Adults,Nursing Home Long Stay Fees,,07/04/2020," 3,268.29 ",321000,Social Community Care Supplies & Services - Adult
460396,Cherry Tree Lodge Limited,Adult Social Care,Adults,Nursing Home Long Stay Fees,,28/04/2020," 3,162.85 ",321000,Social Community Care Supplies & Services - Adult
460399,Cherry Tree Lodge Limited,Adult Social Care,Adults,Nursing Home Long Stay Fees,,27/05/2020," 3,268.29 ",321000,Social Community Care Supplies & Services - Adult
460403,Cherry Tree Lodge Limited,Adult Social Care,Adults,Nursing Home Long Stay Fees,,25/06/2020," 3,162.86 ",321000,Social Community Care Supplies & Services - Adult
5378994,CHESHIRE FALCONRY,Operations and Neighbourhoods,Operations and Neighbourhoods,General Materials,,03/04/2020, 625.00 ,290000,Arts & Leisure Services
5379695,CHILD ACTION NORTHWEST,Childrens Services,Children's Services,Professional Services,,20/04/2020, 584.24 ,-999999,Unclassifiable
5382445,CHILD ACTION NORTHWEST,Childrens Services,Children's Services,Professional Services,,21/05/2020, 597.09 ,-999999,Unclassifiable
5385276,CHILD ACTION NORTHWEST,Childrens Services,Children's Services,Professional Services,,19/06/2020, 935.61 ,-999999,Unclassifiable
5385886,CHILDREN 4 MOST @ PORTLAND STREET,Education,Children's Services,Independent School Fees,,26/06/2020," 1,647.00 ",170000,Education
5375028,CHILTERN HILLS LIMITED,Childrens Services,Children's Services,Living Without Formal Support,,01/04/2020," 2,168.00 ",250000,Housing Management
460395,Church Walk Healthcare Ltd,Adult Social Care,Adults,Nursing Home Long Stay Fees,,07/04/2020," 1,419.09 ",321000,Social Community Care Supplies & Services - Adult
5376929,CIPFA - PENNA (PENNA PLC),Place,Growth,Agency Staff,,03/04/2020," 15,200.00 ",260000,Human Resources
5376606,CIPFA - PENNA (PENNA PLC),Education,Children's Services,Recruitment Campaign,,03/04/2020," 8,000.00 ",260000,Human Resources
5379262,CIPFA - PENNA (PENNA PLC),Place,Growth,Agency Staff,,27/05/2020," 16,000.00 ",260000,Human Resources
5375975,CIPFA BUSINESS LIMITED,Finance,Finance & IT,Training Materials,,01/04/2020, 860.00 ,200000,Financial Services
5375792,CIPFA BUSINESS LIMITED,Finance,Finance & IT,Training Materials,,01/04/2020," 2,865.00 ",200000,Financial Services
5375892,CIPFA BUSINESS LIMITED,Finance,Finance & IT,Subscriptions,,01/04/2020," 6,275.00 ",200000,Financial Services
5377280,CIPFA BUSINESS LIMITED,Finance,Finance & IT,Subscriptions,,03/04/2020," 2,550.00 ",200000,Financial Services
5377939,CIPFA BUSINESS LIMITED,Finance,Finance & IT,Computer Software,,03/04/2020, 500.00 ,200000,Financial Services
5377279,CIPFA BUSINESS LIMITED,Finance,Finance & IT,Subscriptions,,03/04/2020," 2,135.00 ",200000,Financial Services
5376222,CIPFA BUSINESS LIMITED,Finance,Finance & IT,Training Course Costs,,03/04/2020," 1,950.00 ",200000,Financial Services
5379008,CIPFA BUSINESS LIMITED,Finance,Finance & IT,Computer Software,,06/04/2020," 1,320.00 ",200000,Financial Services
5379466,CIPFA BUSINESS LIMITED,Finance,Finance & IT,Computer Software,,09/04/2020, 500.00 ,200000,Financial Services
5379467,CIPFA BUSINESS LIMITED,Finance,Finance & IT,Computer Software,,09/04/2020, 500.00 ,200000,Financial Services
5378992,CIPFA BUSINESS LIMITED,Finance,Finance & IT,Computer Software,,09/04/2020," 5,000.00 ",200000,Financial Services
5381149,CIPFA BUSINESS LIMITED,Finance,Finance & IT,Subscriptions,,30/04/2020," 4,500.00 ",200000,Financial Services
5375968,CITY LIFT SERVICES (NW) LTD,Adult Social Care,Adults,General Equipment Repair & Maintenance,,01/04/2020," 1,700.00 ",390000,"Works - Construction, Repair & Maintenance"
5375964,CITY LIFT SERVICES (NW) LTD,Adult Social Care,Adults,General Equipment Repair & Maintenance,,01/04/2020," 10,685.00 ",390000,"Works - Construction, Repair & Maintenance"
5375017,CITY LIFT SERVICES (NW) LTD,Adult Social Care,Adults,General Equipment Repair & Maintenance,,01/04/2020," 1,950.00 ",390000,"Works - Construction, Repair & Maintenance"
5378282,CITY LIFT SERVICES (NW) LTD,Adult Social Care,Adults,General Equipment Repair & Maintenance,,03/04/2020," 2,399.00 ",390000,"Works - Construction, Repair & Maintenance"
5379716,CITY LIFT SERVICES (NW) LTD,Adult Social Care,Adults,General Equipment Repair & Maintenance,,14/04/2020," 1,060.00 ",390000,"Works - Construction, Repair & Maintenance"
5379718,CITY LIFT SERVICES (NW) LTD,Adult Social Care,Adults,General Equipment Repair & Maintenance,,14/04/2020," 12,660.00 ",390000,"Works - Construction, Repair & Maintenance"
5379794,CITY LIFT SERVICES (NW) LTD,Adult Social Care,Adults,General Equipment Repair & Maintenance,,14/04/2020," 7,000.00 ",390000,"Works - Construction, Repair & Maintenance"
5380268,CITY LIFT SERVICES (NW) LTD,Adult Social Care,Adults,General Equipment Repair & Maintenance,,21/04/2020," 6,100.00 ",390000,"Works - Construction, Repair & Maintenance"
5381122,CITY LIFT SERVICES (NW) LTD,Adult Social Care,Adults,General Equipment Repair & Maintenance,,30/04/2020," 1,750.00 ",390000,"Works - Construction, Repair & Maintenance"
5381122,CITY LIFT SERVICES (NW) LTD,Place,Growth,General Equipment Repair & Maintenance,,30/04/2020," 5,250.00 ",390000,"Works - Construction, Repair & Maintenance"
5382009,CITY LIFT SERVICES (NW) LTD,Adult Social Care,Adults,General Equipment Repair & Maintenance,,07/05/2020," 3,495.00 ",390000,"Works - Construction, Repair & Maintenance"
5384869,CITY LIFT SERVICES (NW) LTD,Adult Social Care,Adults,General Equipment Repair & Maintenance,,05/06/2020," 1,750.00 ",390000,"Works - Construction, Repair & Maintenance"
5385251,CITY LIFT SERVICES (NW) LTD,Adult Social Care,Adults,General Equipment Repair & Maintenance,,10/06/2020," 1,750.00 ",390000,"Works - Construction, Repair & Maintenance"
5385774,CITY LIFT SERVICES (NW) LTD,Adult Social Care,Adults,General Equipment Repair & Maintenance,,17/06/2020," 4,545.00 ",390000,"Works - Construction, Repair & Maintenance"
5386118,CITY LIFT SERVICES (NW) LTD,Adult Social Care,Adults,General Equipment Repair & Maintenance,,19/06/2020," 1,750.00 ",390000,"Works - Construction, Repair & Maintenance"
5386692,CITY LIFT SERVICES (NW) LTD,Adult Social Care,Adults,General Equipment Repair & Maintenance,,25/06/2020, 600.00 ,390000,"Works - Construction, Repair & Maintenance"
5386590,CITY LIFT SERVICES (NW) LTD,Adult Social Care,Adults,General Equipment Repair & Maintenance,,25/06/2020," 1,750.00 ",390000,"Works - Construction, Repair & Maintenance"
5375548,CIVICA UK LIMITED,Operations and Neighbourhoods,Operations and Neighbourhoods,Computer Software,,01/04/2020," 1,450.00 ",271600,Information Communication Technology
5375568,CIVICA UK LIMITED,Multiple Heads of Service,Multiple Strategic Directorates,Computer Software,,01/04/2020," 1,950.00 ",271600,Information Communication Technology
5375471,CIVICA UK LIMITED,Operations and Neighbourhoods,Operations and Neighbourhoods,General Office Expenses,,01/04/2020, 500.00 ,271600,Information Communication Technology
3250759,CIVICA UK LIMITED,Operations and Neighbourhoods,Operations and Neighbourhoods,Computer Hardware Maintenance Costs,,30/04/2020," 6,025.64 ",271600,Information Communication Technology
5385354,CIVICA UK LIMITED,Digital Tameside,Finance & IT,Computer Software Maintenance Costs,,16/06/2020," 12,565.34 ",271600,Information Communication Technology
460396,Clarence Park Care Home,Adult Social Care,Adults,Nursing Home Long Stay Fees,,28/04/2020," 3,367.97 ",321000,Social Community Care Supplies & Services - Adult
460396,CLARKSON HOUSE,Adult Social Care,Adults,Nursing Home Long Stay Fees,,28/04/2020," 40,463.29 ",321000,Social Community Care Supplies & Services - Adult
460396,CLARKSON HOUSE,Contingency,Contingency,Nursing Home Long Stay Fees,,28/04/2020," 39,608.76 ",321000,Social Community Care Supplies & Services - Adult
460399,CLARKSON HOUSE,Adult Social Care,Adults,Nursing Home Long Stay Fees,,27/05/2020," 27,244.81 ",321000,Social Community Care Supplies & Services - Adult
460399,CLARKSON HOUSE,Contingency,Contingency,Nursing Home Long Stay Fees,,27/05/2020," 43,889.40 ",321000,Social Community Care Supplies & Services - Adult
460402,CLARKSON HOUSE,Adult Social Care,Adults,Nursing Home Long Stay Fees,,17/06/2020," 24,775.72 ",321000,Social Community Care Supplies & Services - Adult
460402,CLARKSON HOUSE,Contingency,Contingency,Nursing Home Long Stay Fees,,17/06/2020," 13,649.94 ",321000,Social Community Care Supplies & Services - Adult
460403,CLARKSON HOUSE,Adult Social Care,Adults,Nursing Home Long Stay Fees,,25/06/2020," 8,471.45 ",321000,Social Community Care Supplies & Services - Adult
460403,CLARKSON HOUSE,Contingency,Contingency,Nursing Home Long Stay Fees,,25/06/2020," 7,160.38 ",321000,Social Community Care Supplies & Services - Adult
5374823,CLEAR CHANNEL UK LTD,Policy and Communications,Governance,"Marketing, Publicity and Recruitment",,01/04/2020," 2,000.00 ",190000,Facilities & Management Services
5378437,CLEAR SKIES SOFTWARE LTD,Operations and Neighbourhoods,Operations and Neighbourhoods,It Equipment,,06/04/2020," 3,010.95 ",270000,Information Communication Technology
5382888,CLEAR SKIES SOFTWARE LTD,Operations and Neighbourhoods,Operations and Neighbourhoods,Computer Hardware Maintenance Costs,,19/05/2020," 2,400.00 ",270000,Information Communication Technology
5379248,CLOVERLEAF ADVOCACY 2000 LTD,Adult Social Care,Adults,Professional Services,,08/04/2020," 12,408.34 ",321000,Social Community Care Supplies & Services - Adult
5382265,CLOVERLEAF ADVOCACY 2000 LTD,Adult Social Care,Adults,Professional Services,,11/05/2020," 12,250.00 ",321000,Social Community Care Supplies & Services - Adult
5384169,CLOVERLEAF ADVOCACY 2000 LTD,Adult Social Care,Adults,Professional Services,,02/06/2020," 12,250.00 ",321000,Social Community Care Supplies & Services - Adult
5375498,CMA Training,Operations and Neighbourhoods,Operations and Neighbourhoods,Training Course Costs,,01/04/2020," 5,000.00 ",260000,Human Resources
5375457,CMA Training,Operations and Neighbourhoods,Operations and Neighbourhoods,Training Course Costs,,01/04/2020," 1,000.00 ",260000,Human Resources
5380333,CMT Group,Contingency,Contingency,Contributions,,21/04/2020, 582.00 ,311300,Healthcare
5383282,CMT Group,Contingency,Contingency,Personal Hygiene Costs,,22/05/2020," 1,920.00 ",311300,Healthcare
5384532,CMT Group,Contingency,Contingency,Personal Hygiene Costs,,08/06/2020," 1,920.00 ",311300,Healthcare
470855,COLAS LTD,Civil Engineers,Director of Place,Debits Goods Received,,27/04/2020," 1,051.20 ",230000,Highway Equipment & Materials
470856,COLAS LTD,Operations and Neighbourhoods,Operations and Neighbourhoods,General Materials,,04/05/2020," 2,136.00 ",230000,Highway Equipment & Materials
470859,COLAS LTD,Operations and Neighbourhoods,Operations and Neighbourhoods,General Materials,,26/05/2020," 2,136.00 ",230000,Highway Equipment & Materials
470862,COLAS LTD,Civil Engineers,Director of Place,Debits Goods Received,,15/06/2020," 1,051.20 ",230000,Highway Equipment & Materials
470862,COLAS LTD,Operations and Neighbourhoods,Operations and Neighbourhoods,General Materials,,15/06/2020," 5,102.64 ",230000,Highway Equipment & Materials
5376099,COMFORT CALL LIMITED,Adult Social Care,Adults,Homecare Fees,,01/04/2020," 10,794.43 ",310000,Healthcare
5376916,COMFORT CALL LIMITED,Adult Social Care,Adults,Homecare Fees,,01/04/2020," 9,794.22 ",310000,Healthcare
5377603,COMFORT CALL LIMITED,Adult Social Care,Adults,Homecare Fees,,03/04/2020," 10,363.23 ",310000,Healthcare
5379986,COMFORT CALL LIMITED,Adult Social Care,Adults,Homecare Fees,,16/04/2020," 11,860.82 ",310000,Healthcare
5383342,COMFORT CALL LIMITED,Adult Social Care,Adults,Homecare Fees,,22/05/2020," 137,507.67 ",310000,Healthcare
5384866,COMFORT CALL LIMITED,Adult Social Care,Adults,Homecare Fees,,10/06/2020," 137,507.67 ",310000,Healthcare
5384865,COMFORT CALL LIMITED,Adult Social Care,Adults,Homecare Fees,,10/06/2020," 137,507.67 ",310000,Healthcare
5238503,COMMUNITY HEALTH PARTNERSHIPS,Place,Growth,Non-Authority Accommodation Rental,,01/04/2020," 1,179.54 ",200000,Financial Services
5374815,COMMUNITY INTEGRATED CARE,Adult Social Care,Adults,Homecare Fees,,01/04/2020," 19,081.07 ",321000,Social Community Care Supplies & Services - Adult
5378559,COMMUNITY INTEGRATED CARE,Adult Social Care,Adults,Homecare Fees,,06/04/2020," 19,081.07 ",321000,Social Community Care Supplies & Services - Adult
460396,COMMUNITY INTEGRATED CARE,Adult Social Care,Adults,Nursing Home Long Stay Fees,,28/04/2020," 2,024.70 ",321000,Social Community Care Supplies & Services - Adult
5381465,COMMUNITY INTEGRATED CARE,Adult Social Care,Adults,Homecare Fees,,21/05/2020," 19,081.07 ",321000,Social Community Care Supplies & Services - Adult
5384287,COMMUNITY INTEGRATED CARE,Adult Social Care,Adults,Homecare Fees,,05/06/2020," 21,143.85 ",321000,Social Community Care Supplies & Services - Adult
5375871,Compass Fostering North LTD,Childrens Services,Children's Services,Foster Carer Agency Fees,,01/04/2020," 3,264.30 ",321100,Social Community Care Supplies & Services - Children
5375873,Compass Fostering North LTD,Childrens Services,Children's Services,Foster Carer Agency Fees,,01/04/2020," 3,264.30 ",321100,Social Community Care Supplies & Services - Children
5375877,Compass Fostering North LTD,Childrens Services,Children's Services,Foster Carer Agency Fees,,01/04/2020," 3,195.08 ",321100,Social Community Care Supplies & Services - Children
5375876,Compass Fostering North LTD,Childrens Services,Children's Services,Foster Carer Agency Fees,,01/04/2020," 3,171.11 ",321100,Social Community Care Supplies & Services - Children
5375867,Compass Fostering North LTD,Childrens Services,Children's Services,Foster Carer Agency Fees,,01/04/2020," 3,347.29 ",321100,Social Community Care Supplies & Services - Children
5375875,Compass Fostering North LTD,Childrens Services,Children's Services,Foster Carer Agency Fees,,01/04/2020," 3,347.29 ",321100,Social Community Care Supplies & Services - Children
5375869,Compass Fostering North LTD,Childrens Services,Children's Services,Foster Carer Agency Fees,,01/04/2020," 3,081.06 ",321100,Social Community Care Supplies & Services - Children
